{"text_format":"1","workbook":"xlsx","n_sheets":16,"sheets":["Instructions","Business information","Federal standards","FAQs","Engine 1","Engine 2","Engine 3","Engine 4","Engine 5","Potential emissions","Actual emissions","Permits & requirements","Engine emission factors","Propane reference","Data validation","Data collection"],"not_rendered":{"charts":0,"images":2,"macros":1,"external_links":0,"defined_names":37,"comments":1,"pivot_tables":0},"unopened":[],"bounds":{"document_bytes":16777216,"sheet_cells":100000,"rows_first":2000,"rows_last":500,"rows_between":2000,"halvings":0,"cell_chars":16384,"cell_head_chars":4096},"cells_cut":0,"cells_raw":0,"read":"whole","date_system":"1900"}

{"sheet":"Instructions","index":0,"n_rows":31,"n_cols":15,"rows_kept":31,"cut":false,"hidden":false,"merged":[[4,1,4,14],[13,1,13,14],[0,1,3,5],[6,1,6,14],[9,1,9,14],[10,1,10,14],[8,1,8,14],[0,6,1,14],[5,1,5,14],[30,1,30,4],[19,2,19,14],[22,1,22,14],[14,2,14,14],[15,2,15,14],[16,2,16,14],[17,2,17,14],[23,1,23,14],[24,1,24,14],[25,2,25,3],[25,5,25,8],[25,10,25,14],[26,2,26,3],[26,4,26,14],[28,4,28,13],[18,2,18,14]]}
[null,null,null,null,null,null,"Internal combustion engines \nair emissions calculator"]
[]
[null,null,null,null,null,null,null,null,null,null,null,null,null,null,"p-sbap5-25  •  12/13/23"]
[]
[null,"Instructions"]
[null,"1) Start by filling out the 'Business information' tab."]
[null,"2) See the 'Federal standards' tab to identify if a federal rule applies to your engine."]
[null,"3) The 'FAQs' tab contains definitions to help you identify specifics about your engine."]
[null,"4) Use the blue tabs across the bottom to enter information for your engines. Use only one blue tab per engine."]
[null,"5) The green tabs total potential and actual emissions from the information entered on the blue tabs."]
[null,"6) The yellow 'Permits & Requirements' tab will help you decide if a permit is needed and which permit to apply for. "]
[]
[]
[null,"Color key"]
[null,"Blue","Enter information for your facility in the blue boxes."]
[null,"Orange","Orange boxes are filled with standard values. You may change them if you have test results that provide specific data for your site."]
[null,"White","Do not change the values or formulas in white boxes. White boxes contain intermediate calculations for determining emissions.  "]
[null,"Green","Your emission totals are in green boxes. These are automatically calculated based on information entered in the blue boxes."]
[null,"Yellow","Permitting and insignificant activity thresholds."]
[null,"Blue text","Key information and tips."]
[]
[]
[null,"Assistance"]
[null,"This calculator was created by the Minnesota Pollution Control Agency's (MPCA) Small Business Environmental Assistance Program (SBEAP)."]
[null,"We provide free, confidential, environmental assistance to small businesses. For more information:"]
[null,"Call:","651/282-6143",null,"Email:","smallbizhelp.pca@state.mn.us"]
[null,null,"800/657-3938"]
[]
[null,"Online at the MPCA website at: ",null,null,"https://www.pca.state.mn.us/smallbizhelp"]
[]
[null,"More information on engine requirements at: ",null,null,null,"https://www.pca.state.mn.us/business-with-us/stationary-engines"]

{"sheet":"Business information","index":1,"n_rows":44,"n_cols":4,"rows_kept":44,"cut":false,"hidden":false,"merged":[[28,2,28,3],[0,1,0,4],[2,1,2,4],[25,2,27,3]]}
[null,{"$f":"Instructions!O3","v":"p-sbap5-25  •  12/13/23"}]
[]
[null,"Business information"]
[null,"If you have more than one physical location, complete a separate file."]
[]
[null,"Facility information"]
[null,"Provide details about the business where the engines are located. "]
[null,null,null,"Example"]
[null,"Business/facility name:",null,"Bobby's Business"]
[null,"Physical address:",null,"456 Sticks Road"]
[null,"Physical address 2:"]
[null,"City:",null,"Withrow"]
[null,"County:","Choose one","Washington"]
[null,"State:","MN","MN"]
[null,"Zip code:",null,"55038 "]
[]
[null,"If the mailing address is different than physical address, enter below."]
[null,"Mailing address:",null,"123 Wandering Lane"]
[null,"Mailing address 2:",null,"Suite 5"]
[null,"City:",null,"St. Paul"]
[null,"State:",null,"MN"]
[null,"Zip code:",null,55555]
[]
[null,"Does this location have an air quality permit?",null,"Choose one"]
[null,"If yes, what is your MPCA Agency Interest number?"]
[null,null,"Need help? Search for your business name in MPCA's \nWhat's In My Neighborhood. You will find your MPCA Agency Interest number under \"Alternate names\"."]
[]
[]
[null,null,"https://webapp.pca.state.mn.us/wimn/search"]
[]
[null,"Contact information"]
[null,"Who can be contacted about the information provided in this document?"]
[null,null,null,"Example"]
[null,"First name:",null,"Robert"]
[null,"Last name:",null,"Smith"]
[null,"Email address:",null,"bob.smith@gmail.com"]
[null,"Phone number:",null,"555-555-5555"]
[null,"Mailing address:",null,"123 Wandering Lane"]
[null,"Mailing address 2:",null,"Suite 5"]
[null,"City:",null,"St. Paul"]
[null,"State:",null,"MN"]
[null,"Zip code:",null,55555]
[null,"Are you the:","Choose one","Owner"]
[null,"If other, specify:"]

{"sheet":"Federal standards","index":2,"n_rows":52,"n_cols":14,"rows_kept":52,"cut":false,"hidden":false,"merged":[[49,3,51,8],[17,1,20,2],[44,1,46,2],[39,9,40,14],[49,9,50,14],[51,9,51,14],[49,1,51,2],[38,1,38,16],[39,1,40,2],[39,3,40,8],[41,1,43,2],[44,3,45,8],[44,9,45,14],[34,12,34,13],[34,8,34,9],[46,3,48,8],[0,1,0,16],[6,1,7,16],[21,1,22,2],[9,3,10,8],[11,3,12,8],[13,3,14,8],[15,3,16,8],[9,9,10,16],[11,9,12,16],[13,9,14,12],[13,13,14,16],[15,9,16,12],[17,9,20,12],[15,1,16,2],[17,13,20,16],[2,1,3,16],[34,1,34,7],[34,10,34,11],[21,3,22,8],[21,9,22,16],[46,9,48,14],[27,1,27,14],[28,1,29,14],[30,2,30,14],[31,1,32,1],[33,2,33,15],[31,2,32,15],[41,9,43,14],[41,3,43,8],[37,1,37,14],[36,1,36,12],[1,1,1,16],[9,1,10,2],[11,1,12,2],[17,3,20,8],[15,13,16,16],[13,1,14,2]]}
[null,{"$f":"Instructions!O3","v":"p-sbap5-25  •  12/13/23"}]
[null,"U.S. Environmental Protection Agency (EPA) standards for reciprocating internal combustion engines (RICE)"]
[null,"Applicability is determined separately for each engine. Each engine and any other air pollutant sources at your site will need to be evaluated for air emissions."]
[]
[]
[null,"Federal rules for engines"]
[null,"Federal standards can determine whether you need a permit and what requirements you must follow. You may have to follow federal standard requirements in addition to state permit requirements. Below are some of the common federal standards that affect engines."]
[]
[]
[null,"Federal standards",null,"National emission standards for hazardous air pollutants (NESHAP)",null,null,null,null,null,"New source performance standards (NSPS)"]
[]
[null,"Purpose",null,"Prevent or reduce emissions that have health impacts.",null,null,null,null,null,"Requires new emission sources to be less polluting than older sources."]
[]
[null,"Engine standard for",null,"Stationary Reciprocating Internal Combustion Engines",null,null,null,null,null,"Standards of Performance for Compression Ignition (diesel) Engines",null,null,null,"Standards of Performance for Spark Ignition (gaseous) Engines "]
[]
[null,"Regulation",null,"40 CFR 63, subp. ZZZZ\n(NESHAP 4Z)",null,null,null,null,null,"40 CFR 60, subp. IIII\n(NSPS 4I)",null,null,null,"40 CFR 60, subp. JJJJ\n(NSPS 4J)"]
[]
[null,"Use these tools to help you! ",null,"https://www.epa.gov/stationary-engines/implementation-tools-neshap-reciprocating-internal-combustion-engines",null,null,null,null,null,"https://www.epa.gov/stationary-engines/implementation-tools-nsps-compression-ignition-internal-combustion-engines",null,null,null,"https://www.epa.gov/stationary-engines/implementation-tools-nsps-spark-ignition-internal-combustion-engines"]
[]
[]
[]
[null,"Tip",null,"At small air emission sources, this rule is for engines constructed prior to June 12, 2006.",null,null,null,null,null,"At small air emission sources, these rules are for engines constructed on or after June 12, 2006."]
[]
[]
[null,"See additional details at: ",null,null,"https://www.pca.state.mn.us/air/engines"]
[]
[]
[null,"Construction, modification, or reconstruction"]
[null,"If your business conducts an activity which is considered construction, modification, or reconstruction, as defined below or within the standard, the activity may cause an NESHAP or NSPS to apply to you or create the need for a permit amendment. "]
[]
[null,"▪ ","Construction includes fabricating, erecting, or installing an engine."]
[null,"▪ ","Modification is a physical change or change in operations at an existing facility that increases the amount of an air pollutant or results in the emission of a new air pollutant."]
[]
[null,"▪ ","Reconstruction is the replacement of components at an existing facility that exceeds 50% of the cost required to build a new facility."]
[null,"The full definitions of construction and modification are available at:",null,null,null,null,null,null,"40 CFR § 60.2",null,"and reconstruction at: ",null,"40 CFR § 60.15"]
[]
[]
[null,"Additional Federal rules"]
[null,"There are other NESHAPs and NSPSs that may apply to your business."]
[null,"Federal standards",null,"National emission standards for hazardous air pollutants (NESHAP)",null,null,null,null,null,"New source performance standards (NSPS)"]
[]
[null,"Examples",null,"Other NESHAPs include those for coating operations, metal fabrication and finishing, or asphalt processing.",null,null,null,null,null,"Other NSPSs include those for nonmetallic mineral processors, hospital waste incinerators, and sewage treatment plants."]
[]
[]
[null,"List",null,"Found on the EPA website at:",null,null,null,null,null,"Found on the MPCA website at the end of the \nfollowing document:"]
[]
[null,null,null,"https://www.epa.gov/stationary-sources-air-pollution/national-emission-standards-hazardous-air-pollutants-neshap-8",null,null,null,null,null,"https://www.pca.state.mn.us/sites/default/files/aq-f1-gi09d.doc"]
[]
[]
[null,"Guidance",null,"If a NESHAP applies, assess the facility-wide potential air emissions to see if a permit is required. Otherwise, comply with the NESHAP. ",null,null,null,null,null,"If an NSPS applies you need a permit, except as provided in Minn. R. 7007.0300."]
[]
[null,null,null,null,null,null,null,null,null,"Sources not required to obtain a permit: Minn. R. 7007.0300"]

{"sheet":"FAQs","index":3,"n_rows":39,"n_cols":15,"rows_kept":39,"cut":false,"hidden":false,"merged":[[13,2,13,14],[15,2,15,14],[16,3,16,14],[17,3,17,14],[4,1,4,14],[1,1,1,14],[22,1,22,14],[7,1,7,14],[35,7,35,14],[36,7,36,14],[30,6,30,14],[30,4,30,5],[27,2,27,4],[25,2,25,14],[11,3,11,14],[10,2,10,14],[12,3,12,14],[20,1,20,14],[19,1,19,14],[3,1,3,14],[6,1,6,14],[37,7,37,14],[38,7,38,14],[32,6,32,14],[32,4,32,5],[33,4,33,5],[34,7,34,14],[33,6,33,14]]}
[null,null,null,null,null,null,null,null,null,null,null,null,null,null,{"$f":"Instructions!O3","v":"p-sbap5-25  •  12/13/23"}]
[null,"Frequently asked questions"]
[]
[null,"What is a stationary internal combustion engine?"]
[null,"Stationary ICE include reciprocating ICE, rotary ICE, and other ICE, except combustion turbines."]
[]
[null,"Is my engine considered mobile or stationary?"]
[null,"Stationary internal combustion engine differs from a mobile internal combustion engine in that a stationary internal combustion engine is not a nonroad engine and is not used to propel a motor vehicle, aircraft, or a vehicle used solely for competition. "]
[]
[null,null,"What is a nonroad engine?"]
[null,null,"A nonroad engine is (or will be) used in or on a piece of equipment that is:"]
[null,null,"▪ ","Self-propelled or serves a dual purpose by both propelling itself and performing another function (such as garden tractors, off-highway mobile cranes and bulldozers)."]
[null,null,"▪ ","Intended to be propelled while performing its function (such as lawnmowers and string trimmers)."]
[null,null,"By itself or in or on a piece of equipment, it is portable or transportable, meaning designed to be and capable of being carried or moved from one location to another. Indicia of transportability include, but are not limited to, wheels, skids, carrying handles, dolly, trailer, or platform."]
[]
[null,null,"An internal combustion engine is NOT a nonroad engine if it remains (or will remain) at a location for more than 12 consecutive months or a shorter period of time for an engine located at a seasonal source."]
[null,null,"▪ ","For any engine (or engines) that replaces an engine at a location and that is intended to perform the same or similar function as the engine replaced, include the time period of both engines in calculating the consecutive time period."]
[null,null,"▪ ","A seasonal source is a stationary source that remains in a single location on a permanent basis (i.e., at least two years) and that operates at that single location approximately three months (or more) each year. "]
[]
[null,"Am I peak shaving?"]
[null,"A peaking unit or engine means any standby engine intended for use during periods of high demand that are not emergencies."]
[]
[null,"Do I have an emergency engine?"]
[null,"An emergency engine is operated to provide electrical power or mechanical work during an emergency situation."]
[null,null,"Examples:"]
[null,null,"Used to produce power for critical networks or equipment (including power supplied to portions of a facility) when electric power from the local utility (or the normal power source, if the facility runs on its own power production) is interrupted, or stationary ICE used to pump water in the case of fire or flood, etc."]
[]
[null,null,"Time limits:"]
[null,null,"1.","There is no time limit on the use of emergency stationary RICE in emergency situations."]
[null,null,"2.","Up to 100 hours per year may be used for:"]
[null,null,null,null,"Maintenance and testing\n",null,"Emergency stationary RICE may be operated for maintenance checks and readiness testing, provided that the tests are recommended by federal, state or local government, the manufacturer, the vendor, the regional transmission organization or equivalent balancing authority and transmission operator, or the insurance company associated with the engine. The owner or operator may petition the Administrator for approval of additional hours to be used for maintenance checks and readiness testing, but a petition is not required if the owner or operator maintains records indicating that federal, state, or local standards require maintenance and testing of emergency RICE beyond 100 hours per calendar year."]
[null,null,"3.","Up to 50 hours of the total 100 hours per calendar year may be used for non-emergency situations, as described below."]
[null,null,null,null,"At major sources of HAPs",null,"The 50 hours per year for non-emergency situations cannot be used for peak shaving or non-emergency demand response, or to generate income for a facility to an electric grid or otherwise supply power as part of a financial arrangement with another entity."]
[null,null,null,null,"At area sources of HAPs",null,"The 50 hours per year for non-emergency situations can be used to supply power as part of a financial arrangement with another entity if all of the following conditions are met:"]
[null,null,null,null,null,null,"▪ ","The engine is dispatched by the local balancing authority or local transmission and distribution system operator."]
[null,null,null,null,null,null,"▪ ","The dispatch is intended to mitigate local transmission and/or distribution limitations so as to avert potential voltage collapse or line overloads that could lead to the interruption of power supply in a local area or region."]
[null,null,null,null,null,null,"▪ ","The dispatch follows reliability, emergency operation or similar protocols that follow specific NERC, regional, state, public utility commission or local standards or guidelines."]
[null,null,null,null,null,null,"▪ ","The power is provided only to the facility itself or to support the local transmission and distribution system."]
[null,null,null,null,null,null,"▪ ","The owner or operator identifies and records the entity that dispatches the engine and the specific NERC, regional, state, public utility commission or local standards or guidelines that are being followed for dispatching the engine. The local balancing authority or local transmission and distribution system operator may keep these records on behalf of the engine owner or operator."]

{"sheet":"Engine 1","index":4,"n_rows":77,"n_cols":10,"rows_kept":77,"cut":false,"hidden":false,"merged":[[0,1,0,9],[46,6,46,8],[73,1,73,4],[21,1,21,3],[18,4,18,5],[18,6,18,7],[24,1,24,3],[4,2,4,3],[5,2,5,3],[6,2,6,3],[7,2,7,3],[1,1,1,9],[2,1,2,8],[74,1,74,4],[25,1,25,8],[26,1,26,8],[30,9,31,9],[28,9,29,9],[28,7,29,7],[28,8,29,8],[28,5,29,5],[28,6,29,6],[28,3,29,3],[28,4,29,4],[28,1,29,1],[28,2,29,2]]}
[null,{"$f":"Instructions!O3","v":"p-sbap5-25  •  12/13/23"}]
[null,"Air emissions from internal combustion engines"]
[null,"For each engine, complete one engine tab and include all information in the blue boxes. "]
[]
[null,"Engine designation","Engine 1",null,null,"Date of manufacture",null,"located on nameplate"]
[null,"Make",null,null,null,"Date installed",null,"at the site"]
[null,"Model",null,null,null,"Displacement",null,"liters/cylinder"]
[null,"Electrical output",null,null,"kW","Diesel engine tier","Choose one","if known"]
[]
[null,"Does this engine operate to do any of the following? Select yes or no for each. Go to the 'FAQs' tab for more information."]
[null,"Choose one","Supply power to electric grid in emergency situations (emergency demand response)"]
[null,"Choose one","Supply power to electric grid in non-emergency situations (peak shaving)"]
[null,"Choose one","Other financial arrangement"]
[]
[null,"Does a federal rule apply to this engine? "]
[null,"Choose one","Need help? Use EPA's Regulation Navigation tools for assistance. Go to the 'Federal standards' tab for more information. "]
[]
[null,"Calculate the potential and actual air emissions from this engine"]
[null,null,null,"Engine and fuel type","Choose one"]
[null,null,null,"Engine use","Choose one"]
[null,null,null,{"$f":"IF($E$19='Data validation'!$A$6,\" \",IF(OR($E$19=rd,$E$19=rg),\"Rated mechanical output\",IF(OR($E$19=pro,OR($E$19=ngl,OR($E$19=ngr,OR($E$19=tng,$E$19=ng2l)))),\"Rated fuel input\",\" \")))","v":" "},0,{"$f":"IF($D$21=\" \",\" \",IF($D$21=\"Rated mechanical output\",'Data validation'!$A$24,IF(AND($D$21=\"Rated fuel input\",$E$19=pro),'Data validation'!$A$26,'Data validation'!$A$25)))","v":" "}]
[null,"Choose one to calculate actual emissions",null,null,0,{"$f":"IF($B$22='Data validation'!$B$5,\" \",IF($B$22='Data validation'!$B$6,'Data validation'!$B$11,IF(AND($B$22='Data validation'!$B$7,OR($E$19=tng,OR($E$19=ngl,OR($E$19=ngr,OR($E$19=ng2l))))),'Data validation'!$B$12,IF(AND($B$22='Data validation'!$B$7,OR($E$19=rd,OR($E$19=rg,OR($E$19=pro)))),'Data validation'!$B$13,\" \"))))","v":" "}]
[null,null,null,{"$f":"IF($F$21=\" \",\" \",IF($F$21='Data validation'!$A$24,'Data validation'!$A$29,IF(OR($F$21='Data validation'!$A$25,$F$21='Data validation'!$A$26),'Data validation'!$A$30)))","v":" "},{"$f":"IF(E19='Data validation'!A6,\" \",IF(E19=rd,'Engine emission factors'!F53,IF(E19=rg,'Engine emission factors'!F54,IF(OR(E19=ngl,OR(E19=ngr,OR(E19=tng,E19=NGC2))),'Engine emission factors'!G52,IF(E19=pro,'Engine emission factors'!H55,\" \")))))","v":" "},{"$f":"IF($D$23=\" \",\" \",IF($D$23='Data validation'!$A$29,\"(Btu/HP-hr)\",IF(AND($D$23='Data validation'!$A$30,$E$19=pro),\"(Btu/gal)\",IF($D$23='Data validation'!$A$30,\"(Btu/scf)\"))))","v":" "}]
[null,null,null,{"$f":"IF($E$19='Data validation'!$A$6,\" \",IF($E$19=rd,\"Heat value of fuel\",IF($E$19=rg,\"Heat value of fuel\",\" \")))","v":" "},{"$f":"IF(E19=rd,'Engine emission factors'!H53,IF(E19=rg,'Engine emission factors'!H54,\" \"))","v":" "},{"$f":"IF($E$19='Data validation'!$A$6,\" \",IF($E$19=rd,\"(Btu/gal)\",IF($E$19=rg,\"(Btu/gal)\",\" \")))","v":" "}]
[null,"Sulfur content of the fuel",null,null,{"$f":"IF(E19=rd,\"0.0015\",IF(E19=pro,\"0.54\",IF(E19=tng,\"0.00065\",\"NA\")))","v":"NA"},{"$f":"IF(OR(E19=rd,E19=tng),\"%\",IF(E19=pro,\"gr/100ft3\",\"\"))","v":""}]
[]
[null,"Internal combustion engine potential and actual emissions"]
[null,null,"a","b","c","d","e"]
[null,"Pollutant","GWP1","Engine Rated Output","Actual Annual Throughput","Potential Annual Hours3","Emission Factor","Potential Emissions","Actual Emissions","Insignificant Activity4 Limits"]
[]
[null,null,null,"(MMBtu/hr)","(MMBtu/yr)","(hr/yr)","(lbs/MMBtu)","(ton/yr)","(tons/yr)","(tons/yr)"]
[null,null,null,{"$f":"IF(E19=select,0,IF(OR(E19=rd,E19=rg),(E21*E23/10^6),IF(E19=pro,(E21*E23/10^6),IF(OR(E19=ngl,OR(E19=ngr,OR(E19=tng,E19=NGC2))),(E21*E23/(10^6))))))","v":0},{"$f":"IF(F22='Data validation'!B12,E22,IF(AND(F22='Data validation'!B13,E19=rd),(('Engine emission factors'!H53*E22)/1000000),IF(AND(F22='Data validation'!B13,E19=rg),(('Engine emission factors'!H54*E22)/1000000),IF(AND(F22='Data validation'!B13,E19=pro),(('Engine emission factors'!H55*E22)/1000000),IF(F22='Data validation'!B11,(E22*D32),IF(F22=\" \",0))))))","v":0},{"$f":"IF($E$20=so,0,IF(OR($E$20=Routine,AND($E$20=Emer,$B$12=\"Yes\")),8760,IF($E$20=Emer,500)))","v":0},"by pollutant","(b * d * e) / 2000","(c * e) / 2000"]
[null,"Criteria Air Pollutants",null,null,null,null,null,null,"see engine emission factors tab"]
[null,"PM",null,null,null,null,{"$f":"IF($E$19=rd,IF($E$21>=600,'Engine emission factors'!$C5,'Engine emission factors'!$B5),IF($E$19=rg,'Engine emission factors'!$E5,IF($E$19=tng,'Engine emission factors'!$D5,IF($E$19=ngr,'Engine emission factors'!$F5,IF($E$19=ngl,'Engine emission factors'!$G5,IF($E$19=ng2l,'Engine emission factors'!$H5,IF($E$19=pro,'Engine emission factors'!$I5,IF($E$19=select,'Engine emission factors'!$AA5))))))))","v":0},{"$f":"$D$32*$F$32*$G34/2000","v":0},{"$f":"($E$32*$G34)/2000","v":0},1]
[null,"PM10",null,null,null,null,{"$f":"IF($E$19=rd,IF($E$21>=600,'Engine emission factors'!$C6,'Engine emission factors'!$B6),IF($E$19=rg,'Engine emission factors'!$E6,IF($E$19=tng,'Engine emission factors'!$D6,IF($E$19=ngr,'Engine emission factors'!$F6,IF($E$19=ngl,'Engine emission factors'!$G6,IF($E$19=ng2l,'Engine emission factors'!$H6,IF($E$19=pro,'Engine emission factors'!$I6,IF($E$19=select,'Engine emission factors'!$AA6))))))))","v":0},{"$f":"$D$32*$F$32*$G35/2000","v":0},{"$f":"($E$32*$G35)/2000","v":0},1]
[null,"PM2.5",null,null,null,null,{"$f":"IF($E$19=rd,IF($E$21>=600,'Engine emission factors'!$C7,'Engine emission factors'!$B7),IF($E$19=rg,'Engine emission factors'!$E7,IF($E$19=tng,'Engine emission factors'!$D7,IF($E$19=ngr,'Engine emission factors'!$F7,IF($E$19=ngl,'Engine emission factors'!$G7,IF($E$19=ng2l,'Engine emission factors'!$H7,IF($E$19=pro,'Engine emission factors'!$I7,IF($E$19=select,'Engine emission factors'!$AA7))))))))","v":0},0,0]
[null,"SOx",null,null,null,null,{"$f":"IF($E$19=rd,IF($E$21>=600,'Engine emission factors'!$C8*$E$25,'Engine emission factors'!$B8*$E$25),IF($E$19=rg,'Engine emission factors'!$E8,IF($E$19=tng,'Engine emission factors'!$D8*$E$25,IF($E$19=ngr,'Engine emission factors'!$F8,IF($E$19=ngl,'Engine emission factors'!$G8,IF($E$19=ng2l,'Engine emission factors'!$H8,IF($E$19=pro,'Engine emission factors'!$I8*$E$25,IF($E$19=select,'Engine emission factors'!$AA8))))))))","v":0},0,0,1]
[null,"NOx",null,null,null,null,{"$f":"IF($E$19=rd,IF($E$21>=600,'Engine emission factors'!$C9,'Engine emission factors'!$B9),IF($E$19=rg,'Engine emission factors'!$E9,IF($E$19=tng,'Engine emission factors'!$D9,IF($E$19=ngr,'Engine emission factors'!$F9,IF($E$19=ngl,'Engine emission factors'!$G9,IF($E$19=ng2l,'Engine emission factors'!$H9,IF($E$19=pro,'Engine emission factors'!$I9,IF($E$19=select,'Engine emission factors'!$AA9))))))))","v":0},0,0,1]
[null,"VOC",null,null,null,null,{"$f":"IF($E$19=rd,IF($E$21>=600,'Engine emission factors'!$C10,'Engine emission factors'!$B10),IF($E$19=rg,'Engine emission factors'!$E10,IF($E$19=tng,'Engine emission factors'!$D10,IF($E$19=ngr,'Engine emission factors'!$F10,IF($E$19=ngl,'Engine emission factors'!$G10,IF($E$19=ng2l,'Engine emission factors'!$H10,IF($E$19=pro,'Engine emission factors'!$I10,IF($E$19=select,'Engine emission factors'!$AA10))))))))","v":0},0,0,1]
[null,"CO",null,null,null,null,{"$f":"IF($E$19=rd,IF($E$21>=600,'Engine emission factors'!$C11,'Engine emission factors'!$B11),IF($E$19=rg,'Engine emission factors'!$E11,IF($E$19=tng,'Engine emission factors'!$D11,IF($E$19=ngr,'Engine emission factors'!$F11,IF($E$19=ngl,'Engine emission factors'!$G11,IF($E$19=ng2l,'Engine emission factors'!$H11,IF($E$19=pro,'Engine emission factors'!$I11,IF($E$19=select,'Engine emission factors'!$AA11))))))))","v":0},0,0,2]
[null,"Lead",null,null,null,null,"n/a",0,0]
[null,"Greenhouse Gas Emissions",null,null,null,null,null,null,"Source: 40 CFR 98, Subp. C, Table C-1 and C-2"]
[null,"CO2 2",1,null,null,null,{"$f":"IF($E$19=rd,IF($E$21>=600,'Engine emission factors'!$C13,'Engine emission factors'!$B13),IF($E$19=rg,'Engine emission factors'!$E13,IF($E$19=tng,'Engine emission factors'!$D13,IF($E$19=ngr,'Engine emission factors'!$F13,IF($E$19=ngl,'Engine emission factors'!$G13,IF($E$19=ng2l,'Engine emission factors'!$H13,IF($E$19=pro,'Engine emission factors'!$I13,IF($E$19=select,'Engine emission factors'!$AA13))))))))","v":0},{"$f":"$D$32*$F$32*$G43/2000","v":0},{"$f":"($E$32*$G43)/2000","v":0}]
[null,"CH4 2",25,null,null,null,{"$f":"IF($E$19=rd,IF($E$21>=600,'Engine emission factors'!$C14,'Engine emission factors'!$B14),IF($E$19=rg,'Engine emission factors'!$E14,IF($E$19=tng,'Engine emission factors'!$D14,IF($E$19=ngr,'Engine emission factors'!$F14,IF($E$19=ngl,'Engine emission factors'!$G14,IF($E$19=ng2l,'Engine emission factors'!$H14,IF($E$19=pro,'Engine emission factors'!$I14,IF($E$19=select,'Engine emission factors'!$AA14))))))))","v":0},{"$f":"$D$32*$F$32*$G44/2000","v":0},{"$f":"($E$32*$G44)/2000","v":0}]
[null,"N2O 2",298,null,null,null,{"$f":"IF($E$19=rd,IF($E$21>=600,'Engine emission factors'!$C15,'Engine emission factors'!$B15),IF($E$19=rg,'Engine emission factors'!$E15,IF($E$19=tng,'Engine emission factors'!$D15,IF($E$19=ngr,'Engine emission factors'!$F15,IF($E$19=ngl,'Engine emission factors'!$G15,IF($E$19=ng2l,'Engine emission factors'!$H15,IF($E$19=pro,'Engine emission factors'!$I15,IF($E$19=select,'Engine emission factors'!$Q15))))))))","v":0},{"$f":"$D$32*$F$32*$G45/2000","v":0},{"$f":"($E$32*$G45)/2000","v":0}]
[null,null,null,null,null,"GHG total (CO2e) 2",null,{"$f":"(C43*H43)+(C44*H44)+(C45*H45)","v":0},{"$f":"(C43*I43)+(C44*I44)+(C45*I45)","v":0},1000]
[null,"Hazardous Air Pollutants",null,null,null,null,"see engine emission factors tab"]
[null,"1,1,2,2-tetrachloroethane",null,null,null,null,{"$f":"IF($E$19=rd,IF($E$21>=600,'Engine emission factors'!$C17,'Engine emission factors'!$B17),IF($E$19=rg,'Engine emission factors'!$E17,IF($E$19=tng,'Engine emission factors'!$D17,IF($E$19=ngr,'Engine emission factors'!$F17,IF($E$19=ngl,'Engine emission factors'!$G17,IF($E$19=ng2l,'Engine emission factors'!$H17,IF($E$19=pro,'Engine emission factors'!$I17,IF($E$19=select,'Engine emission factors'!$Q17))))))))","v":0},{"$f":"$D$32*$F$32*$G48/2000","v":0},{"$f":"($E$32*$G48)/2000","v":0}]
[null,"1,1,2-trichloroethane",null,null,null,null,{"$f":"IF($E$19=rd,IF($E$21>=600,'Engine emission factors'!$C18,'Engine emission factors'!$B18),IF($E$19=rg,'Engine emission factors'!$E18,IF($E$19=tng,'Engine emission factors'!$D18,IF($E$19=ngr,'Engine emission factors'!$F18,IF($E$19=ngl,'Engine emission factors'!$G18,IF($E$19=ng2l,'Engine emission factors'!$H18,IF($E$19=pro,'Engine emission factors'!$I18,IF($E$19=select,'Engine emission factors'!$Q18))))))))","v":0},0,{"$f":"($E$32*$G49)/2000","v":0}]
[null,"1,3-butadiene",null,null,null,null,{"$f":"IF($E$19=rd,IF($E$21>=600,'Engine emission factors'!$C19,'Engine emission factors'!$B19),IF($E$19=rg,'Engine emission factors'!$E19,IF($E$19=tng,'Engine emission factors'!$D19,IF($E$19=ngr,'Engine emission factors'!$F19,IF($E$19=ngl,'Engine emission factors'!$G19,IF($E$19=ng2l,'Engine emission factors'!$H19,IF($E$19=pro,'Engine emission factors'!$I19,IF($E$19=select,'Engine emission factors'!$Q19))))))))","v":0},0,0]
[null,"1,3-dichloropropene",null,null,null,null,{"$f":"IF($E$19=rd,IF($E$21>=600,'Engine emission factors'!$C20,'Engine emission factors'!$B20),IF($E$19=rg,'Engine emission factors'!$E20,IF($E$19=tng,'Engine emission factors'!$D20,IF($E$19=ngr,'Engine emission factors'!$F20,IF($E$19=ngl,'Engine emission factors'!$G20,IF($E$19=ng2l,'Engine emission factors'!$H20,IF($E$19=pro,'Engine emission factors'!$I20,IF($E$19=select,'Engine emission factors'!$AA20))))))))","v":0},0,0]
[null,"Acetaldehyde",null,null,null,null,{"$f":"IF($E$19=rd,IF($E$21>=600,'Engine emission factors'!$C21,'Engine emission factors'!$B21),IF($E$19=rg,'Engine emission factors'!$E21,IF($E$19=tng,'Engine emission factors'!$D21,IF($E$19=ngr,'Engine emission factors'!$F21,IF($E$19=ngl,'Engine emission factors'!$G21,IF($E$19=ng2l,'Engine emission factors'!$H21,IF($E$19=pro,'Engine emission factors'!$I21,IF($E$19=select,'Engine emission factors'!$AA21))))))))","v":0},0,0]
[null,"Acrolein",null,null,null,null,{"$f":"IF($E$19=rd,IF($E$21>=600,'Engine emission factors'!$C22,'Engine emission factors'!$B22),IF($E$19=rg,'Engine emission factors'!$E22,IF($E$19=tng,'Engine emission factors'!$D22,IF($E$19=ngr,'Engine emission factors'!$F22,IF($E$19=ngl,'Engine emission factors'!$G22,IF($E$19=ng2l,'Engine emission factors'!$H22,IF($E$19=pro,'Engine emission factors'!$I22,IF($E$19=select,'Engine emission factors'!$AA22))))))))","v":0},0,0]
[null,"Benzene",null,null,null,null,{"$f":"IF($E$19=rd,IF($E$21>=600,'Engine emission factors'!$C23,'Engine emission factors'!$B23),IF($E$19=rg,'Engine emission factors'!$E23,IF($E$19=tng,'Engine emission factors'!$D23,IF($E$19=ngr,'Engine emission factors'!$F23,IF($E$19=ngl,'Engine emission factors'!$G23,IF($E$19=ng2l,'Engine emission factors'!$H23,IF($E$19=pro,'Engine emission factors'!$I23,IF($E$19=select,'Engine emission factors'!$AA23))))))))","v":0},0,0]
[null,"Biphenyl",null,null,null,null,{"$f":"IF($E$19=rd,IF($E$21>=600,'Engine emission factors'!$C24,'Engine emission factors'!$B24),IF($E$19=rg,'Engine emission factors'!$E24,IF($E$19=tng,'Engine emission factors'!$D24,IF($E$19=ngr,'Engine emission factors'!$F24,IF($E$19=ngl,'Engine emission factors'!$G24,IF($E$19=ng2l,'Engine emission factors'!$H24,IF($E$19=pro,'Engine emission factors'!$I24,IF($E$19=select,'Engine emission factors'!$AA24))))))))","v":0},0,0]
[null,"Carbon tetrachloride",null,null,null,null,{"$f":"IF($E$19=rd,IF($E$21>=600,'Engine emission factors'!$C25,'Engine emission factors'!$B25),IF($E$19=rg,'Engine emission factors'!$E25,IF($E$19=tng,'Engine emission factors'!$D25,IF($E$19=ngr,'Engine emission factors'!$F25,IF($E$19=ngl,'Engine emission factors'!$G25,IF($E$19=ng2l,'Engine emission factors'!$H25,IF($E$19=pro,'Engine emission factors'!$I25,IF($E$19=select,'Engine emission factors'!$AA25))))))))","v":0},0,0]
[null,"Chlorobenzene",null,null,null,null,{"$f":"IF($E$19=rd,IF($E$21>=600,'Engine emission factors'!$C26,'Engine emission factors'!$B26),IF($E$19=rg,'Engine emission factors'!$E26,IF($E$19=tng,'Engine emission factors'!$D26,IF($E$19=ngr,'Engine emission factors'!$F26,IF($E$19=ngl,'Engine emission factors'!$G26,IF($E$19=ng2l,'Engine emission factors'!$H26,IF($E$19=pro,'Engine emission factors'!$I26,IF($E$19=select,'Engine emission factors'!$AA26))))))))","v":0},0,0]
[null,"Chloroform",null,null,null,null,{"$f":"IF($E$19=rd,IF($E$21>=600,'Engine emission factors'!$C27,'Engine emission factors'!$B27),IF($E$19=rg,'Engine emission factors'!$E27,IF($E$19=tng,'Engine emission factors'!$D27,IF($E$19=ngr,'Engine emission factors'!$F27,IF($E$19=ngl,'Engine emission factors'!$G27,IF($E$19=ng2l,'Engine emission factors'!$H27,IF($E$19=pro,'Engine emission factors'!$I27,IF($E$19=select,'Engine emission factors'!$AA27))))))))","v":0},0,0]
[null,"Ethylbenzene",null,null,null,null,{"$f":"IF($E$19=rd,IF($E$21>=600,'Engine emission factors'!$C28,'Engine emission factors'!$B28),IF($E$19=rg,'Engine emission factors'!$E28,IF($E$19=tng,'Engine emission factors'!$D28,IF($E$19=ngr,'Engine emission factors'!$F28,IF($E$19=ngl,'Engine emission factors'!$G28,IF($E$19=ng2l,'Engine emission factors'!$H28,IF($E$19=pro,'Engine emission factors'!$I28,IF($E$19=select,'Engine emission factors'!$AA28))))))))","v":0},0,0]
[null,"Ethylene dibromide",null,null,null,null,{"$f":"IF($E$19=rd,IF($E$21>=600,'Engine emission factors'!$C29,'Engine emission factors'!$B29),IF($E$19=rg,'Engine emission factors'!$E29,IF($E$19=tng,'Engine emission factors'!$D29,IF($E$19=ngr,'Engine emission factors'!$F29,IF($E$19=ngl,'Engine emission factors'!$G29,IF($E$19=ng2l,'Engine emission factors'!$H29,IF($E$19=pro,'Engine emission factors'!$I29,IF($E$19=select,'Engine emission factors'!$AA29))))))))","v":0},0,0]
[null,"Formaldehyde",null,null,null,null,{"$f":"IF($E$19=rd,IF($E$21>=600,'Engine emission factors'!$C30,'Engine emission factors'!$B30),IF($E$19=rg,'Engine emission factors'!$E30,IF($E$19=tng,'Engine emission factors'!$D30,IF($E$19=ngr,'Engine emission factors'!$F30,IF($E$19=ngl,'Engine emission factors'!$G30,IF($E$19=ng2l,'Engine emission factors'!$H30,IF($E$19=pro,'Engine emission factors'!$I30,IF($E$19=select,'Engine emission factors'!$AA30))))))))","v":0},0,0]
[null,"Hexane",null,null,null,null,{"$f":"IF($E$19=rd,IF($E$21>=600,'Engine emission factors'!$C31,'Engine emission factors'!$B31),IF($E$19=rg,'Engine emission factors'!$E31,IF($E$19=tng,'Engine emission factors'!$D31,IF($E$19=ngr,'Engine emission factors'!$F31,IF($E$19=ngl,'Engine emission factors'!$G31,IF($E$19=ng2l,'Engine emission factors'!$H31,IF($E$19=pro,'Engine emission factors'!$I31,IF($E$19=select,'Engine emission factors'!$AA31))))))))","v":0},0,0]
[null,"Methanol",null,null,null,null,{"$f":"IF($E$19=rd,IF($E$21>=600,'Engine emission factors'!$C32,'Engine emission factors'!$B32),IF($E$19=rg,'Engine emission factors'!$E32,IF($E$19=tng,'Engine emission factors'!$D32,IF($E$19=ngr,'Engine emission factors'!$F32,IF($E$19=ngl,'Engine emission factors'!$G32,IF($E$19=ng2l,'Engine emission factors'!$H32,IF($E$19=pro,'Engine emission factors'!$I32,IF($E$19=select,'Engine emission factors'!$AA32))))))))","v":0},0,0]
[null,"Methylene chloride",null,null,null,null,{"$f":"IF($E$19=rd,IF($E$21>=600,'Engine emission factors'!$C33,'Engine emission factors'!$B33),IF($E$19=rg,'Engine emission factors'!$E33,IF($E$19=tng,'Engine emission factors'!$D33,IF($E$19=ngr,'Engine emission factors'!$F33,IF($E$19=ngl,'Engine emission factors'!$G33,IF($E$19=ng2l,'Engine emission factors'!$H33,IF($E$19=pro,'Engine emission factors'!$I33,IF($E$19=select,'Engine emission factors'!$AA33))))))))","v":0},0,0]
[null,"Naphthalene",null,null,null,null,{"$f":"IF($E$19=rd,IF($E$21>=600,'Engine emission factors'!$C34,'Engine emission factors'!$B34),IF($E$19=rg,'Engine emission factors'!$E34,IF($E$19=tng,'Engine emission factors'!$D34,IF($E$19=ngr,'Engine emission factors'!$F34,IF($E$19=ngl,'Engine emission factors'!$G34,IF($E$19=ng2l,'Engine emission factors'!$H34,IF($E$19=pro,'Engine emission factors'!$I34,IF($E$19=select,'Engine emission factors'!$AA34))))))))","v":0},0,0]
[null,"PAH",null,null,null,null,{"$f":"IF($E$19=rd,IF($E$21>=600,'Engine emission factors'!$C35,'Engine emission factors'!$B35),IF($E$19=rg,'Engine emission factors'!$E35,IF($E$19=tng,'Engine emission factors'!$D35,IF($E$19=ngr,'Engine emission factors'!$F35,IF($E$19=ngl,'Engine emission factors'!$G35,IF($E$19=ng2l,'Engine emission factors'!$H35,IF($E$19=pro,'Engine emission factors'!$I35,IF($E$19=select,'Engine emission factors'!$AA35))))))))","v":0},0,0]
[null,"Phenol",null,null,null,null,{"$f":"IF($E$19=rd,IF($E$21>=600,'Engine emission factors'!$C36,'Engine emission factors'!$B36),IF($E$19=rg,'Engine emission factors'!$E36,IF($E$19=tng,'Engine emission factors'!$D36,IF($E$19=ngr,'Engine emission factors'!$F36,IF($E$19=ngl,'Engine emission factors'!$G36,IF($E$19=ng2l,'Engine emission factors'!$H36,IF($E$19=pro,'Engine emission factors'!$I36,IF($E$19=select,'Engine emission factors'!$AA36))))))))","v":0},0,0]
[null,"Styrene",null,null,null,null,{"$f":"IF($E$19=rd,IF($E$21>=600,'Engine emission factors'!$C37,'Engine emission factors'!$B37),IF($E$19=rg,'Engine emission factors'!$E37,IF($E$19=tng,'Engine emission factors'!$D37,IF($E$19=ngr,'Engine emission factors'!$F37,IF($E$19=ngl,'Engine emission factors'!$G37,IF($E$19=ng2l,'Engine emission factors'!$H37,IF($E$19=pro,'Engine emission factors'!$I37,IF($E$19=select,'Engine emission factors'!$AA37))))))))","v":0},0,0]
[null,"Tetrachloroethane",null,null,null,null,{"$f":"IF($E$19=rd,IF($E$21>=600,'Engine emission factors'!$C38,'Engine emission factors'!$B38),IF($E$19=rg,'Engine emission factors'!$E38,IF($E$19=tng,'Engine emission factors'!$D38,IF($E$19=ngr,'Engine emission factors'!$F38,IF($E$19=ngl,'Engine emission factors'!$G38,IF($E$19=ng2l,'Engine emission factors'!$H38,IF($E$19=pro,'Engine emission factors'!$I38,IF($E$19=select,'Engine emission factors'!$AA38))))))))","v":0},0,0]
[null,"Toluene",null,null,null,null,{"$f":"IF($E$19=rd,IF($E$21>=600,'Engine emission factors'!$C39,'Engine emission factors'!$B39),IF($E$19=rg,'Engine emission factors'!$E39,IF($E$19=tng,'Engine emission factors'!$D39,IF($E$19=ngr,'Engine emission factors'!$F39,IF($E$19=ngl,'Engine emission factors'!$G39,IF($E$19=ng2l,'Engine emission factors'!$H39,IF($E$19=pro,'Engine emission factors'!$I39,IF($E$19=select,'Engine emission factors'!$AA39))))))))","v":0},0,0]
[null,"Vinyl chloride",null,null,null,null,{"$f":"IF($E$19=rd,IF($E$21>=600,'Engine emission factors'!$C40,'Engine emission factors'!$B40),IF($E$19=rg,'Engine emission factors'!$E40,IF($E$19=tng,'Engine emission factors'!$D40,IF($E$19=ngr,'Engine emission factors'!$F40,IF($E$19=ngl,'Engine emission factors'!$G40,IF($E$19=ng2l,'Engine emission factors'!$H40,IF($E$19=pro,'Engine emission factors'!$I40,IF($E$19=select,'Engine emission factors'!$AA40))))))))","v":0},0,0]
[null,"Xylene",null,null,null,null,{"$f":"IF($E$19=rd,IF($E$21>=600,'Engine emission factors'!$C41,'Engine emission factors'!$B41),IF($E$19=rg,'Engine emission factors'!$E41,IF($E$19=tng,'Engine emission factors'!$D41,IF($E$19=ngr,'Engine emission factors'!$F41,IF($E$19=ngl,'Engine emission factors'!$G41,IF($E$19=ng2l,'Engine emission factors'!$H41,IF($E$19=pro,'Engine emission factors'!$I41,IF($E$19=select,'Engine emission factors'!$AA41))))))))","v":0},0,0]
[null,null,null,null,null,"HAP total",null,{"$f":"SUM(H48:H72)","v":0},{"$f":"SUM(I48:I72)","v":0}]
[null,"1 Global Warming Potential from 40 CFR Part 98, Subpart A, Table A-1"]
[null,"2 CO2e = carbon dioxide equivalents"]
[null,"3 Routine = 24 hr/day * 365 day/yr or 8760 hr/yr; Emergency = 500 hr/yr for purposes of calculating potential air emission to identify whether or not a permit is required."]
[null,"4 See information on insignificant activities at Minn. R. 7007.1300 and on the 'Permits & Requirements' tab.",null,null,null,null,"Minn. R. 7007.1300"]

{"sheet":"Engine 2","index":5,"n_rows":77,"n_cols":10,"rows_kept":77,"cut":false,"hidden":false,"merged":[[74,1,74,4],[28,7,29,7],[28,8,29,8],[28,9,29,9],[30,9,31,9],[46,6,46,8],[73,1,73,4],[28,1,29,1],[28,2,29,2],[28,3,29,3],[28,4,29,4],[28,5,29,5],[28,6,29,6],[24,1,24,3],[25,1,25,8],[26,1,26,8],[21,1,21,3],[7,2,7,3],[18,4,18,5],[18,6,18,7],[6,2,6,3],[0,1,0,9],[1,1,1,9],[2,1,2,8],[4,2,4,3],[5,2,5,3]]}
[null,{"$f":"Instructions!O3","v":"p-sbap5-25  •  12/13/23"}]
[null,"Air emissions from internal combustion engines"]
[null,"For each engine, complete one engine tab and include all information in the blue boxes. "]
[]
[null,"Engine designation","Engine 2",null,null,"Date of manufacture",null,"located on nameplate"]
[null,"Make",null,null,null,"Date installed",null,"at the site"]
[null,"Model",null,null,null,"Displacement",null,"liters/cylinder"]
[null,"Electrical output",null,null,"kW","Diesel engine tier","Choose one","if known"]
[]
[null,"Does this engine operate to do any of the following? Select yes or no for each. Go to the 'FAQs' tab for more information."]
[null,"Choose one","Supply power to electric grid in emergency situations (emergency demand response)"]
[null,"Choose one","Supply power to electric grid in non-emergency situations (peak shaving)"]
[null,"Choose one","Other financial arrangement"]
[]
[null,"Does a federal rule apply to this engine? "]
[null,"Choose one","Need help? Use EPA's Regulation Navigation tools for assistance. Go to the 'Federal standards' tab for more information. "]
[]
[null,"Calculate the potential and actual air emissions from this engine"]
[null,null,null,"Engine and fuel type","Choose one"]
[null,null,null,"Engine use","Choose one"]
[null,null,null,{"$f":"IF($E$19='Data validation'!$A$6,\" \",IF(OR($E$19=rd,$E$19=rg),\"Rated mechanical output\",IF(OR($E$19=pro,OR($E$19=ngl,OR($E$19=ngr,OR($E$19=tng,$E$19=ng2l)))),\"Rated fuel input\",\" \")))","v":" "},0,{"$f":"IF($D$21=\" \",\" \",IF($D$21=\"Rated mechanical output\",'Data validation'!$A$24,IF(AND($D$21=\"Rated fuel input\",$E$19=pro),'Data validation'!$A$26,'Data validation'!$A$25)))","v":" "}]
[null,"Choose one to calculate actual emissions",null,null,0,{"$f":"IF($B$22='Data validation'!$B$5,\" \",IF($B$22='Data validation'!$B$6,'Data validation'!$B$11,IF(AND($B$22='Data validation'!$B$7,OR($E$19=tng,OR($E$19=ngl,OR($E$19=ngr,OR($E$19=ng2l))))),'Data validation'!$B$12,IF(AND($B$22='Data validation'!$B$7,OR($E$19=rd,OR($E$19=rg,OR($E$19=pro)))),'Data validation'!$B$13,\" \"))))","v":" "}]
[null,null,null,{"$f":"IF($F$21=\" \",\" \",IF($F$21='Data validation'!$A$24,'Data validation'!$A$29,IF(OR($F$21='Data validation'!$A$25,$F$21='Data validation'!$A$26),'Data validation'!$A$30)))","v":" "},{"$f":"IF(E19='Data validation'!A6,\" \",IF(E19=rd,'Engine emission factors'!F53,IF(E19=rg,'Engine emission factors'!F54,IF(OR(E19=ngl,OR(E19=ngr,OR(E19=tng,E19=NGC2))),'Engine emission factors'!G52,IF(E19=pro,'Engine emission factors'!H55,\" \")))))","v":" "},{"$f":"IF($D$23=\" \",\" \",IF($D$23='Data validation'!$A$29,\"(Btu/HP-hr)\",IF(AND($D$23='Data validation'!$A$30,$E$19=pro),\"(Btu/gal)\",IF($D$23='Data validation'!$A$30,\"(Btu/scf)\"))))","v":" "}]
[null,null,null,{"$f":"IF($E$19='Data validation'!$A$6,\" \",IF($E$19=rd,\"Heat value of fuel\",IF($E$19=rg,\"Heat value of fuel\",\" \")))","v":" "},{"$f":"IF(E19=rd,'Engine emission factors'!H53,IF(E19=rg,'Engine emission factors'!H54,\" \"))","v":" "},{"$f":"IF($E$19='Data validation'!$A$6,\" \",IF($E$19=rd,\"(Btu/gal)\",IF($E$19=rg,\"(Btu/gal)\",\" \")))","v":" "}]
[null,"Sulfur content of the fuel",null,null,{"$f":"IF(E19=rd,\"0.0015\",IF(E19=pro,\"0.54\",IF(E19=tng,\"0.00065\",\"NA\")))","v":"NA"},{"$f":"IF(OR(E19=rd,E19=tng),\"%\",IF(E19=pro,\"gr/100ft3\",\"\"))","v":""}]
[]
[null,"Internal combustion engine potential and actual emissions"]
[null,null,"a","b","c","d","e"]
[null,"Pollutant","GWP1","Engine Rated Output","Actual Annual Throughput","Potential Annual Hours3","Emission Factor","Potential Emissions","Actual Emissions","Insignificant Activity4 Limits"]
[]
[null,null,null,"(MMBtu/hr)","(MMBtu/yr)","(hr/yr)","(lbs/MMBtu)","(ton/yr)","(tons/yr)","(tons/yr)"]
[null,null,null,{"$f":"IF(E19=select,0,IF(OR(E19=rd,E19=rg),(E21*E23/10^6),IF(E19=pro,(E21*E23/10^6),IF(OR(E19=ngl,OR(E19=ngr,OR(E19=tng,E19=NGC2))),(E21*E23/(10^6))))))","v":0},{"$f":"IF(F22='Data validation'!B12,E22,IF(AND(F22='Data validation'!B13,E19=rd),(('Engine emission factors'!H53*E22)/1000000),IF(AND(F22='Data validation'!B13,E19=rg),(('Engine emission factors'!H54*E22)/1000000),IF(AND(F22='Data validation'!B13,E19=pro),(('Engine emission factors'!H55*E22)/1000000),IF(F22='Data validation'!B11,(E22*D32),IF(F22=\" \",0))))))","v":0},{"$f":"IF($E$20=so,0,IF(OR($E$20=Routine,AND($E$20=Emer,$B$12=\"Yes\")),8760,IF($E$20=Emer,500)))","v":0},"by pollutant","(b * d * e) / 2000","(c * e) / 2000"]
[null,"Criteria Air Pollutants",null,null,null,null,null,null,"see engine emission factors tab"]
[null,"PM",null,null,null,null,{"$f":"IF($E$19=rd,IF($E$21>=600,'Engine emission factors'!$C5,'Engine emission factors'!$B5),IF($E$19=rg,'Engine emission factors'!$E5,IF($E$19=tng,'Engine emission factors'!$D5,IF($E$19=ngr,'Engine emission factors'!$F5,IF($E$19=ngl,'Engine emission factors'!$G5,IF($E$19=ng2l,'Engine emission factors'!$H5,IF($E$19=pro,'Engine emission factors'!$I5,IF($E$19=select,'Engine emission factors'!$AA5))))))))","v":0},{"$f":"$D$32*$F$32*$G34/2000","v":0},{"$f":"($E$32*$G34)/2000","v":0},1]
[null,"PM10",null,null,null,null,{"$f":"IF($E$19=rd,IF($E$21>=600,'Engine emission factors'!$C6,'Engine emission factors'!$B6),IF($E$19=rg,'Engine emission factors'!$E6,IF($E$19=tng,'Engine emission factors'!$D6,IF($E$19=ngr,'Engine emission factors'!$F6,IF($E$19=ngl,'Engine emission factors'!$G6,IF($E$19=ng2l,'Engine emission factors'!$H6,IF($E$19=pro,'Engine emission factors'!$I6,IF($E$19=select,'Engine emission factors'!$AA6))))))))","v":0},{"$f":"$D$32*$F$32*$G35/2000","v":0},{"$f":"($E$32*$G35)/2000","v":0},1]
[null,"PM2.5",null,null,null,null,{"$f":"IF($E$19=rd,IF($E$21>=600,'Engine emission factors'!$C7,'Engine emission factors'!$B7),IF($E$19=rg,'Engine emission factors'!$E7,IF($E$19=tng,'Engine emission factors'!$D7,IF($E$19=ngr,'Engine emission factors'!$F7,IF($E$19=ngl,'Engine emission factors'!$G7,IF($E$19=ng2l,'Engine emission factors'!$H7,IF($E$19=pro,'Engine emission factors'!$I7,IF($E$19=select,'Engine emission factors'!$AA7))))))))","v":0},0,0]
[null,"SOx",null,null,null,null,{"$f":"IF($E$19=rd,IF($E$21>=600,'Engine emission factors'!$C8*$E$25,'Engine emission factors'!$B8*$E$25),IF($E$19=rg,'Engine emission factors'!$E8,IF($E$19=tng,'Engine emission factors'!$D8*$E$25,IF($E$19=ngr,'Engine emission factors'!$F8,IF($E$19=ngl,'Engine emission factors'!$G8,IF($E$19=ng2l,'Engine emission factors'!$H8,IF($E$19=pro,'Engine emission factors'!$I8*$E$25,IF($E$19=select,'Engine emission factors'!$AA8))))))))","v":0},0,0,1]
[null,"NOx",null,null,null,null,{"$f":"IF($E$19=rd,IF($E$21>=600,'Engine emission factors'!$C9,'Engine emission factors'!$B9),IF($E$19=rg,'Engine emission factors'!$E9,IF($E$19=tng,'Engine emission factors'!$D9,IF($E$19=ngr,'Engine emission factors'!$F9,IF($E$19=ngl,'Engine emission factors'!$G9,IF($E$19=ng2l,'Engine emission factors'!$H9,IF($E$19=pro,'Engine emission factors'!$I9,IF($E$19=select,'Engine emission factors'!$AA9))))))))","v":0},0,0,1]
[null,"VOC",null,null,null,null,{"$f":"IF($E$19=rd,IF($E$21>=600,'Engine emission factors'!$C10,'Engine emission factors'!$B10),IF($E$19=rg,'Engine emission factors'!$E10,IF($E$19=tng,'Engine emission factors'!$D10,IF($E$19=ngr,'Engine emission factors'!$F10,IF($E$19=ngl,'Engine emission factors'!$G10,IF($E$19=ng2l,'Engine emission factors'!$H10,IF($E$19=pro,'Engine emission factors'!$I10,IF($E$19=select,'Engine emission factors'!$AA10))))))))","v":0},0,0,1]
[null,"CO",null,null,null,null,{"$f":"IF($E$19=rd,IF($E$21>=600,'Engine emission factors'!$C11,'Engine emission factors'!$B11),IF($E$19=rg,'Engine emission factors'!$E11,IF($E$19=tng,'Engine emission factors'!$D11,IF($E$19=ngr,'Engine emission factors'!$F11,IF($E$19=ngl,'Engine emission factors'!$G11,IF($E$19=ng2l,'Engine emission factors'!$H11,IF($E$19=pro,'Engine emission factors'!$I11,IF($E$19=select,'Engine emission factors'!$AA11))))))))","v":0},0,0,2]
[null,"Lead",null,null,null,null,"n/a",0,0]
[null,"Greenhouse Gas Emissions",null,null,null,null,null,null,"Source: 40 CFR 98, Subp. C, Table C-1 and C-2"]
[null,"CO2 2",1,null,null,null,{"$f":"IF($E$19=rd,IF($E$21>=600,'Engine emission factors'!$C13,'Engine emission factors'!$B13),IF($E$19=rg,'Engine emission factors'!$E13,IF($E$19=tng,'Engine emission factors'!$D13,IF($E$19=ngr,'Engine emission factors'!$F13,IF($E$19=ngl,'Engine emission factors'!$G13,IF($E$19=ng2l,'Engine emission factors'!$H13,IF($E$19=pro,'Engine emission factors'!$I13,IF($E$19=select,'Engine emission factors'!$AA13))))))))","v":0},{"$f":"$D$32*$F$32*$G43/2000","v":0},{"$f":"($E$32*$G43)/2000","v":0}]
[null,"CH4 2",25,null,null,null,{"$f":"IF($E$19=rd,IF($E$21>=600,'Engine emission factors'!$C14,'Engine emission factors'!$B14),IF($E$19=rg,'Engine emission factors'!$E14,IF($E$19=tng,'Engine emission factors'!$D14,IF($E$19=ngr,'Engine emission factors'!$F14,IF($E$19=ngl,'Engine emission factors'!$G14,IF($E$19=ng2l,'Engine emission factors'!$H14,IF($E$19=pro,'Engine emission factors'!$I14,IF($E$19=select,'Engine emission factors'!$AA14))))))))","v":0},{"$f":"$D$32*$F$32*$G44/2000","v":0},{"$f":"($E$32*$G44)/2000","v":0}]
[null,"N2O 2",298,null,null,null,{"$f":"IF($E$19=rd,IF($E$21>=600,'Engine emission factors'!$C15,'Engine emission factors'!$B15),IF($E$19=rg,'Engine emission factors'!$E15,IF($E$19=tng,'Engine emission factors'!$D15,IF($E$19=ngr,'Engine emission factors'!$F15,IF($E$19=ngl,'Engine emission factors'!$G15,IF($E$19=ng2l,'Engine emission factors'!$H15,IF($E$19=pro,'Engine emission factors'!$I15,IF($E$19=select,'Engine emission factors'!$Q15))))))))","v":0},{"$f":"$D$32*$F$32*$G45/2000","v":0},{"$f":"($E$32*$G45)/2000","v":0}]
[null,null,null,null,null,"GHG total (CO2e) 2",null,{"$f":"(C43*H43)+(C44*H44)+(C45*H45)","v":0},{"$f":"(C43*I43)+(C44*I44)+(C45*I45)","v":0},1000]
[null,"Hazardous Air Pollutants",null,null,null,null,"see engine emission factors tab"]
[null,"1,1,2,2-tetrachloroethane",null,null,null,null,{"$f":"IF($E$19=rd,IF($E$21>=600,'Engine emission factors'!$C17,'Engine emission factors'!$B17),IF($E$19=rg,'Engine emission factors'!$E17,IF($E$19=tng,'Engine emission factors'!$D17,IF($E$19=ngr,'Engine emission factors'!$F17,IF($E$19=ngl,'Engine emission factors'!$G17,IF($E$19=ng2l,'Engine emission factors'!$H17,IF($E$19=pro,'Engine emission factors'!$I17,IF($E$19=select,'Engine emission factors'!$Q17))))))))","v":0},{"$f":"$D$32*$F$32*$G48/2000","v":0},{"$f":"($E$32*$G48)/2000","v":0}]
[null,"1,1,2-trichloroethane",null,null,null,null,{"$f":"IF($E$19=rd,IF($E$21>=600,'Engine emission factors'!$C18,'Engine emission factors'!$B18),IF($E$19=rg,'Engine emission factors'!$E18,IF($E$19=tng,'Engine emission factors'!$D18,IF($E$19=ngr,'Engine emission factors'!$F18,IF($E$19=ngl,'Engine emission factors'!$G18,IF($E$19=ng2l,'Engine emission factors'!$H18,IF($E$19=pro,'Engine emission factors'!$I18,IF($E$19=select,'Engine emission factors'!$Q18))))))))","v":0},0,{"$f":"($E$32*$G49)/2000","v":0}]
[null,"1,3-butadiene",null,null,null,null,{"$f":"IF($E$19=rd,IF($E$21>=600,'Engine emission factors'!$C19,'Engine emission factors'!$B19),IF($E$19=rg,'Engine emission factors'!$E19,IF($E$19=tng,'Engine emission factors'!$D19,IF($E$19=ngr,'Engine emission factors'!$F19,IF($E$19=ngl,'Engine emission factors'!$G19,IF($E$19=ng2l,'Engine emission factors'!$H19,IF($E$19=pro,'Engine emission factors'!$I19,IF($E$19=select,'Engine emission factors'!$Q19))))))))","v":0},0,0]
[null,"1,3-dichloropropene",null,null,null,null,{"$f":"IF($E$19=rd,IF($E$21>=600,'Engine emission factors'!$C20,'Engine emission factors'!$B20),IF($E$19=rg,'Engine emission factors'!$E20,IF($E$19=tng,'Engine emission factors'!$D20,IF($E$19=ngr,'Engine emission factors'!$F20,IF($E$19=ngl,'Engine emission factors'!$G20,IF($E$19=ng2l,'Engine emission factors'!$H20,IF($E$19=pro,'Engine emission factors'!$I20,IF($E$19=select,'Engine emission factors'!$AA20))))))))","v":0},0,0]
[null,"Acetaldehyde",null,null,null,null,{"$f":"IF($E$19=rd,IF($E$21>=600,'Engine emission factors'!$C21,'Engine emission factors'!$B21),IF($E$19=rg,'Engine emission factors'!$E21,IF($E$19=tng,'Engine emission factors'!$D21,IF($E$19=ngr,'Engine emission factors'!$F21,IF($E$19=ngl,'Engine emission factors'!$G21,IF($E$19=ng2l,'Engine emission factors'!$H21,IF($E$19=pro,'Engine emission factors'!$I21,IF($E$19=select,'Engine emission factors'!$AA21))))))))","v":0},0,0]
[null,"Acrolein",null,null,null,null,{"$f":"IF($E$19=rd,IF($E$21>=600,'Engine emission factors'!$C22,'Engine emission factors'!$B22),IF($E$19=rg,'Engine emission factors'!$E22,IF($E$19=tng,'Engine emission factors'!$D22,IF($E$19=ngr,'Engine emission factors'!$F22,IF($E$19=ngl,'Engine emission factors'!$G22,IF($E$19=ng2l,'Engine emission factors'!$H22,IF($E$19=pro,'Engine emission factors'!$I22,IF($E$19=select,'Engine emission factors'!$AA22))))))))","v":0},0,0]
[null,"Benzene",null,null,null,null,{"$f":"IF($E$19=rd,IF($E$21>=600,'Engine emission factors'!$C23,'Engine emission factors'!$B23),IF($E$19=rg,'Engine emission factors'!$E23,IF($E$19=tng,'Engine emission factors'!$D23,IF($E$19=ngr,'Engine emission factors'!$F23,IF($E$19=ngl,'Engine emission factors'!$G23,IF($E$19=ng2l,'Engine emission factors'!$H23,IF($E$19=pro,'Engine emission factors'!$I23,IF($E$19=select,'Engine emission factors'!$AA23))))))))","v":0},0,0]
[null,"Biphenyl",null,null,null,null,{"$f":"IF($E$19=rd,IF($E$21>=600,'Engine emission factors'!$C24,'Engine emission factors'!$B24),IF($E$19=rg,'Engine emission factors'!$E24,IF($E$19=tng,'Engine emission factors'!$D24,IF($E$19=ngr,'Engine emission factors'!$F24,IF($E$19=ngl,'Engine emission factors'!$G24,IF($E$19=ng2l,'Engine emission factors'!$H24,IF($E$19=pro,'Engine emission factors'!$I24,IF($E$19=select,'Engine emission factors'!$AA24))))))))","v":0},0,0]
[null,"Carbon tetrachloride",null,null,null,null,{"$f":"IF($E$19=rd,IF($E$21>=600,'Engine emission factors'!$C25,'Engine emission factors'!$B25),IF($E$19=rg,'Engine emission factors'!$E25,IF($E$19=tng,'Engine emission factors'!$D25,IF($E$19=ngr,'Engine emission factors'!$F25,IF($E$19=ngl,'Engine emission factors'!$G25,IF($E$19=ng2l,'Engine emission factors'!$H25,IF($E$19=pro,'Engine emission factors'!$I25,IF($E$19=select,'Engine emission factors'!$AA25))))))))","v":0},0,0]
[null,"Chlorobenzene",null,null,null,null,{"$f":"IF($E$19=rd,IF($E$21>=600,'Engine emission factors'!$C26,'Engine emission factors'!$B26),IF($E$19=rg,'Engine emission factors'!$E26,IF($E$19=tng,'Engine emission factors'!$D26,IF($E$19=ngr,'Engine emission factors'!$F26,IF($E$19=ngl,'Engine emission factors'!$G26,IF($E$19=ng2l,'Engine emission factors'!$H26,IF($E$19=pro,'Engine emission factors'!$I26,IF($E$19=select,'Engine emission factors'!$AA26))))))))","v":0},0,0]
[null,"Chloroform",null,null,null,null,{"$f":"IF($E$19=rd,IF($E$21>=600,'Engine emission factors'!$C27,'Engine emission factors'!$B27),IF($E$19=rg,'Engine emission factors'!$E27,IF($E$19=tng,'Engine emission factors'!$D27,IF($E$19=ngr,'Engine emission factors'!$F27,IF($E$19=ngl,'Engine emission factors'!$G27,IF($E$19=ng2l,'Engine emission factors'!$H27,IF($E$19=pro,'Engine emission factors'!$I27,IF($E$19=select,'Engine emission factors'!$AA27))))))))","v":0},0,0]
[null,"Ethylbenzene",null,null,null,null,{"$f":"IF($E$19=rd,IF($E$21>=600,'Engine emission factors'!$C28,'Engine emission factors'!$B28),IF($E$19=rg,'Engine emission factors'!$E28,IF($E$19=tng,'Engine emission factors'!$D28,IF($E$19=ngr,'Engine emission factors'!$F28,IF($E$19=ngl,'Engine emission factors'!$G28,IF($E$19=ng2l,'Engine emission factors'!$H28,IF($E$19=pro,'Engine emission factors'!$I28,IF($E$19=select,'Engine emission factors'!$AA28))))))))","v":0},0,0]
[null,"Ethylene dibromide",null,null,null,null,{"$f":"IF($E$19=rd,IF($E$21>=600,'Engine emission factors'!$C29,'Engine emission factors'!$B29),IF($E$19=rg,'Engine emission factors'!$E29,IF($E$19=tng,'Engine emission factors'!$D29,IF($E$19=ngr,'Engine emission factors'!$F29,IF($E$19=ngl,'Engine emission factors'!$G29,IF($E$19=ng2l,'Engine emission factors'!$H29,IF($E$19=pro,'Engine emission factors'!$I29,IF($E$19=select,'Engine emission factors'!$AA29))))))))","v":0},0,0]
[null,"Formaldehyde",null,null,null,null,{"$f":"IF($E$19=rd,IF($E$21>=600,'Engine emission factors'!$C30,'Engine emission factors'!$B30),IF($E$19=rg,'Engine emission factors'!$E30,IF($E$19=tng,'Engine emission factors'!$D30,IF($E$19=ngr,'Engine emission factors'!$F30,IF($E$19=ngl,'Engine emission factors'!$G30,IF($E$19=ng2l,'Engine emission factors'!$H30,IF($E$19=pro,'Engine emission factors'!$I30,IF($E$19=select,'Engine emission factors'!$AA30))))))))","v":0},0,0]
[null,"Hexane",null,null,null,null,{"$f":"IF($E$19=rd,IF($E$21>=600,'Engine emission factors'!$C31,'Engine emission factors'!$B31),IF($E$19=rg,'Engine emission factors'!$E31,IF($E$19=tng,'Engine emission factors'!$D31,IF($E$19=ngr,'Engine emission factors'!$F31,IF($E$19=ngl,'Engine emission factors'!$G31,IF($E$19=ng2l,'Engine emission factors'!$H31,IF($E$19=pro,'Engine emission factors'!$I31,IF($E$19=select,'Engine emission factors'!$AA31))))))))","v":0},0,0]
[null,"Methanol",null,null,null,null,{"$f":"IF($E$19=rd,IF($E$21>=600,'Engine emission factors'!$C32,'Engine emission factors'!$B32),IF($E$19=rg,'Engine emission factors'!$E32,IF($E$19=tng,'Engine emission factors'!$D32,IF($E$19=ngr,'Engine emission factors'!$F32,IF($E$19=ngl,'Engine emission factors'!$G32,IF($E$19=ng2l,'Engine emission factors'!$H32,IF($E$19=pro,'Engine emission factors'!$I32,IF($E$19=select,'Engine emission factors'!$AA32))))))))","v":0},0,0]
[null,"Methylene chloride",null,null,null,null,{"$f":"IF($E$19=rd,IF($E$21>=600,'Engine emission factors'!$C33,'Engine emission factors'!$B33),IF($E$19=rg,'Engine emission factors'!$E33,IF($E$19=tng,'Engine emission factors'!$D33,IF($E$19=ngr,'Engine emission factors'!$F33,IF($E$19=ngl,'Engine emission factors'!$G33,IF($E$19=ng2l,'Engine emission factors'!$H33,IF($E$19=pro,'Engine emission factors'!$I33,IF($E$19=select,'Engine emission factors'!$AA33))))))))","v":0},0,0]
[null,"Naphthalene",null,null,null,null,{"$f":"IF($E$19=rd,IF($E$21>=600,'Engine emission factors'!$C34,'Engine emission factors'!$B34),IF($E$19=rg,'Engine emission factors'!$E34,IF($E$19=tng,'Engine emission factors'!$D34,IF($E$19=ngr,'Engine emission factors'!$F34,IF($E$19=ngl,'Engine emission factors'!$G34,IF($E$19=ng2l,'Engine emission factors'!$H34,IF($E$19=pro,'Engine emission factors'!$I34,IF($E$19=select,'Engine emission factors'!$AA34))))))))","v":0},0,0]
[null,"PAH",null,null,null,null,{"$f":"IF($E$19=rd,IF($E$21>=600,'Engine emission factors'!$C35,'Engine emission factors'!$B35),IF($E$19=rg,'Engine emission factors'!$E35,IF($E$19=tng,'Engine emission factors'!$D35,IF($E$19=ngr,'Engine emission factors'!$F35,IF($E$19=ngl,'Engine emission factors'!$G35,IF($E$19=ng2l,'Engine emission factors'!$H35,IF($E$19=pro,'Engine emission factors'!$I35,IF($E$19=select,'Engine emission factors'!$AA35))))))))","v":0},0,0]
[null,"Phenol",null,null,null,null,{"$f":"IF($E$19=rd,IF($E$21>=600,'Engine emission factors'!$C36,'Engine emission factors'!$B36),IF($E$19=rg,'Engine emission factors'!$E36,IF($E$19=tng,'Engine emission factors'!$D36,IF($E$19=ngr,'Engine emission factors'!$F36,IF($E$19=ngl,'Engine emission factors'!$G36,IF($E$19=ng2l,'Engine emission factors'!$H36,IF($E$19=pro,'Engine emission factors'!$I36,IF($E$19=select,'Engine emission factors'!$AA36))))))))","v":0},0,0]
[null,"Styrene",null,null,null,null,{"$f":"IF($E$19=rd,IF($E$21>=600,'Engine emission factors'!$C37,'Engine emission factors'!$B37),IF($E$19=rg,'Engine emission factors'!$E37,IF($E$19=tng,'Engine emission factors'!$D37,IF($E$19=ngr,'Engine emission factors'!$F37,IF($E$19=ngl,'Engine emission factors'!$G37,IF($E$19=ng2l,'Engine emission factors'!$H37,IF($E$19=pro,'Engine emission factors'!$I37,IF($E$19=select,'Engine emission factors'!$AA37))))))))","v":0},0,0]
[null,"Tetrachloroethane",null,null,null,null,{"$f":"IF($E$19=rd,IF($E$21>=600,'Engine emission factors'!$C38,'Engine emission factors'!$B38),IF($E$19=rg,'Engine emission factors'!$E38,IF($E$19=tng,'Engine emission factors'!$D38,IF($E$19=ngr,'Engine emission factors'!$F38,IF($E$19=ngl,'Engine emission factors'!$G38,IF($E$19=ng2l,'Engine emission factors'!$H38,IF($E$19=pro,'Engine emission factors'!$I38,IF($E$19=select,'Engine emission factors'!$AA38))))))))","v":0},0,0]
[null,"Toluene",null,null,null,null,{"$f":"IF($E$19=rd,IF($E$21>=600,'Engine emission factors'!$C39,'Engine emission factors'!$B39),IF($E$19=rg,'Engine emission factors'!$E39,IF($E$19=tng,'Engine emission factors'!$D39,IF($E$19=ngr,'Engine emission factors'!$F39,IF($E$19=ngl,'Engine emission factors'!$G39,IF($E$19=ng2l,'Engine emission factors'!$H39,IF($E$19=pro,'Engine emission factors'!$I39,IF($E$19=select,'Engine emission factors'!$AA39))))))))","v":0},0,0]
[null,"Vinyl chloride",null,null,null,null,{"$f":"IF($E$19=rd,IF($E$21>=600,'Engine emission factors'!$C40,'Engine emission factors'!$B40),IF($E$19=rg,'Engine emission factors'!$E40,IF($E$19=tng,'Engine emission factors'!$D40,IF($E$19=ngr,'Engine emission factors'!$F40,IF($E$19=ngl,'Engine emission factors'!$G40,IF($E$19=ng2l,'Engine emission factors'!$H40,IF($E$19=pro,'Engine emission factors'!$I40,IF($E$19=select,'Engine emission factors'!$AA40))))))))","v":0},0,0]
[null,"Xylene",null,null,null,null,{"$f":"IF($E$19=rd,IF($E$21>=600,'Engine emission factors'!$C41,'Engine emission factors'!$B41),IF($E$19=rg,'Engine emission factors'!$E41,IF($E$19=tng,'Engine emission factors'!$D41,IF($E$19=ngr,'Engine emission factors'!$F41,IF($E$19=ngl,'Engine emission factors'!$G41,IF($E$19=ng2l,'Engine emission factors'!$H41,IF($E$19=pro,'Engine emission factors'!$I41,IF($E$19=select,'Engine emission factors'!$AA41))))))))","v":0},0,0]
[null,null,null,null,null,"HAP total",null,{"$f":"SUM(H48:H72)","v":0},{"$f":"SUM(I48:I72)","v":0}]
[null,"1 Global Warming Potential from 40 CFR Part 98, Subpart A, Table A-1"]
[null,"2 CO2e = carbon dioxide equivalents"]
[null,"3 Routine = 24 hr/day * 365 day/yr or 8760 hr/yr; Emergency = 500 hr/yr for purposes of calculating potential air emission to identify whether or not a permit is required."]
[null,"4 See information on insignificant activities at Minn. R. 7007.1300 and on the 'Permits & Requirements' tab.",null,null,null,null,"Minn. R. 7007.1300"]

{"sheet":"Engine 3","index":6,"n_rows":77,"n_cols":10,"rows_kept":77,"cut":false,"hidden":false,"merged":[[74,1,74,4],[28,7,29,7],[28,8,29,8],[28,9,29,9],[30,9,31,9],[46,6,46,8],[73,1,73,4],[28,1,29,1],[28,2,29,2],[28,3,29,3],[28,4,29,4],[28,5,29,5],[28,6,29,6],[24,1,24,3],[24,5,24,8],[25,1,25,8],[26,1,26,8],[21,1,21,3],[7,2,7,3],[18,4,18,5],[18,6,18,7],[0,1,0,9],[1,1,1,9],[2,1,2,8],[4,2,4,3],[5,2,5,3],[6,2,6,3]]}
[null,{"$f":"Instructions!O3","v":"p-sbap5-25  •  12/13/23"}]
[null,"Air emissions from internal combustion engines"]
[null,"For each engine, complete one engine tab and include all information in the blue boxes. "]
[]
[null,"Engine designation","Engine 3",null,null,"Date of manufacture",null,"located on nameplate"]
[null,"Make",null,null,null,"Date installed",null,"at the site"]
[null,"Model",null,null,null,"Displacement",null,"liters/cylinder"]
[null,"Electrical output",null,null,"kW","Diesel engine tier","Choose one","if known"]
[]
[null,"Does this engine operate to do any of the following? Select yes or no for each. Go to the 'FAQs' tab for more information."]
[null,"Choose one","Supply power to electric grid in emergency situations (emergency demand response)"]
[null,"Choose one","Supply power to electric grid in non-emergency situations (peak shaving)"]
[null,"Choose one","Other financial arrangement"]
[]
[null,"Does a federal rule apply to this engine? "]
[null,"Choose one","Need help? Use EPA's Regulation Navigation tools for assistance. Go to the 'Federal standards' tab for more information. "]
[]
[null,"Calculate the potential and actual air emissions from this engine"]
[null,null,null,"Engine and fuel type","Choose one"]
[null,null,null,"Engine use","Choose one"]
[null,null,null,{"$f":"IF($E$19='Data validation'!$A$6,\" \",IF(OR($E$19=rd,$E$19=rg),\"Rated mechanical output\",IF(OR($E$19=pro,OR($E$19=ngl,OR($E$19=ngr,OR($E$19=tng,$E$19=ng2l)))),\"Rated fuel input\",\" \")))","v":" "},0,{"$f":"IF($D$21=\" \",\" \",IF($D$21=\"Rated mechanical output\",'Data validation'!$A$24,IF(AND($D$21=\"Rated fuel input\",$E$19=pro),'Data validation'!$A$26,'Data validation'!$A$25)))","v":" "}]
[null,"Choose one to calculate actual emissions",null,null,0,{"$f":"IF($B$22='Data validation'!$B$5,\" \",IF($B$22='Data validation'!$B$6,'Data validation'!$B$11,IF(AND($B$22='Data validation'!$B$7,OR($E$19=tng,OR($E$19=ngl,OR($E$19=ngr,OR($E$19=ng2l))))),'Data validation'!$B$12,IF(AND($B$22='Data validation'!$B$7,OR($E$19=rd,OR($E$19=rg,OR($E$19=pro)))),'Data validation'!$B$13,\" \"))))","v":" "}]
[null,null,null,{"$f":"IF($F$21=\" \",\" \",IF($F$21='Data validation'!$A$24,'Data validation'!$A$29,IF(OR($F$21='Data validation'!$A$25,$F$21='Data validation'!$A$26),'Data validation'!$A$30)))","v":" "},{"$f":"IF(E19='Data validation'!A6,\" \",IF(E19=rd,'Engine emission factors'!F53,IF(E19=rg,'Engine emission factors'!F54,IF(OR(E19=ngl,OR(E19=ngr,OR(E19=tng,E19=NGC2))),'Engine emission factors'!G52,IF(E19=pro,'Engine emission factors'!H55,\" \")))))","v":" "},{"$f":"IF($D$23=\" \",\" \",IF($D$23='Data validation'!$A$29,\"(Btu/HP-hr)\",IF(AND($D$23='Data validation'!$A$30,$E$19=pro),\"(Btu/gal)\",IF($D$23='Data validation'!$A$30,\"(Btu/scf)\"))))","v":" "}]
[null,null,null,{"$f":"IF($E$19='Data validation'!$A$6,\" \",IF($E$19=rd,\"Heat value of fuel\",IF($E$19=rg,\"Heat value of fuel\",\" \")))","v":" "},{"$f":"IF(E19=rd,'Engine emission factors'!H53,IF(E19=rg,'Engine emission factors'!H54,\" \"))","v":" "},{"$f":"IF($E$19='Data validation'!$A$6,\" \",IF($E$19=rd,\"(Btu/gal)\",IF($E$19=rg,\"(Btu/gal)\",\" \")))","v":" "}]
[null,"Sulfur content of the fuel",null,null,{"$f":"IF(E19=rd,\"0.0015\",IF(E19=pro,\"0.54\",IF(E19=tng,\"0.00065\",\"NA\")))","v":"NA"},{"$f":"IF(OR(E19=rd,E19=tng),\"%\",IF(E19=pro,\"gr/100ft3\",\"\"))","v":""}]
[]
[null,"Internal combustion engine potential and actual emissions"]
[null,null,"a","b","c","d","e"]
[null,"Pollutant","GWP1","Engine Rated Output","Actual Annual Throughput","Potential Annual Hours3","Emission Factor","Potential Emissions","Actual Emissions","Insignificant Activity4 Limits"]
[]
[null,null,null,"(MMBtu/hr)","(MMBtu/yr)","(hr/yr)","(lbs/MMBtu)","(ton/yr)","(tons/yr)","(tons/yr)"]
[null,null,null,{"$f":"IF(E19=select,0,IF(OR(E19=rd,E19=rg),(E21*E23/10^6),IF(E19=pro,(E21*E23/10^6),IF(OR(E19=ngl,OR(E19=ngr,OR(E19=tng,E19=NGC2))),(E21*E23/(10^6))))))","v":0},{"$f":"IF(F22='Data validation'!B12,E22,IF(AND(F22='Data validation'!B13,E19=rd),(('Engine emission factors'!H53*E22)/1000000),IF(AND(F22='Data validation'!B13,E19=rg),(('Engine emission factors'!H54*E22)/1000000),IF(AND(F22='Data validation'!B13,E19=pro),(('Engine emission factors'!H55*E22)/1000000),IF(F22='Data validation'!B11,(E22*D32),IF(F22=\" \",0))))))","v":0},{"$f":"IF($E$20=so,0,IF(OR($E$20=Routine,AND($E$20=Emer,$B$12=\"Yes\")),8760,IF($E$20=Emer,500)))","v":0},"by pollutant","(b * d * e) / 2000","(c * e) / 2000"]
[null,"Criteria Air Pollutants",null,null,null,null,null,null,"see engine emission factors tab"]
[null,"PM",null,null,null,null,{"$f":"IF($E$19=rd,IF($E$21>=600,'Engine emission factors'!$C5,'Engine emission factors'!$B5),IF($E$19=rg,'Engine emission factors'!$E5,IF($E$19=tng,'Engine emission factors'!$D5,IF($E$19=ngr,'Engine emission factors'!$F5,IF($E$19=ngl,'Engine emission factors'!$G5,IF($E$19=ng2l,'Engine emission factors'!$H5,IF($E$19=pro,'Engine emission factors'!$I5,IF($E$19=select,'Engine emission factors'!$AA5))))))))","v":0},{"$f":"$D$32*$F$32*$G34/2000","v":0},{"$f":"($E$32*$G34)/2000","v":0},1]
[null,"PM10",null,null,null,null,{"$f":"IF($E$19=rd,IF($E$21>=600,'Engine emission factors'!$C6,'Engine emission factors'!$B6),IF($E$19=rg,'Engine emission factors'!$E6,IF($E$19=tng,'Engine emission factors'!$D6,IF($E$19=ngr,'Engine emission factors'!$F6,IF($E$19=ngl,'Engine emission factors'!$G6,IF($E$19=ng2l,'Engine emission factors'!$H6,IF($E$19=pro,'Engine emission factors'!$I6,IF($E$19=select,'Engine emission factors'!$AA6))))))))","v":0},{"$f":"$D$32*$F$32*$G35/2000","v":0},{"$f":"($E$32*$G35)/2000","v":0},1]
[null,"PM2.5",null,null,null,null,{"$f":"IF($E$19=rd,IF($E$21>=600,'Engine emission factors'!$C7,'Engine emission factors'!$B7),IF($E$19=rg,'Engine emission factors'!$E7,IF($E$19=tng,'Engine emission factors'!$D7,IF($E$19=ngr,'Engine emission factors'!$F7,IF($E$19=ngl,'Engine emission factors'!$G7,IF($E$19=ng2l,'Engine emission factors'!$H7,IF($E$19=pro,'Engine emission factors'!$I7,IF($E$19=select,'Engine emission factors'!$AA7))))))))","v":0},0,0]
[null,"SOx",null,null,null,null,{"$f":"IF($E$19=rd,IF($E$21>=600,'Engine emission factors'!$C8*$E$25,'Engine emission factors'!$B8*$E$25),IF($E$19=rg,'Engine emission factors'!$E8,IF($E$19=tng,'Engine emission factors'!$D8*$E$25,IF($E$19=ngr,'Engine emission factors'!$F8,IF($E$19=ngl,'Engine emission factors'!$G8,IF($E$19=ng2l,'Engine emission factors'!$H8,IF($E$19=pro,'Engine emission factors'!$I8*$E$25,IF($E$19=select,'Engine emission factors'!$AA8))))))))","v":0},0,0,1]
[null,"NOx",null,null,null,null,{"$f":"IF($E$19=rd,IF($E$21>=600,'Engine emission factors'!$C9,'Engine emission factors'!$B9),IF($E$19=rg,'Engine emission factors'!$E9,IF($E$19=tng,'Engine emission factors'!$D9,IF($E$19=ngr,'Engine emission factors'!$F9,IF($E$19=ngl,'Engine emission factors'!$G9,IF($E$19=ng2l,'Engine emission factors'!$H9,IF($E$19=pro,'Engine emission factors'!$I9,IF($E$19=select,'Engine emission factors'!$AA9))))))))","v":0},0,0,1]
[null,"VOC",null,null,null,null,{"$f":"IF($E$19=rd,IF($E$21>=600,'Engine emission factors'!$C10,'Engine emission factors'!$B10),IF($E$19=rg,'Engine emission factors'!$E10,IF($E$19=tng,'Engine emission factors'!$D10,IF($E$19=ngr,'Engine emission factors'!$F10,IF($E$19=ngl,'Engine emission factors'!$G10,IF($E$19=ng2l,'Engine emission factors'!$H10,IF($E$19=pro,'Engine emission factors'!$I10,IF($E$19=select,'Engine emission factors'!$AA10))))))))","v":0},0,0,1]
[null,"CO",null,null,null,null,{"$f":"IF($E$19=rd,IF($E$21>=600,'Engine emission factors'!$C11,'Engine emission factors'!$B11),IF($E$19=rg,'Engine emission factors'!$E11,IF($E$19=tng,'Engine emission factors'!$D11,IF($E$19=ngr,'Engine emission factors'!$F11,IF($E$19=ngl,'Engine emission factors'!$G11,IF($E$19=ng2l,'Engine emission factors'!$H11,IF($E$19=pro,'Engine emission factors'!$I11,IF($E$19=select,'Engine emission factors'!$AA11))))))))","v":0},0,0,2]
[null,"Lead",null,null,null,null,"n/a",0,0]
[null,"Greenhouse Gas Emissions",null,null,null,null,null,null,"Source: 40 CFR 98, Subp. C, Table C-1 and C-2"]
[null,"CO2 2",1,null,null,null,{"$f":"IF($E$19=rd,IF($E$21>=600,'Engine emission factors'!$C13,'Engine emission factors'!$B13),IF($E$19=rg,'Engine emission factors'!$E13,IF($E$19=tng,'Engine emission factors'!$D13,IF($E$19=ngr,'Engine emission factors'!$F13,IF($E$19=ngl,'Engine emission factors'!$G13,IF($E$19=ng2l,'Engine emission factors'!$H13,IF($E$19=pro,'Engine emission factors'!$I13,IF($E$19=select,'Engine emission factors'!$AA13))))))))","v":0},{"$f":"$D$32*$F$32*$G43/2000","v":0},{"$f":"($E$32*$G43)/2000","v":0}]
[null,"CH4 2",25,null,null,null,{"$f":"IF($E$19=rd,IF($E$21>=600,'Engine emission factors'!$C14,'Engine emission factors'!$B14),IF($E$19=rg,'Engine emission factors'!$E14,IF($E$19=tng,'Engine emission factors'!$D14,IF($E$19=ngr,'Engine emission factors'!$F14,IF($E$19=ngl,'Engine emission factors'!$G14,IF($E$19=ng2l,'Engine emission factors'!$H14,IF($E$19=pro,'Engine emission factors'!$I14,IF($E$19=select,'Engine emission factors'!$AA14))))))))","v":0},{"$f":"$D$32*$F$32*$G44/2000","v":0},{"$f":"($E$32*$G44)/2000","v":0}]
[null,"N2O 2",298,null,null,null,{"$f":"IF($E$19=rd,IF($E$21>=600,'Engine emission factors'!$C15,'Engine emission factors'!$B15),IF($E$19=rg,'Engine emission factors'!$E15,IF($E$19=tng,'Engine emission factors'!$D15,IF($E$19=ngr,'Engine emission factors'!$F15,IF($E$19=ngl,'Engine emission factors'!$G15,IF($E$19=ng2l,'Engine emission factors'!$H15,IF($E$19=pro,'Engine emission factors'!$I15,IF($E$19=select,'Engine emission factors'!$Q15))))))))","v":0},{"$f":"$D$32*$F$32*$G45/2000","v":0},{"$f":"($E$32*$G45)/2000","v":0}]
[null,null,null,null,null,"GHG total (CO2e) 2",null,{"$f":"(C43*H43)+(C44*H44)+(C45*H45)","v":0},{"$f":"(C43*I43)+(C44*I44)+(C45*I45)","v":0},1000]
[null,"Hazardous Air Pollutants",null,null,null,null,"see engine emission factors tab"]
[null,"1,1,2,2-tetrachloroethane",null,null,null,null,{"$f":"IF($E$19=rd,IF($E$21>=600,'Engine emission factors'!$C17,'Engine emission factors'!$B17),IF($E$19=rg,'Engine emission factors'!$E17,IF($E$19=tng,'Engine emission factors'!$D17,IF($E$19=ngr,'Engine emission factors'!$F17,IF($E$19=ngl,'Engine emission factors'!$G17,IF($E$19=ng2l,'Engine emission factors'!$H17,IF($E$19=pro,'Engine emission factors'!$I17,IF($E$19=select,'Engine emission factors'!$Q17))))))))","v":0},{"$f":"$D$32*$F$32*$G48/2000","v":0},{"$f":"($E$32*$G48)/2000","v":0}]
[null,"1,1,2-trichloroethane",null,null,null,null,{"$f":"IF($E$19=rd,IF($E$21>=600,'Engine emission factors'!$C18,'Engine emission factors'!$B18),IF($E$19=rg,'Engine emission factors'!$E18,IF($E$19=tng,'Engine emission factors'!$D18,IF($E$19=ngr,'Engine emission factors'!$F18,IF($E$19=ngl,'Engine emission factors'!$G18,IF($E$19=ng2l,'Engine emission factors'!$H18,IF($E$19=pro,'Engine emission factors'!$I18,IF($E$19=select,'Engine emission factors'!$Q18))))))))","v":0},0,{"$f":"($E$32*$G49)/2000","v":0}]
[null,"1,3-butadiene",null,null,null,null,{"$f":"IF($E$19=rd,IF($E$21>=600,'Engine emission factors'!$C19,'Engine emission factors'!$B19),IF($E$19=rg,'Engine emission factors'!$E19,IF($E$19=tng,'Engine emission factors'!$D19,IF($E$19=ngr,'Engine emission factors'!$F19,IF($E$19=ngl,'Engine emission factors'!$G19,IF($E$19=ng2l,'Engine emission factors'!$H19,IF($E$19=pro,'Engine emission factors'!$I19,IF($E$19=select,'Engine emission factors'!$Q19))))))))","v":0},0,0]
[null,"1,3-dichloropropene",null,null,null,null,{"$f":"IF($E$19=rd,IF($E$21>=600,'Engine emission factors'!$C20,'Engine emission factors'!$B20),IF($E$19=rg,'Engine emission factors'!$E20,IF($E$19=tng,'Engine emission factors'!$D20,IF($E$19=ngr,'Engine emission factors'!$F20,IF($E$19=ngl,'Engine emission factors'!$G20,IF($E$19=ng2l,'Engine emission factors'!$H20,IF($E$19=pro,'Engine emission factors'!$I20,IF($E$19=select,'Engine emission factors'!$AA20))))))))","v":0},0,0]
[null,"Acetaldehyde",null,null,null,null,{"$f":"IF($E$19=rd,IF($E$21>=600,'Engine emission factors'!$C21,'Engine emission factors'!$B21),IF($E$19=rg,'Engine emission factors'!$E21,IF($E$19=tng,'Engine emission factors'!$D21,IF($E$19=ngr,'Engine emission factors'!$F21,IF($E$19=ngl,'Engine emission factors'!$G21,IF($E$19=ng2l,'Engine emission factors'!$H21,IF($E$19=pro,'Engine emission factors'!$I21,IF($E$19=select,'Engine emission factors'!$AA21))))))))","v":0},0,0]
[null,"Acrolein",null,null,null,null,{"$f":"IF($E$19=rd,IF($E$21>=600,'Engine emission factors'!$C22,'Engine emission factors'!$B22),IF($E$19=rg,'Engine emission factors'!$E22,IF($E$19=tng,'Engine emission factors'!$D22,IF($E$19=ngr,'Engine emission factors'!$F22,IF($E$19=ngl,'Engine emission factors'!$G22,IF($E$19=ng2l,'Engine emission factors'!$H22,IF($E$19=pro,'Engine emission factors'!$I22,IF($E$19=select,'Engine emission factors'!$AA22))))))))","v":0},0,0]
[null,"Benzene",null,null,null,null,{"$f":"IF($E$19=rd,IF($E$21>=600,'Engine emission factors'!$C23,'Engine emission factors'!$B23),IF($E$19=rg,'Engine emission factors'!$E23,IF($E$19=tng,'Engine emission factors'!$D23,IF($E$19=ngr,'Engine emission factors'!$F23,IF($E$19=ngl,'Engine emission factors'!$G23,IF($E$19=ng2l,'Engine emission factors'!$H23,IF($E$19=pro,'Engine emission factors'!$I23,IF($E$19=select,'Engine emission factors'!$AA23))))))))","v":0},0,0]
[null,"Biphenyl",null,null,null,null,{"$f":"IF($E$19=rd,IF($E$21>=600,'Engine emission factors'!$C24,'Engine emission factors'!$B24),IF($E$19=rg,'Engine emission factors'!$E24,IF($E$19=tng,'Engine emission factors'!$D24,IF($E$19=ngr,'Engine emission factors'!$F24,IF($E$19=ngl,'Engine emission factors'!$G24,IF($E$19=ng2l,'Engine emission factors'!$H24,IF($E$19=pro,'Engine emission factors'!$I24,IF($E$19=select,'Engine emission factors'!$AA24))))))))","v":0},0,0]
[null,"Carbon tetrachloride",null,null,null,null,{"$f":"IF($E$19=rd,IF($E$21>=600,'Engine emission factors'!$C25,'Engine emission factors'!$B25),IF($E$19=rg,'Engine emission factors'!$E25,IF($E$19=tng,'Engine emission factors'!$D25,IF($E$19=ngr,'Engine emission factors'!$F25,IF($E$19=ngl,'Engine emission factors'!$G25,IF($E$19=ng2l,'Engine emission factors'!$H25,IF($E$19=pro,'Engine emission factors'!$I25,IF($E$19=select,'Engine emission factors'!$AA25))))))))","v":0},0,0]
[null,"Chlorobenzene",null,null,null,null,{"$f":"IF($E$19=rd,IF($E$21>=600,'Engine emission factors'!$C26,'Engine emission factors'!$B26),IF($E$19=rg,'Engine emission factors'!$E26,IF($E$19=tng,'Engine emission factors'!$D26,IF($E$19=ngr,'Engine emission factors'!$F26,IF($E$19=ngl,'Engine emission factors'!$G26,IF($E$19=ng2l,'Engine emission factors'!$H26,IF($E$19=pro,'Engine emission factors'!$I26,IF($E$19=select,'Engine emission factors'!$AA26))))))))","v":0},0,0]
[null,"Chloroform",null,null,null,null,{"$f":"IF($E$19=rd,IF($E$21>=600,'Engine emission factors'!$C27,'Engine emission factors'!$B27),IF($E$19=rg,'Engine emission factors'!$E27,IF($E$19=tng,'Engine emission factors'!$D27,IF($E$19=ngr,'Engine emission factors'!$F27,IF($E$19=ngl,'Engine emission factors'!$G27,IF($E$19=ng2l,'Engine emission factors'!$H27,IF($E$19=pro,'Engine emission factors'!$I27,IF($E$19=select,'Engine emission factors'!$AA27))))))))","v":0},0,0]
[null,"Ethylbenzene",null,null,null,null,{"$f":"IF($E$19=rd,IF($E$21>=600,'Engine emission factors'!$C28,'Engine emission factors'!$B28),IF($E$19=rg,'Engine emission factors'!$E28,IF($E$19=tng,'Engine emission factors'!$D28,IF($E$19=ngr,'Engine emission factors'!$F28,IF($E$19=ngl,'Engine emission factors'!$G28,IF($E$19=ng2l,'Engine emission factors'!$H28,IF($E$19=pro,'Engine emission factors'!$I28,IF($E$19=select,'Engine emission factors'!$AA28))))))))","v":0},0,0]
[null,"Ethylene dibromide",null,null,null,null,{"$f":"IF($E$19=rd,IF($E$21>=600,'Engine emission factors'!$C29,'Engine emission factors'!$B29),IF($E$19=rg,'Engine emission factors'!$E29,IF($E$19=tng,'Engine emission factors'!$D29,IF($E$19=ngr,'Engine emission factors'!$F29,IF($E$19=ngl,'Engine emission factors'!$G29,IF($E$19=ng2l,'Engine emission factors'!$H29,IF($E$19=pro,'Engine emission factors'!$I29,IF($E$19=select,'Engine emission factors'!$AA29))))))))","v":0},0,0]
[null,"Formaldehyde",null,null,null,null,{"$f":"IF($E$19=rd,IF($E$21>=600,'Engine emission factors'!$C30,'Engine emission factors'!$B30),IF($E$19=rg,'Engine emission factors'!$E30,IF($E$19=tng,'Engine emission factors'!$D30,IF($E$19=ngr,'Engine emission factors'!$F30,IF($E$19=ngl,'Engine emission factors'!$G30,IF($E$19=ng2l,'Engine emission factors'!$H30,IF($E$19=pro,'Engine emission factors'!$I30,IF($E$19=select,'Engine emission factors'!$AA30))))))))","v":0},0,0]
[null,"Hexane",null,null,null,null,{"$f":"IF($E$19=rd,IF($E$21>=600,'Engine emission factors'!$C31,'Engine emission factors'!$B31),IF($E$19=rg,'Engine emission factors'!$E31,IF($E$19=tng,'Engine emission factors'!$D31,IF($E$19=ngr,'Engine emission factors'!$F31,IF($E$19=ngl,'Engine emission factors'!$G31,IF($E$19=ng2l,'Engine emission factors'!$H31,IF($E$19=pro,'Engine emission factors'!$I31,IF($E$19=select,'Engine emission factors'!$AA31))))))))","v":0},0,0]
[null,"Methanol",null,null,null,null,{"$f":"IF($E$19=rd,IF($E$21>=600,'Engine emission factors'!$C32,'Engine emission factors'!$B32),IF($E$19=rg,'Engine emission factors'!$E32,IF($E$19=tng,'Engine emission factors'!$D32,IF($E$19=ngr,'Engine emission factors'!$F32,IF($E$19=ngl,'Engine emission factors'!$G32,IF($E$19=ng2l,'Engine emission factors'!$H32,IF($E$19=pro,'Engine emission factors'!$I32,IF($E$19=select,'Engine emission factors'!$AA32))))))))","v":0},0,0]
[null,"Methylene chloride",null,null,null,null,{"$f":"IF($E$19=rd,IF($E$21>=600,'Engine emission factors'!$C33,'Engine emission factors'!$B33),IF($E$19=rg,'Engine emission factors'!$E33,IF($E$19=tng,'Engine emission factors'!$D33,IF($E$19=ngr,'Engine emission factors'!$F33,IF($E$19=ngl,'Engine emission factors'!$G33,IF($E$19=ng2l,'Engine emission factors'!$H33,IF($E$19=pro,'Engine emission factors'!$I33,IF($E$19=select,'Engine emission factors'!$AA33))))))))","v":0},0,0]
[null,"Naphthalene",null,null,null,null,{"$f":"IF($E$19=rd,IF($E$21>=600,'Engine emission factors'!$C34,'Engine emission factors'!$B34),IF($E$19=rg,'Engine emission factors'!$E34,IF($E$19=tng,'Engine emission factors'!$D34,IF($E$19=ngr,'Engine emission factors'!$F34,IF($E$19=ngl,'Engine emission factors'!$G34,IF($E$19=ng2l,'Engine emission factors'!$H34,IF($E$19=pro,'Engine emission factors'!$I34,IF($E$19=select,'Engine emission factors'!$AA34))))))))","v":0},0,0]
[null,"PAH",null,null,null,null,{"$f":"IF($E$19=rd,IF($E$21>=600,'Engine emission factors'!$C35,'Engine emission factors'!$B35),IF($E$19=rg,'Engine emission factors'!$E35,IF($E$19=tng,'Engine emission factors'!$D35,IF($E$19=ngr,'Engine emission factors'!$F35,IF($E$19=ngl,'Engine emission factors'!$G35,IF($E$19=ng2l,'Engine emission factors'!$H35,IF($E$19=pro,'Engine emission factors'!$I35,IF($E$19=select,'Engine emission factors'!$AA35))))))))","v":0},0,0]
[null,"Phenol",null,null,null,null,{"$f":"IF($E$19=rd,IF($E$21>=600,'Engine emission factors'!$C36,'Engine emission factors'!$B36),IF($E$19=rg,'Engine emission factors'!$E36,IF($E$19=tng,'Engine emission factors'!$D36,IF($E$19=ngr,'Engine emission factors'!$F36,IF($E$19=ngl,'Engine emission factors'!$G36,IF($E$19=ng2l,'Engine emission factors'!$H36,IF($E$19=pro,'Engine emission factors'!$I36,IF($E$19=select,'Engine emission factors'!$AA36))))))))","v":0},0,0]
[null,"Styrene",null,null,null,null,{"$f":"IF($E$19=rd,IF($E$21>=600,'Engine emission factors'!$C37,'Engine emission factors'!$B37),IF($E$19=rg,'Engine emission factors'!$E37,IF($E$19=tng,'Engine emission factors'!$D37,IF($E$19=ngr,'Engine emission factors'!$F37,IF($E$19=ngl,'Engine emission factors'!$G37,IF($E$19=ng2l,'Engine emission factors'!$H37,IF($E$19=pro,'Engine emission factors'!$I37,IF($E$19=select,'Engine emission factors'!$AA37))))))))","v":0},0,0]
[null,"Tetrachloroethane",null,null,null,null,{"$f":"IF($E$19=rd,IF($E$21>=600,'Engine emission factors'!$C38,'Engine emission factors'!$B38),IF($E$19=rg,'Engine emission factors'!$E38,IF($E$19=tng,'Engine emission factors'!$D38,IF($E$19=ngr,'Engine emission factors'!$F38,IF($E$19=ngl,'Engine emission factors'!$G38,IF($E$19=ng2l,'Engine emission factors'!$H38,IF($E$19=pro,'Engine emission factors'!$I38,IF($E$19=select,'Engine emission factors'!$AA38))))))))","v":0},0,0]
[null,"Toluene",null,null,null,null,{"$f":"IF($E$19=rd,IF($E$21>=600,'Engine emission factors'!$C39,'Engine emission factors'!$B39),IF($E$19=rg,'Engine emission factors'!$E39,IF($E$19=tng,'Engine emission factors'!$D39,IF($E$19=ngr,'Engine emission factors'!$F39,IF($E$19=ngl,'Engine emission factors'!$G39,IF($E$19=ng2l,'Engine emission factors'!$H39,IF($E$19=pro,'Engine emission factors'!$I39,IF($E$19=select,'Engine emission factors'!$AA39))))))))","v":0},0,0]
[null,"Vinyl chloride",null,null,null,null,{"$f":"IF($E$19=rd,IF($E$21>=600,'Engine emission factors'!$C40,'Engine emission factors'!$B40),IF($E$19=rg,'Engine emission factors'!$E40,IF($E$19=tng,'Engine emission factors'!$D40,IF($E$19=ngr,'Engine emission factors'!$F40,IF($E$19=ngl,'Engine emission factors'!$G40,IF($E$19=ng2l,'Engine emission factors'!$H40,IF($E$19=pro,'Engine emission factors'!$I40,IF($E$19=select,'Engine emission factors'!$AA40))))))))","v":0},0,0]
[null,"Xylene",null,null,null,null,{"$f":"IF($E$19=rd,IF($E$21>=600,'Engine emission factors'!$C41,'Engine emission factors'!$B41),IF($E$19=rg,'Engine emission factors'!$E41,IF($E$19=tng,'Engine emission factors'!$D41,IF($E$19=ngr,'Engine emission factors'!$F41,IF($E$19=ngl,'Engine emission factors'!$G41,IF($E$19=ng2l,'Engine emission factors'!$H41,IF($E$19=pro,'Engine emission factors'!$I41,IF($E$19=select,'Engine emission factors'!$AA41))))))))","v":0},0,0]
[null,null,null,null,null,"HAP total",null,{"$f":"SUM(H48:H72)","v":0},{"$f":"SUM(I48:I72)","v":0}]
[null,"1 Global Warming Potential from 40 CFR Part 98, Subpart A, Table A-1"]
[null,"2 CO2e = carbon dioxide equivalents"]
[null,"3 Routine = 24 hr/day * 365 day/yr or 8760 hr/yr; Emergency = 500 hr/yr for purposes of calculating potential air emission to identify whether or not a permit is required."]
[null,"4 See information on insignificant activities at Minn. R. 7007.1300 and on the 'Permits & Requirements' tab.",null,null,null,null,"Minn. R. 7007.1300"]

{"sheet":"Engine 4","index":7,"n_rows":77,"n_cols":10,"rows_kept":77,"cut":false,"hidden":false,"merged":[[74,1,74,4],[28,7,29,7],[28,8,29,8],[28,9,29,9],[30,9,31,9],[46,6,46,8],[73,1,73,4],[28,1,29,1],[28,2,29,2],[28,3,29,3],[28,4,29,4],[28,5,29,5],[28,6,29,6],[24,1,24,3],[24,5,24,8],[25,1,25,8],[26,1,26,8],[21,1,21,3],[7,2,7,3],[18,4,18,5],[18,6,18,7],[0,1,0,9],[1,1,1,9],[2,1,2,8],[4,2,4,3],[5,2,5,3],[6,2,6,3]]}
[null,{"$f":"Instructions!O3","v":"p-sbap5-25  •  12/13/23"}]
[null,"Air emissions from internal combustion engines"]
[null,"For each engine, complete one engine tab and include all information in the blue boxes. "]
[]
[null,"Engine designation","Engine 4",null,null,"Date of manufacture",null,"located on nameplate"]
[null,"Make",null,null,null,"Date installed",null,"at the site"]
[null,"Model",null,null,null,"Displacement",null,"liters/cylinder"]
[null,"Electrical output",null,null,"kW","Diesel engine tier","Choose one","if known"]
[]
[null,"Does this engine operate to do any of the following? Select yes or no for each. Go to the 'FAQs' tab for more information."]
[null,"Choose one","Supply power to electric grid in emergency situations (emergency demand response)"]
[null,"Choose one","Supply power to electric grid in non-emergency situations (peak shaving)"]
[null,"Choose one","Other financial arrangement"]
[]
[null,"Does a federal rule apply to this engine? "]
[null,"Choose one","Need help? Use EPA's Regulation Navigation tools for assistance. Go to the 'Federal standards' tab for more information. "]
[]
[null,"Calculate the potential and actual air emissions from this engine"]
[null,null,null,"Engine and fuel type","Choose one"]
[null,null,null,"Engine use","Choose one"]
[null,null,null,{"$f":"IF($E$19='Data validation'!$A$6,\" \",IF(OR($E$19=rd,$E$19=rg),\"Rated mechanical output\",IF(OR($E$19=pro,OR($E$19=ngl,OR($E$19=ngr,OR($E$19=tng,$E$19=ng2l)))),\"Rated fuel input\",\" \")))","v":" "},0,{"$f":"IF($D$21=\" \",\" \",IF($D$21=\"Rated mechanical output\",'Data validation'!$A$24,IF(AND($D$21=\"Rated fuel input\",$E$19=pro),'Data validation'!$A$26,'Data validation'!$A$25)))","v":" "}]
[null,"Choose one to calculate actual emissions",null,null,0,{"$f":"IF($B$22='Data validation'!$B$5,\" \",IF($B$22='Data validation'!$B$6,'Data validation'!$B$11,IF(AND($B$22='Data validation'!$B$7,OR($E$19=tng,OR($E$19=ngl,OR($E$19=ngr,OR($E$19=ng2l))))),'Data validation'!$B$12,IF(AND($B$22='Data validation'!$B$7,OR($E$19=rd,OR($E$19=rg,OR($E$19=pro)))),'Data validation'!$B$13,\" \"))))","v":" "}]
[null,null,null,{"$f":"IF($F$21=\" \",\" \",IF($F$21='Data validation'!$A$24,'Data validation'!$A$29,IF(OR($F$21='Data validation'!$A$25,$F$21='Data validation'!$A$26),'Data validation'!$A$30)))","v":" "},{"$f":"IF(E19='Data validation'!A6,\" \",IF(E19=rd,'Engine emission factors'!F53,IF(E19=rg,'Engine emission factors'!F54,IF(OR(E19=ngl,OR(E19=ngr,OR(E19=tng,E19=NGC2))),'Engine emission factors'!G52,IF(E19=pro,'Engine emission factors'!H55,\" \")))))","v":" "},{"$f":"IF($D$23=\" \",\" \",IF($D$23='Data validation'!$A$29,\"(Btu/HP-hr)\",IF(AND($D$23='Data validation'!$A$30,$E$19=pro),\"(Btu/gal)\",IF($D$23='Data validation'!$A$30,\"(Btu/scf)\"))))","v":" "}]
[null,null,null,{"$f":"IF($E$19='Data validation'!$A$6,\" \",IF($E$19=rd,\"Heat value of fuel\",IF($E$19=rg,\"Heat value of fuel\",\" \")))","v":" "},{"$f":"IF(E19=rd,'Engine emission factors'!H53,IF(E19=rg,'Engine emission factors'!H54,\" \"))","v":" "},{"$f":"IF($E$19='Data validation'!$A$6,\" \",IF($E$19=rd,\"(Btu/gal)\",IF($E$19=rg,\"(Btu/gal)\",\" \")))","v":" "}]
[null,"Sulfur content of the fuel",null,null,{"$f":"IF(E19=rd,\"0.0015\",IF(E19=pro,\"0.54\",IF(E19=tng,\"0.00065\",\"NA\")))","v":"NA"},{"$f":"IF(OR(E19=rd,E19=tng),\"%\",IF(E19=pro,\"gr/100ft3\",\"\"))","v":""}]
[]
[null,"Internal combustion engine potential and actual emissions"]
[null,null,"a","b","c","d","e"]
[null,"Pollutant","GWP1","Engine Rated Output","Actual Annual Throughput","Potential Annual Hours3","Emission Factor","Potential Emissions","Actual Emissions","Insignificant Activity4 Limits"]
[]
[null,null,null,"(MMBtu/hr)","(MMBtu/yr)","(hr/yr)","(lbs/MMBtu)","(ton/yr)","(tons/yr)","(tons/yr)"]
[null,null,null,{"$f":"IF(E19=select,0,IF(OR(E19=rd,E19=rg),(E21*E23/10^6),IF(E19=pro,(E21*E23/10^6),IF(OR(E19=ngl,OR(E19=ngr,OR(E19=tng,E19=NGC2))),(E21*E23/(10^6))))))","v":0},{"$f":"IF(F22='Data validation'!B12,E22,IF(AND(F22='Data validation'!B13,E19=rd),(('Engine emission factors'!H53*E22)/1000000),IF(AND(F22='Data validation'!B13,E19=rg),(('Engine emission factors'!H54*E22)/1000000),IF(AND(F22='Data validation'!B13,E19=pro),(('Engine emission factors'!H55*E22)/1000000),IF(F22='Data validation'!B11,(E22*D32),IF(F22=\" \",0))))))","v":0},{"$f":"IF($E$20=so,0,IF(OR($E$20=Routine,AND($E$20=Emer,$B$12=\"Yes\")),8760,IF($E$20=Emer,500)))","v":0},"by pollutant","(b * d * e) / 2000","(c * e) / 2000"]
[null,"Criteria Air Pollutants",null,null,null,null,null,null,"see engine emission factors tab"]
[null,"PM",null,null,null,null,{"$f":"IF($E$19=rd,IF($E$21>=600,'Engine emission factors'!$C5,'Engine emission factors'!$B5),IF($E$19=rg,'Engine emission factors'!$E5,IF($E$19=tng,'Engine emission factors'!$D5,IF($E$19=ngr,'Engine emission factors'!$F5,IF($E$19=ngl,'Engine emission factors'!$G5,IF($E$19=ng2l,'Engine emission factors'!$H5,IF($E$19=pro,'Engine emission factors'!$I5,IF($E$19=select,'Engine emission factors'!$AA5))))))))","v":0},{"$f":"$D$32*$F$32*$G34/2000","v":0},{"$f":"($E$32*$G34)/2000","v":0},1]
[null,"PM10",null,null,null,null,{"$f":"IF($E$19=rd,IF($E$21>=600,'Engine emission factors'!$C6,'Engine emission factors'!$B6),IF($E$19=rg,'Engine emission factors'!$E6,IF($E$19=tng,'Engine emission factors'!$D6,IF($E$19=ngr,'Engine emission factors'!$F6,IF($E$19=ngl,'Engine emission factors'!$G6,IF($E$19=ng2l,'Engine emission factors'!$H6,IF($E$19=pro,'Engine emission factors'!$I6,IF($E$19=select,'Engine emission factors'!$AA6))))))))","v":0},{"$f":"$D$32*$F$32*$G35/2000","v":0},{"$f":"($E$32*$G35)/2000","v":0},1]
[null,"PM2.5",null,null,null,null,{"$f":"IF($E$19=rd,IF($E$21>=600,'Engine emission factors'!$C7,'Engine emission factors'!$B7),IF($E$19=rg,'Engine emission factors'!$E7,IF($E$19=tng,'Engine emission factors'!$D7,IF($E$19=ngr,'Engine emission factors'!$F7,IF($E$19=ngl,'Engine emission factors'!$G7,IF($E$19=ng2l,'Engine emission factors'!$H7,IF($E$19=pro,'Engine emission factors'!$I7,IF($E$19=select,'Engine emission factors'!$AA7))))))))","v":0},0,0]
[null,"SOx",null,null,null,null,{"$f":"IF($E$19=rd,IF($E$21>=600,'Engine emission factors'!$C8*$E$25,'Engine emission factors'!$B8*$E$25),IF($E$19=rg,'Engine emission factors'!$E8,IF($E$19=tng,'Engine emission factors'!$D8*$E$25,IF($E$19=ngr,'Engine emission factors'!$F8,IF($E$19=ngl,'Engine emission factors'!$G8,IF($E$19=ng2l,'Engine emission factors'!$H8,IF($E$19=pro,'Engine emission factors'!$I8*$E$25,IF($E$19=select,'Engine emission factors'!$AA8))))))))","v":0},0,0,1]
[null,"NOx",null,null,null,null,{"$f":"IF($E$19=rd,IF($E$21>=600,'Engine emission factors'!$C9,'Engine emission factors'!$B9),IF($E$19=rg,'Engine emission factors'!$E9,IF($E$19=tng,'Engine emission factors'!$D9,IF($E$19=ngr,'Engine emission factors'!$F9,IF($E$19=ngl,'Engine emission factors'!$G9,IF($E$19=ng2l,'Engine emission factors'!$H9,IF($E$19=pro,'Engine emission factors'!$I9,IF($E$19=select,'Engine emission factors'!$AA9))))))))","v":0},0,0,1]
[null,"VOC",null,null,null,null,{"$f":"IF($E$19=rd,IF($E$21>=600,'Engine emission factors'!$C10,'Engine emission factors'!$B10),IF($E$19=rg,'Engine emission factors'!$E10,IF($E$19=tng,'Engine emission factors'!$D10,IF($E$19=ngr,'Engine emission factors'!$F10,IF($E$19=ngl,'Engine emission factors'!$G10,IF($E$19=ng2l,'Engine emission factors'!$H10,IF($E$19=pro,'Engine emission factors'!$I10,IF($E$19=select,'Engine emission factors'!$AA10))))))))","v":0},0,0,1]
[null,"CO",null,null,null,null,{"$f":"IF($E$19=rd,IF($E$21>=600,'Engine emission factors'!$C11,'Engine emission factors'!$B11),IF($E$19=rg,'Engine emission factors'!$E11,IF($E$19=tng,'Engine emission factors'!$D11,IF($E$19=ngr,'Engine emission factors'!$F11,IF($E$19=ngl,'Engine emission factors'!$G11,IF($E$19=ng2l,'Engine emission factors'!$H11,IF($E$19=pro,'Engine emission factors'!$I11,IF($E$19=select,'Engine emission factors'!$AA11))))))))","v":0},0,0,2]
[null,"Lead",null,null,null,null,"n/a",0,0]
[null,"Greenhouse Gas Emissions",null,null,null,null,null,null,"Source: 40 CFR 98, Subp. C, Table C-1 and C-2"]
[null,"CO2 2",1,null,null,null,{"$f":"IF($E$19=rd,IF($E$21>=600,'Engine emission factors'!$C13,'Engine emission factors'!$B13),IF($E$19=rg,'Engine emission factors'!$E13,IF($E$19=tng,'Engine emission factors'!$D13,IF($E$19=ngr,'Engine emission factors'!$F13,IF($E$19=ngl,'Engine emission factors'!$G13,IF($E$19=ng2l,'Engine emission factors'!$H13,IF($E$19=pro,'Engine emission factors'!$I13,IF($E$19=select,'Engine emission factors'!$AA13))))))))","v":0},{"$f":"$D$32*$F$32*$G43/2000","v":0},{"$f":"($E$32*$G43)/2000","v":0}]
[null,"CH4 2",25,null,null,null,{"$f":"IF($E$19=rd,IF($E$21>=600,'Engine emission factors'!$C14,'Engine emission factors'!$B14),IF($E$19=rg,'Engine emission factors'!$E14,IF($E$19=tng,'Engine emission factors'!$D14,IF($E$19=ngr,'Engine emission factors'!$F14,IF($E$19=ngl,'Engine emission factors'!$G14,IF($E$19=ng2l,'Engine emission factors'!$H14,IF($E$19=pro,'Engine emission factors'!$I14,IF($E$19=select,'Engine emission factors'!$AA14))))))))","v":0},{"$f":"$D$32*$F$32*$G44/2000","v":0},{"$f":"($E$32*$G44)/2000","v":0}]
[null,"N2O 2",298,null,null,null,{"$f":"IF($E$19=rd,IF($E$21>=600,'Engine emission factors'!$C15,'Engine emission factors'!$B15),IF($E$19=rg,'Engine emission factors'!$E15,IF($E$19=tng,'Engine emission factors'!$D15,IF($E$19=ngr,'Engine emission factors'!$F15,IF($E$19=ngl,'Engine emission factors'!$G15,IF($E$19=ng2l,'Engine emission factors'!$H15,IF($E$19=pro,'Engine emission factors'!$I15,IF($E$19=select,'Engine emission factors'!$Q15))))))))","v":0},{"$f":"$D$32*$F$32*$G45/2000","v":0},{"$f":"($E$32*$G45)/2000","v":0}]
[null,null,null,null,null,"GHG total (CO2e) 2",null,{"$f":"(C43*H43)+(C44*H44)+(C45*H45)","v":0},{"$f":"(C43*I43)+(C44*I44)+(C45*I45)","v":0},1000]
[null,"Hazardous Air Pollutants",null,null,null,null,"see engine emission factors tab"]
[null,"1,1,2,2-tetrachloroethane",null,null,null,null,{"$f":"IF($E$19=rd,IF($E$21>=600,'Engine emission factors'!$C17,'Engine emission factors'!$B17),IF($E$19=rg,'Engine emission factors'!$E17,IF($E$19=tng,'Engine emission factors'!$D17,IF($E$19=ngr,'Engine emission factors'!$F17,IF($E$19=ngl,'Engine emission factors'!$G17,IF($E$19=ng2l,'Engine emission factors'!$H17,IF($E$19=pro,'Engine emission factors'!$I17,IF($E$19=select,'Engine emission factors'!$Q17))))))))","v":0},{"$f":"$D$32*$F$32*$G48/2000","v":0},{"$f":"($E$32*$G48)/2000","v":0}]
[null,"1,1,2-trichloroethane",null,null,null,null,{"$f":"IF($E$19=rd,IF($E$21>=600,'Engine emission factors'!$C18,'Engine emission factors'!$B18),IF($E$19=rg,'Engine emission factors'!$E18,IF($E$19=tng,'Engine emission factors'!$D18,IF($E$19=ngr,'Engine emission factors'!$F18,IF($E$19=ngl,'Engine emission factors'!$G18,IF($E$19=ng2l,'Engine emission factors'!$H18,IF($E$19=pro,'Engine emission factors'!$I18,IF($E$19=select,'Engine emission factors'!$Q18))))))))","v":0},0,{"$f":"($E$32*$G49)/2000","v":0}]
[null,"1,3-butadiene",null,null,null,null,{"$f":"IF($E$19=rd,IF($E$21>=600,'Engine emission factors'!$C19,'Engine emission factors'!$B19),IF($E$19=rg,'Engine emission factors'!$E19,IF($E$19=tng,'Engine emission factors'!$D19,IF($E$19=ngr,'Engine emission factors'!$F19,IF($E$19=ngl,'Engine emission factors'!$G19,IF($E$19=ng2l,'Engine emission factors'!$H19,IF($E$19=pro,'Engine emission factors'!$I19,IF($E$19=select,'Engine emission factors'!$Q19))))))))","v":0},0,0]
[null,"1,3-dichloropropene",null,null,null,null,{"$f":"IF($E$19=rd,IF($E$21>=600,'Engine emission factors'!$C20,'Engine emission factors'!$B20),IF($E$19=rg,'Engine emission factors'!$E20,IF($E$19=tng,'Engine emission factors'!$D20,IF($E$19=ngr,'Engine emission factors'!$F20,IF($E$19=ngl,'Engine emission factors'!$G20,IF($E$19=ng2l,'Engine emission factors'!$H20,IF($E$19=pro,'Engine emission factors'!$I20,IF($E$19=select,'Engine emission factors'!$AA20))))))))","v":0},0,0]
[null,"Acetaldehyde",null,null,null,null,{"$f":"IF($E$19=rd,IF($E$21>=600,'Engine emission factors'!$C21,'Engine emission factors'!$B21),IF($E$19=rg,'Engine emission factors'!$E21,IF($E$19=tng,'Engine emission factors'!$D21,IF($E$19=ngr,'Engine emission factors'!$F21,IF($E$19=ngl,'Engine emission factors'!$G21,IF($E$19=ng2l,'Engine emission factors'!$H21,IF($E$19=pro,'Engine emission factors'!$I21,IF($E$19=select,'Engine emission factors'!$AA21))))))))","v":0},0,0]
[null,"Acrolein",null,null,null,null,{"$f":"IF($E$19=rd,IF($E$21>=600,'Engine emission factors'!$C22,'Engine emission factors'!$B22),IF($E$19=rg,'Engine emission factors'!$E22,IF($E$19=tng,'Engine emission factors'!$D22,IF($E$19=ngr,'Engine emission factors'!$F22,IF($E$19=ngl,'Engine emission factors'!$G22,IF($E$19=ng2l,'Engine emission factors'!$H22,IF($E$19=pro,'Engine emission factors'!$I22,IF($E$19=select,'Engine emission factors'!$AA22))))))))","v":0},0,0]
[null,"Benzene",null,null,null,null,{"$f":"IF($E$19=rd,IF($E$21>=600,'Engine emission factors'!$C23,'Engine emission factors'!$B23),IF($E$19=rg,'Engine emission factors'!$E23,IF($E$19=tng,'Engine emission factors'!$D23,IF($E$19=ngr,'Engine emission factors'!$F23,IF($E$19=ngl,'Engine emission factors'!$G23,IF($E$19=ng2l,'Engine emission factors'!$H23,IF($E$19=pro,'Engine emission factors'!$I23,IF($E$19=select,'Engine emission factors'!$AA23))))))))","v":0},0,0]
[null,"Biphenyl",null,null,null,null,{"$f":"IF($E$19=rd,IF($E$21>=600,'Engine emission factors'!$C24,'Engine emission factors'!$B24),IF($E$19=rg,'Engine emission factors'!$E24,IF($E$19=tng,'Engine emission factors'!$D24,IF($E$19=ngr,'Engine emission factors'!$F24,IF($E$19=ngl,'Engine emission factors'!$G24,IF($E$19=ng2l,'Engine emission factors'!$H24,IF($E$19=pro,'Engine emission factors'!$I24,IF($E$19=select,'Engine emission factors'!$AA24))))))))","v":0},0,0]
[null,"Carbon tetrachloride",null,null,null,null,{"$f":"IF($E$19=rd,IF($E$21>=600,'Engine emission factors'!$C25,'Engine emission factors'!$B25),IF($E$19=rg,'Engine emission factors'!$E25,IF($E$19=tng,'Engine emission factors'!$D25,IF($E$19=ngr,'Engine emission factors'!$F25,IF($E$19=ngl,'Engine emission factors'!$G25,IF($E$19=ng2l,'Engine emission factors'!$H25,IF($E$19=pro,'Engine emission factors'!$I25,IF($E$19=select,'Engine emission factors'!$AA25))))))))","v":0},0,0]
[null,"Chlorobenzene",null,null,null,null,{"$f":"IF($E$19=rd,IF($E$21>=600,'Engine emission factors'!$C26,'Engine emission factors'!$B26),IF($E$19=rg,'Engine emission factors'!$E26,IF($E$19=tng,'Engine emission factors'!$D26,IF($E$19=ngr,'Engine emission factors'!$F26,IF($E$19=ngl,'Engine emission factors'!$G26,IF($E$19=ng2l,'Engine emission factors'!$H26,IF($E$19=pro,'Engine emission factors'!$I26,IF($E$19=select,'Engine emission factors'!$AA26))))))))","v":0},0,0]
[null,"Chloroform",null,null,null,null,{"$f":"IF($E$19=rd,IF($E$21>=600,'Engine emission factors'!$C27,'Engine emission factors'!$B27),IF($E$19=rg,'Engine emission factors'!$E27,IF($E$19=tng,'Engine emission factors'!$D27,IF($E$19=ngr,'Engine emission factors'!$F27,IF($E$19=ngl,'Engine emission factors'!$G27,IF($E$19=ng2l,'Engine emission factors'!$H27,IF($E$19=pro,'Engine emission factors'!$I27,IF($E$19=select,'Engine emission factors'!$AA27))))))))","v":0},0,0]
[null,"Ethylbenzene",null,null,null,null,{"$f":"IF($E$19=rd,IF($E$21>=600,'Engine emission factors'!$C28,'Engine emission factors'!$B28),IF($E$19=rg,'Engine emission factors'!$E28,IF($E$19=tng,'Engine emission factors'!$D28,IF($E$19=ngr,'Engine emission factors'!$F28,IF($E$19=ngl,'Engine emission factors'!$G28,IF($E$19=ng2l,'Engine emission factors'!$H28,IF($E$19=pro,'Engine emission factors'!$I28,IF($E$19=select,'Engine emission factors'!$AA28))))))))","v":0},0,0]
[null,"Ethylene dibromide",null,null,null,null,{"$f":"IF($E$19=rd,IF($E$21>=600,'Engine emission factors'!$C29,'Engine emission factors'!$B29),IF($E$19=rg,'Engine emission factors'!$E29,IF($E$19=tng,'Engine emission factors'!$D29,IF($E$19=ngr,'Engine emission factors'!$F29,IF($E$19=ngl,'Engine emission factors'!$G29,IF($E$19=ng2l,'Engine emission factors'!$H29,IF($E$19=pro,'Engine emission factors'!$I29,IF($E$19=select,'Engine emission factors'!$AA29))))))))","v":0},0,0]
[null,"Formaldehyde",null,null,null,null,{"$f":"IF($E$19=rd,IF($E$21>=600,'Engine emission factors'!$C30,'Engine emission factors'!$B30),IF($E$19=rg,'Engine emission factors'!$E30,IF($E$19=tng,'Engine emission factors'!$D30,IF($E$19=ngr,'Engine emission factors'!$F30,IF($E$19=ngl,'Engine emission factors'!$G30,IF($E$19=ng2l,'Engine emission factors'!$H30,IF($E$19=pro,'Engine emission factors'!$I30,IF($E$19=select,'Engine emission factors'!$AA30))))))))","v":0},0,0]
[null,"Hexane",null,null,null,null,{"$f":"IF($E$19=rd,IF($E$21>=600,'Engine emission factors'!$C31,'Engine emission factors'!$B31),IF($E$19=rg,'Engine emission factors'!$E31,IF($E$19=tng,'Engine emission factors'!$D31,IF($E$19=ngr,'Engine emission factors'!$F31,IF($E$19=ngl,'Engine emission factors'!$G31,IF($E$19=ng2l,'Engine emission factors'!$H31,IF($E$19=pro,'Engine emission factors'!$I31,IF($E$19=select,'Engine emission factors'!$AA31))))))))","v":0},0,0]
[null,"Methanol",null,null,null,null,{"$f":"IF($E$19=rd,IF($E$21>=600,'Engine emission factors'!$C32,'Engine emission factors'!$B32),IF($E$19=rg,'Engine emission factors'!$E32,IF($E$19=tng,'Engine emission factors'!$D32,IF($E$19=ngr,'Engine emission factors'!$F32,IF($E$19=ngl,'Engine emission factors'!$G32,IF($E$19=ng2l,'Engine emission factors'!$H32,IF($E$19=pro,'Engine emission factors'!$I32,IF($E$19=select,'Engine emission factors'!$AA32))))))))","v":0},0,0]
[null,"Methylene chloride",null,null,null,null,{"$f":"IF($E$19=rd,IF($E$21>=600,'Engine emission factors'!$C33,'Engine emission factors'!$B33),IF($E$19=rg,'Engine emission factors'!$E33,IF($E$19=tng,'Engine emission factors'!$D33,IF($E$19=ngr,'Engine emission factors'!$F33,IF($E$19=ngl,'Engine emission factors'!$G33,IF($E$19=ng2l,'Engine emission factors'!$H33,IF($E$19=pro,'Engine emission factors'!$I33,IF($E$19=select,'Engine emission factors'!$AA33))))))))","v":0},0,0]
[null,"Naphthalene",null,null,null,null,{"$f":"IF($E$19=rd,IF($E$21>=600,'Engine emission factors'!$C34,'Engine emission factors'!$B34),IF($E$19=rg,'Engine emission factors'!$E34,IF($E$19=tng,'Engine emission factors'!$D34,IF($E$19=ngr,'Engine emission factors'!$F34,IF($E$19=ngl,'Engine emission factors'!$G34,IF($E$19=ng2l,'Engine emission factors'!$H34,IF($E$19=pro,'Engine emission factors'!$I34,IF($E$19=select,'Engine emission factors'!$AA34))))))))","v":0},0,0]
[null,"PAH",null,null,null,null,{"$f":"IF($E$19=rd,IF($E$21>=600,'Engine emission factors'!$C35,'Engine emission factors'!$B35),IF($E$19=rg,'Engine emission factors'!$E35,IF($E$19=tng,'Engine emission factors'!$D35,IF($E$19=ngr,'Engine emission factors'!$F35,IF($E$19=ngl,'Engine emission factors'!$G35,IF($E$19=ng2l,'Engine emission factors'!$H35,IF($E$19=pro,'Engine emission factors'!$I35,IF($E$19=select,'Engine emission factors'!$AA35))))))))","v":0},0,0]
[null,"Phenol",null,null,null,null,{"$f":"IF($E$19=rd,IF($E$21>=600,'Engine emission factors'!$C36,'Engine emission factors'!$B36),IF($E$19=rg,'Engine emission factors'!$E36,IF($E$19=tng,'Engine emission factors'!$D36,IF($E$19=ngr,'Engine emission factors'!$F36,IF($E$19=ngl,'Engine emission factors'!$G36,IF($E$19=ng2l,'Engine emission factors'!$H36,IF($E$19=pro,'Engine emission factors'!$I36,IF($E$19=select,'Engine emission factors'!$AA36))))))))","v":0},0,0]
[null,"Styrene",null,null,null,null,{"$f":"IF($E$19=rd,IF($E$21>=600,'Engine emission factors'!$C37,'Engine emission factors'!$B37),IF($E$19=rg,'Engine emission factors'!$E37,IF($E$19=tng,'Engine emission factors'!$D37,IF($E$19=ngr,'Engine emission factors'!$F37,IF($E$19=ngl,'Engine emission factors'!$G37,IF($E$19=ng2l,'Engine emission factors'!$H37,IF($E$19=pro,'Engine emission factors'!$I37,IF($E$19=select,'Engine emission factors'!$AA37))))))))","v":0},0,0]
[null,"Tetrachloroethane",null,null,null,null,{"$f":"IF($E$19=rd,IF($E$21>=600,'Engine emission factors'!$C38,'Engine emission factors'!$B38),IF($E$19=rg,'Engine emission factors'!$E38,IF($E$19=tng,'Engine emission factors'!$D38,IF($E$19=ngr,'Engine emission factors'!$F38,IF($E$19=ngl,'Engine emission factors'!$G38,IF($E$19=ng2l,'Engine emission factors'!$H38,IF($E$19=pro,'Engine emission factors'!$I38,IF($E$19=select,'Engine emission factors'!$AA38))))))))","v":0},0,0]
[null,"Toluene",null,null,null,null,{"$f":"IF($E$19=rd,IF($E$21>=600,'Engine emission factors'!$C39,'Engine emission factors'!$B39),IF($E$19=rg,'Engine emission factors'!$E39,IF($E$19=tng,'Engine emission factors'!$D39,IF($E$19=ngr,'Engine emission factors'!$F39,IF($E$19=ngl,'Engine emission factors'!$G39,IF($E$19=ng2l,'Engine emission factors'!$H39,IF($E$19=pro,'Engine emission factors'!$I39,IF($E$19=select,'Engine emission factors'!$AA39))))))))","v":0},0,0]
[null,"Vinyl chloride",null,null,null,null,{"$f":"IF($E$19=rd,IF($E$21>=600,'Engine emission factors'!$C40,'Engine emission factors'!$B40),IF($E$19=rg,'Engine emission factors'!$E40,IF($E$19=tng,'Engine emission factors'!$D40,IF($E$19=ngr,'Engine emission factors'!$F40,IF($E$19=ngl,'Engine emission factors'!$G40,IF($E$19=ng2l,'Engine emission factors'!$H40,IF($E$19=pro,'Engine emission factors'!$I40,IF($E$19=select,'Engine emission factors'!$AA40))))))))","v":0},0,0]
[null,"Xylene",null,null,null,null,{"$f":"IF($E$19=rd,IF($E$21>=600,'Engine emission factors'!$C41,'Engine emission factors'!$B41),IF($E$19=rg,'Engine emission factors'!$E41,IF($E$19=tng,'Engine emission factors'!$D41,IF($E$19=ngr,'Engine emission factors'!$F41,IF($E$19=ngl,'Engine emission factors'!$G41,IF($E$19=ng2l,'Engine emission factors'!$H41,IF($E$19=pro,'Engine emission factors'!$I41,IF($E$19=select,'Engine emission factors'!$AA41))))))))","v":0},0,0]
[null,null,null,null,null,"HAP total",null,{"$f":"SUM(H48:H72)","v":0},{"$f":"SUM(I48:I72)","v":0}]
[null,"1 Global Warming Potential from 40 CFR Part 98, Subpart A, Table A-1"]
[null,"2 CO2e = carbon dioxide equivalents"]
[null,"3 Routine = 24 hr/day * 365 day/yr or 8760 hr/yr; Emergency = 500 hr/yr for purposes of calculating potential air emission to identify whether or not a permit is required."]
[null,"4 See information on insignificant activities at Minn. R. 7007.1300 and on the 'Permits & Requirements' tab.",null,null,null,null,"Minn. R. 7007.1300"]

{"sheet":"Engine 5","index":8,"n_rows":77,"n_cols":10,"rows_kept":77,"cut":false,"hidden":false,"merged":[[74,1,74,4],[28,7,29,7],[28,8,29,8],[28,9,29,9],[30,9,31,9],[46,6,46,8],[73,1,73,4],[28,1,29,1],[28,2,29,2],[28,3,29,3],[28,4,29,4],[28,5,29,5],[28,6,29,6],[24,1,24,3],[24,5,24,8],[25,1,25,8],[26,1,26,8],[21,1,21,3],[7,2,7,3],[18,4,18,5],[18,6,18,7],[0,1,0,9],[1,1,1,9],[2,1,2,8],[4,2,4,3],[5,2,5,3],[6,2,6,3]]}
[null,{"$f":"Instructions!O3","v":"p-sbap5-25  •  12/13/23"}]
[null,"Air emissions from internal combustion engines"]
[null,"For each engine, complete one engine tab and include all information in the blue boxes. "]
[]
[null,"Engine designation","Engine 5",null,null,"Date of manufacture",null,"located on nameplate"]
[null,"Make",null,null,null,"Date installed",null,"at the site"]
[null,"Model",null,null,null,"Displacement",null,"liters/cylinder"]
[null,"Electrical output",null,null,"kW","Diesel engine tier","Choose one","if known"]
[]
[null,"Does this engine operate to do any of the following? Select yes or no for each. Go to the 'FAQs' tab for more information."]
[null,"Choose one","Supply power to electric grid in emergency situations (emergency demand response)"]
[null,"Choose one","Supply power to electric grid in non-emergency situations (peak shaving)"]
[null,"Choose one","Other financial arrangement"]
[]
[null,"Does a federal rule apply to this engine? "]
[null,"Choose one","Need help? Use EPA's Regulation Navigation tools for assistance. Go to the 'Federal standards' tab for more information. "]
[]
[null,"Calculate the potential and actual air emissions from this engine"]
[null,null,null,"Engine and fuel type","Choose one"]
[null,null,null,"Engine use","Choose one"]
[null,null,null,{"$f":"IF($E$19='Data validation'!$A$6,\" \",IF(OR($E$19=rd,$E$19=rg),\"Rated mechanical output\",IF(OR($E$19=pro,OR($E$19=ngl,OR($E$19=ngr,OR($E$19=tng,$E$19=ng2l)))),\"Rated fuel input\",\" \")))","v":" "},0,{"$f":"IF($D$21=\" \",\" \",IF($D$21=\"Rated mechanical output\",'Data validation'!$A$24,IF(AND($D$21=\"Rated fuel input\",$E$19=pro),'Data validation'!$A$26,'Data validation'!$A$25)))","v":" "}]
[null,"Choose one to calculate actual emissions",null,null,0,{"$f":"IF($B$22='Data validation'!$B$5,\" \",IF($B$22='Data validation'!$B$6,'Data validation'!$B$11,IF(AND($B$22='Data validation'!$B$7,OR($E$19=tng,OR($E$19=ngl,OR($E$19=ngr,OR($E$19=ng2l))))),'Data validation'!$B$12,IF(AND($B$22='Data validation'!$B$7,OR($E$19=rd,OR($E$19=rg,OR($E$19=pro)))),'Data validation'!$B$13,\" \"))))","v":" "}]
[null,null,null,{"$f":"IF($F$21=\" \",\" \",IF($F$21='Data validation'!$A$24,'Data validation'!$A$29,IF(OR($F$21='Data validation'!$A$25,$F$21='Data validation'!$A$26),'Data validation'!$A$30)))","v":" "},{"$f":"IF(E19='Data validation'!A6,\" \",IF(E19=rd,'Engine emission factors'!F53,IF(E19=rg,'Engine emission factors'!F54,IF(OR(E19=ngl,OR(E19=ngr,OR(E19=tng,E19=NGC2))),'Engine emission factors'!G52,IF(E19=pro,'Engine emission factors'!H55,\" \")))))","v":" "},{"$f":"IF($D$23=\" \",\" \",IF($D$23='Data validation'!$A$29,\"(Btu/HP-hr)\",IF(AND($D$23='Data validation'!$A$30,$E$19=pro),\"(Btu/gal)\",IF($D$23='Data validation'!$A$30,\"(Btu/scf)\"))))","v":" "}]
[null,null,null,{"$f":"IF($E$19='Data validation'!$A$6,\" \",IF($E$19=rd,\"Heat value of fuel\",IF($E$19=rg,\"Heat value of fuel\",\" \")))","v":" "},{"$f":"IF(E19=rd,'Engine emission factors'!H53,IF(E19=rg,'Engine emission factors'!H54,\" \"))","v":" "},{"$f":"IF($E$19='Data validation'!$A$6,\" \",IF($E$19=rd,\"(Btu/gal)\",IF($E$19=rg,\"(Btu/gal)\",\" \")))","v":" "}]
[null,"Sulfur content of the fuel",null,null,{"$f":"IF(E19=rd,\"0.0015\",IF(E19=pro,\"0.54\",IF(E19=tng,\"0.00065\",\"NA\")))","v":"NA"},{"$f":"IF(OR(E19=rd,E19=tng),\"%\",IF(E19=pro,\"gr/100ft3\",\"\"))","v":""}]
[]
[null,"Internal combustion engine potential and actual emissions"]
[null,null,"a","b","c","d","e"]
[null,"Pollutant","GWP1","Engine Rated Output","Actual Annual Throughput","Potential Annual Hours3","Emission Factor","Potential Emissions","Actual Emissions","Insignificant Activity4 Limits"]
[]
[null,null,null,"(MMBtu/hr)","(MMBtu/yr)","(hr/yr)","(lbs/MMBtu)","(ton/yr)","(tons/yr)","(tons/yr)"]
[null,null,null,{"$f":"IF(E19=select,0,IF(OR(E19=rd,E19=rg),(E21*E23/10^6),IF(E19=pro,(E21*E23/10^6),IF(OR(E19=ngl,OR(E19=ngr,OR(E19=tng,E19=NGC2))),(E21*E23/(10^6))))))","v":0},{"$f":"IF(F22='Data validation'!B12,E22,IF(AND(F22='Data validation'!B13,E19=rd),(('Engine emission factors'!H53*E22)/1000000),IF(AND(F22='Data validation'!B13,E19=rg),(('Engine emission factors'!H54*E22)/1000000),IF(AND(F22='Data validation'!B13,E19=pro),(('Engine emission factors'!H55*E22)/1000000),IF(F22='Data validation'!B11,(E22*D32),IF(F22=\" \",0))))))","v":0},{"$f":"IF($E$20=so,0,IF(OR($E$20=Routine,AND($E$20=Emer,$B$12=\"Yes\")),8760,IF($E$20=Emer,500)))","v":0},"by pollutant","(b * d * e) / 2000","(c * e) / 2000"]
[null,"Criteria Air Pollutants",null,null,null,null,null,null,"see engine emission factors tab"]
[null,"PM",null,null,null,null,{"$f":"IF($E$19=rd,IF($E$21>=600,'Engine emission factors'!$C5,'Engine emission factors'!$B5),IF($E$19=rg,'Engine emission factors'!$E5,IF($E$19=tng,'Engine emission factors'!$D5,IF($E$19=ngr,'Engine emission factors'!$F5,IF($E$19=ngl,'Engine emission factors'!$G5,IF($E$19=ng2l,'Engine emission factors'!$H5,IF($E$19=pro,'Engine emission factors'!$I5,IF($E$19=select,'Engine emission factors'!$AA5))))))))","v":0},{"$f":"$D$32*$F$32*$G34/2000","v":0},{"$f":"($E$32*$G34)/2000","v":0},1]
[null,"PM10",null,null,null,null,{"$f":"IF($E$19=rd,IF($E$21>=600,'Engine emission factors'!$C6,'Engine emission factors'!$B6),IF($E$19=rg,'Engine emission factors'!$E6,IF($E$19=tng,'Engine emission factors'!$D6,IF($E$19=ngr,'Engine emission factors'!$F6,IF($E$19=ngl,'Engine emission factors'!$G6,IF($E$19=ng2l,'Engine emission factors'!$H6,IF($E$19=pro,'Engine emission factors'!$I6,IF($E$19=select,'Engine emission factors'!$AA6))))))))","v":0},{"$f":"$D$32*$F$32*$G35/2000","v":0},{"$f":"($E$32*$G35)/2000","v":0},1]
[null,"PM2.5",null,null,null,null,{"$f":"IF($E$19=rd,IF($E$21>=600,'Engine emission factors'!$C7,'Engine emission factors'!$B7),IF($E$19=rg,'Engine emission factors'!$E7,IF($E$19=tng,'Engine emission factors'!$D7,IF($E$19=ngr,'Engine emission factors'!$F7,IF($E$19=ngl,'Engine emission factors'!$G7,IF($E$19=ng2l,'Engine emission factors'!$H7,IF($E$19=pro,'Engine emission factors'!$I7,IF($E$19=select,'Engine emission factors'!$AA7))))))))","v":0},0,0]
[null,"SOx",null,null,null,null,{"$f":"IF($E$19=rd,IF($E$21>=600,'Engine emission factors'!$C8*$E$25,'Engine emission factors'!$B8*$E$25),IF($E$19=rg,'Engine emission factors'!$E8,IF($E$19=tng,'Engine emission factors'!$D8*$E$25,IF($E$19=ngr,'Engine emission factors'!$F8,IF($E$19=ngl,'Engine emission factors'!$G8,IF($E$19=ng2l,'Engine emission factors'!$H8,IF($E$19=pro,'Engine emission factors'!$I8*$E$25,IF($E$19=select,'Engine emission factors'!$AA8))))))))","v":0},0,0,1]
[null,"NOx",null,null,null,null,{"$f":"IF($E$19=rd,IF($E$21>=600,'Engine emission factors'!$C9,'Engine emission factors'!$B9),IF($E$19=rg,'Engine emission factors'!$E9,IF($E$19=tng,'Engine emission factors'!$D9,IF($E$19=ngr,'Engine emission factors'!$F9,IF($E$19=ngl,'Engine emission factors'!$G9,IF($E$19=ng2l,'Engine emission factors'!$H9,IF($E$19=pro,'Engine emission factors'!$I9,IF($E$19=select,'Engine emission factors'!$AA9))))))))","v":0},0,0,1]
[null,"VOC",null,null,null,null,{"$f":"IF($E$19=rd,IF($E$21>=600,'Engine emission factors'!$C10,'Engine emission factors'!$B10),IF($E$19=rg,'Engine emission factors'!$E10,IF($E$19=tng,'Engine emission factors'!$D10,IF($E$19=ngr,'Engine emission factors'!$F10,IF($E$19=ngl,'Engine emission factors'!$G10,IF($E$19=ng2l,'Engine emission factors'!$H10,IF($E$19=pro,'Engine emission factors'!$I10,IF($E$19=select,'Engine emission factors'!$AA10))))))))","v":0},0,0,1]
[null,"CO",null,null,null,null,{"$f":"IF($E$19=rd,IF($E$21>=600,'Engine emission factors'!$C11,'Engine emission factors'!$B11),IF($E$19=rg,'Engine emission factors'!$E11,IF($E$19=tng,'Engine emission factors'!$D11,IF($E$19=ngr,'Engine emission factors'!$F11,IF($E$19=ngl,'Engine emission factors'!$G11,IF($E$19=ng2l,'Engine emission factors'!$H11,IF($E$19=pro,'Engine emission factors'!$I11,IF($E$19=select,'Engine emission factors'!$AA11))))))))","v":0},0,0,2]
[null,"Lead",null,null,null,null,"n/a",0,0]
[null,"Greenhouse Gas Emissions",null,null,null,null,null,null,"Source: 40 CFR 98, Subp. C, Table C-1 and C-2"]
[null,"CO2 2",1,null,null,null,{"$f":"IF($E$19=rd,IF($E$21>=600,'Engine emission factors'!$C13,'Engine emission factors'!$B13),IF($E$19=rg,'Engine emission factors'!$E13,IF($E$19=tng,'Engine emission factors'!$D13,IF($E$19=ngr,'Engine emission factors'!$F13,IF($E$19=ngl,'Engine emission factors'!$G13,IF($E$19=ng2l,'Engine emission factors'!$H13,IF($E$19=pro,'Engine emission factors'!$I13,IF($E$19=select,'Engine emission factors'!$AA13))))))))","v":0},{"$f":"$D$32*$F$32*$G43/2000","v":0},{"$f":"($E$32*$G43)/2000","v":0}]
[null,"CH4 2",25,null,null,null,{"$f":"IF($E$19=rd,IF($E$21>=600,'Engine emission factors'!$C14,'Engine emission factors'!$B14),IF($E$19=rg,'Engine emission factors'!$E14,IF($E$19=tng,'Engine emission factors'!$D14,IF($E$19=ngr,'Engine emission factors'!$F14,IF($E$19=ngl,'Engine emission factors'!$G14,IF($E$19=ng2l,'Engine emission factors'!$H14,IF($E$19=pro,'Engine emission factors'!$I14,IF($E$19=select,'Engine emission factors'!$AA14))))))))","v":0},{"$f":"$D$32*$F$32*$G44/2000","v":0},{"$f":"($E$32*$G44)/2000","v":0}]
[null,"N2O 2",298,null,null,null,{"$f":"IF($E$19=rd,IF($E$21>=600,'Engine emission factors'!$C15,'Engine emission factors'!$B15),IF($E$19=rg,'Engine emission factors'!$E15,IF($E$19=tng,'Engine emission factors'!$D15,IF($E$19=ngr,'Engine emission factors'!$F15,IF($E$19=ngl,'Engine emission factors'!$G15,IF($E$19=ng2l,'Engine emission factors'!$H15,IF($E$19=pro,'Engine emission factors'!$I15,IF($E$19=select,'Engine emission factors'!$Q15))))))))","v":0},{"$f":"$D$32*$F$32*$G45/2000","v":0},{"$f":"($E$32*$G45)/2000","v":0}]
[null,null,null,null,null,"GHG total (CO2e) 2",null,{"$f":"(C43*H43)+(C44*H44)+(C45*H45)","v":0},{"$f":"(C43*I43)+(C44*I44)+(C45*I45)","v":0},1000]
[null,"Hazardous Air Pollutants",null,null,null,null,"see engine emission factors tab"]
[null,"1,1,2,2-tetrachloroethane",null,null,null,null,{"$f":"IF($E$19=rd,IF($E$21>=600,'Engine emission factors'!$C17,'Engine emission factors'!$B17),IF($E$19=rg,'Engine emission factors'!$E17,IF($E$19=tng,'Engine emission factors'!$D17,IF($E$19=ngr,'Engine emission factors'!$F17,IF($E$19=ngl,'Engine emission factors'!$G17,IF($E$19=ng2l,'Engine emission factors'!$H17,IF($E$19=pro,'Engine emission factors'!$I17,IF($E$19=select,'Engine emission factors'!$Q17))))))))","v":0},{"$f":"$D$32*$F$32*$G48/2000","v":0},{"$f":"($E$32*$G48)/2000","v":0}]
[null,"1,1,2-trichloroethane",null,null,null,null,{"$f":"IF($E$19=rd,IF($E$21>=600,'Engine emission factors'!$C18,'Engine emission factors'!$B18),IF($E$19=rg,'Engine emission factors'!$E18,IF($E$19=tng,'Engine emission factors'!$D18,IF($E$19=ngr,'Engine emission factors'!$F18,IF($E$19=ngl,'Engine emission factors'!$G18,IF($E$19=ng2l,'Engine emission factors'!$H18,IF($E$19=pro,'Engine emission factors'!$I18,IF($E$19=select,'Engine emission factors'!$Q18))))))))","v":0},0,{"$f":"($E$32*$G49)/2000","v":0}]
[null,"1,3-butadiene",null,null,null,null,{"$f":"IF($E$19=rd,IF($E$21>=600,'Engine emission factors'!$C19,'Engine emission factors'!$B19),IF($E$19=rg,'Engine emission factors'!$E19,IF($E$19=tng,'Engine emission factors'!$D19,IF($E$19=ngr,'Engine emission factors'!$F19,IF($E$19=ngl,'Engine emission factors'!$G19,IF($E$19=ng2l,'Engine emission factors'!$H19,IF($E$19=pro,'Engine emission factors'!$I19,IF($E$19=select,'Engine emission factors'!$Q19))))))))","v":0},0,0]
[null,"1,3-dichloropropene",null,null,null,null,{"$f":"IF($E$19=rd,IF($E$21>=600,'Engine emission factors'!$C20,'Engine emission factors'!$B20),IF($E$19=rg,'Engine emission factors'!$E20,IF($E$19=tng,'Engine emission factors'!$D20,IF($E$19=ngr,'Engine emission factors'!$F20,IF($E$19=ngl,'Engine emission factors'!$G20,IF($E$19=ng2l,'Engine emission factors'!$H20,IF($E$19=pro,'Engine emission factors'!$I20,IF($E$19=select,'Engine emission factors'!$AA20))))))))","v":0},0,0]
[null,"Acetaldehyde",null,null,null,null,{"$f":"IF($E$19=rd,IF($E$21>=600,'Engine emission factors'!$C21,'Engine emission factors'!$B21),IF($E$19=rg,'Engine emission factors'!$E21,IF($E$19=tng,'Engine emission factors'!$D21,IF($E$19=ngr,'Engine emission factors'!$F21,IF($E$19=ngl,'Engine emission factors'!$G21,IF($E$19=ng2l,'Engine emission factors'!$H21,IF($E$19=pro,'Engine emission factors'!$I21,IF($E$19=select,'Engine emission factors'!$AA21))))))))","v":0},0,0]
[null,"Acrolein",null,null,null,null,{"$f":"IF($E$19=rd,IF($E$21>=600,'Engine emission factors'!$C22,'Engine emission factors'!$B22),IF($E$19=rg,'Engine emission factors'!$E22,IF($E$19=tng,'Engine emission factors'!$D22,IF($E$19=ngr,'Engine emission factors'!$F22,IF($E$19=ngl,'Engine emission factors'!$G22,IF($E$19=ng2l,'Engine emission factors'!$H22,IF($E$19=pro,'Engine emission factors'!$I22,IF($E$19=select,'Engine emission factors'!$AA22))))))))","v":0},0,0]
[null,"Benzene",null,null,null,null,{"$f":"IF($E$19=rd,IF($E$21>=600,'Engine emission factors'!$C23,'Engine emission factors'!$B23),IF($E$19=rg,'Engine emission factors'!$E23,IF($E$19=tng,'Engine emission factors'!$D23,IF($E$19=ngr,'Engine emission factors'!$F23,IF($E$19=ngl,'Engine emission factors'!$G23,IF($E$19=ng2l,'Engine emission factors'!$H23,IF($E$19=pro,'Engine emission factors'!$I23,IF($E$19=select,'Engine emission factors'!$AA23))))))))","v":0},0,0]
[null,"Biphenyl",null,null,null,null,{"$f":"IF($E$19=rd,IF($E$21>=600,'Engine emission factors'!$C24,'Engine emission factors'!$B24),IF($E$19=rg,'Engine emission factors'!$E24,IF($E$19=tng,'Engine emission factors'!$D24,IF($E$19=ngr,'Engine emission factors'!$F24,IF($E$19=ngl,'Engine emission factors'!$G24,IF($E$19=ng2l,'Engine emission factors'!$H24,IF($E$19=pro,'Engine emission factors'!$I24,IF($E$19=select,'Engine emission factors'!$AA24))))))))","v":0},0,0]
[null,"Carbon tetrachloride",null,null,null,null,{"$f":"IF($E$19=rd,IF($E$21>=600,'Engine emission factors'!$C25,'Engine emission factors'!$B25),IF($E$19=rg,'Engine emission factors'!$E25,IF($E$19=tng,'Engine emission factors'!$D25,IF($E$19=ngr,'Engine emission factors'!$F25,IF($E$19=ngl,'Engine emission factors'!$G25,IF($E$19=ng2l,'Engine emission factors'!$H25,IF($E$19=pro,'Engine emission factors'!$I25,IF($E$19=select,'Engine emission factors'!$AA25))))))))","v":0},0,0]
[null,"Chlorobenzene",null,null,null,null,{"$f":"IF($E$19=rd,IF($E$21>=600,'Engine emission factors'!$C26,'Engine emission factors'!$B26),IF($E$19=rg,'Engine emission factors'!$E26,IF($E$19=tng,'Engine emission factors'!$D26,IF($E$19=ngr,'Engine emission factors'!$F26,IF($E$19=ngl,'Engine emission factors'!$G26,IF($E$19=ng2l,'Engine emission factors'!$H26,IF($E$19=pro,'Engine emission factors'!$I26,IF($E$19=select,'Engine emission factors'!$AA26))))))))","v":0},0,0]
[null,"Chloroform",null,null,null,null,{"$f":"IF($E$19=rd,IF($E$21>=600,'Engine emission factors'!$C27,'Engine emission factors'!$B27),IF($E$19=rg,'Engine emission factors'!$E27,IF($E$19=tng,'Engine emission factors'!$D27,IF($E$19=ngr,'Engine emission factors'!$F27,IF($E$19=ngl,'Engine emission factors'!$G27,IF($E$19=ng2l,'Engine emission factors'!$H27,IF($E$19=pro,'Engine emission factors'!$I27,IF($E$19=select,'Engine emission factors'!$AA27))))))))","v":0},0,0]
[null,"Ethylbenzene",null,null,null,null,{"$f":"IF($E$19=rd,IF($E$21>=600,'Engine emission factors'!$C28,'Engine emission factors'!$B28),IF($E$19=rg,'Engine emission factors'!$E28,IF($E$19=tng,'Engine emission factors'!$D28,IF($E$19=ngr,'Engine emission factors'!$F28,IF($E$19=ngl,'Engine emission factors'!$G28,IF($E$19=ng2l,'Engine emission factors'!$H28,IF($E$19=pro,'Engine emission factors'!$I28,IF($E$19=select,'Engine emission factors'!$AA28))))))))","v":0},0,0]
[null,"Ethylene dibromide",null,null,null,null,{"$f":"IF($E$19=rd,IF($E$21>=600,'Engine emission factors'!$C29,'Engine emission factors'!$B29),IF($E$19=rg,'Engine emission factors'!$E29,IF($E$19=tng,'Engine emission factors'!$D29,IF($E$19=ngr,'Engine emission factors'!$F29,IF($E$19=ngl,'Engine emission factors'!$G29,IF($E$19=ng2l,'Engine emission factors'!$H29,IF($E$19=pro,'Engine emission factors'!$I29,IF($E$19=select,'Engine emission factors'!$AA29))))))))","v":0},0,0]
[null,"Formaldehyde",null,null,null,null,{"$f":"IF($E$19=rd,IF($E$21>=600,'Engine emission factors'!$C30,'Engine emission factors'!$B30),IF($E$19=rg,'Engine emission factors'!$E30,IF($E$19=tng,'Engine emission factors'!$D30,IF($E$19=ngr,'Engine emission factors'!$F30,IF($E$19=ngl,'Engine emission factors'!$G30,IF($E$19=ng2l,'Engine emission factors'!$H30,IF($E$19=pro,'Engine emission factors'!$I30,IF($E$19=select,'Engine emission factors'!$AA30))))))))","v":0},0,0]
[null,"Hexane",null,null,null,null,{"$f":"IF($E$19=rd,IF($E$21>=600,'Engine emission factors'!$C31,'Engine emission factors'!$B31),IF($E$19=rg,'Engine emission factors'!$E31,IF($E$19=tng,'Engine emission factors'!$D31,IF($E$19=ngr,'Engine emission factors'!$F31,IF($E$19=ngl,'Engine emission factors'!$G31,IF($E$19=ng2l,'Engine emission factors'!$H31,IF($E$19=pro,'Engine emission factors'!$I31,IF($E$19=select,'Engine emission factors'!$AA31))))))))","v":0},0,0]
[null,"Methanol",null,null,null,null,{"$f":"IF($E$19=rd,IF($E$21>=600,'Engine emission factors'!$C32,'Engine emission factors'!$B32),IF($E$19=rg,'Engine emission factors'!$E32,IF($E$19=tng,'Engine emission factors'!$D32,IF($E$19=ngr,'Engine emission factors'!$F32,IF($E$19=ngl,'Engine emission factors'!$G32,IF($E$19=ng2l,'Engine emission factors'!$H32,IF($E$19=pro,'Engine emission factors'!$I32,IF($E$19=select,'Engine emission factors'!$AA32))))))))","v":0},0,0]
[null,"Methylene chloride",null,null,null,null,{"$f":"IF($E$19=rd,IF($E$21>=600,'Engine emission factors'!$C33,'Engine emission factors'!$B33),IF($E$19=rg,'Engine emission factors'!$E33,IF($E$19=tng,'Engine emission factors'!$D33,IF($E$19=ngr,'Engine emission factors'!$F33,IF($E$19=ngl,'Engine emission factors'!$G33,IF($E$19=ng2l,'Engine emission factors'!$H33,IF($E$19=pro,'Engine emission factors'!$I33,IF($E$19=select,'Engine emission factors'!$AA33))))))))","v":0},0,0]
[null,"Naphthalene",null,null,null,null,{"$f":"IF($E$19=rd,IF($E$21>=600,'Engine emission factors'!$C34,'Engine emission factors'!$B34),IF($E$19=rg,'Engine emission factors'!$E34,IF($E$19=tng,'Engine emission factors'!$D34,IF($E$19=ngr,'Engine emission factors'!$F34,IF($E$19=ngl,'Engine emission factors'!$G34,IF($E$19=ng2l,'Engine emission factors'!$H34,IF($E$19=pro,'Engine emission factors'!$I34,IF($E$19=select,'Engine emission factors'!$AA34))))))))","v":0},0,0]
[null,"PAH",null,null,null,null,{"$f":"IF($E$19=rd,IF($E$21>=600,'Engine emission factors'!$C35,'Engine emission factors'!$B35),IF($E$19=rg,'Engine emission factors'!$E35,IF($E$19=tng,'Engine emission factors'!$D35,IF($E$19=ngr,'Engine emission factors'!$F35,IF($E$19=ngl,'Engine emission factors'!$G35,IF($E$19=ng2l,'Engine emission factors'!$H35,IF($E$19=pro,'Engine emission factors'!$I35,IF($E$19=select,'Engine emission factors'!$AA35))))))))","v":0},0,0]
[null,"Phenol",null,null,null,null,{"$f":"IF($E$19=rd,IF($E$21>=600,'Engine emission factors'!$C36,'Engine emission factors'!$B36),IF($E$19=rg,'Engine emission factors'!$E36,IF($E$19=tng,'Engine emission factors'!$D36,IF($E$19=ngr,'Engine emission factors'!$F36,IF($E$19=ngl,'Engine emission factors'!$G36,IF($E$19=ng2l,'Engine emission factors'!$H36,IF($E$19=pro,'Engine emission factors'!$I36,IF($E$19=select,'Engine emission factors'!$AA36))))))))","v":0},0,0]
[null,"Styrene",null,null,null,null,{"$f":"IF($E$19=rd,IF($E$21>=600,'Engine emission factors'!$C37,'Engine emission factors'!$B37),IF($E$19=rg,'Engine emission factors'!$E37,IF($E$19=tng,'Engine emission factors'!$D37,IF($E$19=ngr,'Engine emission factors'!$F37,IF($E$19=ngl,'Engine emission factors'!$G37,IF($E$19=ng2l,'Engine emission factors'!$H37,IF($E$19=pro,'Engine emission factors'!$I37,IF($E$19=select,'Engine emission factors'!$AA37))))))))","v":0},0,0]
[null,"Tetrachloroethane",null,null,null,null,{"$f":"IF($E$19=rd,IF($E$21>=600,'Engine emission factors'!$C38,'Engine emission factors'!$B38),IF($E$19=rg,'Engine emission factors'!$E38,IF($E$19=tng,'Engine emission factors'!$D38,IF($E$19=ngr,'Engine emission factors'!$F38,IF($E$19=ngl,'Engine emission factors'!$G38,IF($E$19=ng2l,'Engine emission factors'!$H38,IF($E$19=pro,'Engine emission factors'!$I38,IF($E$19=select,'Engine emission factors'!$AA38))))))))","v":0},0,0]
[null,"Toluene",null,null,null,null,{"$f":"IF($E$19=rd,IF($E$21>=600,'Engine emission factors'!$C39,'Engine emission factors'!$B39),IF($E$19=rg,'Engine emission factors'!$E39,IF($E$19=tng,'Engine emission factors'!$D39,IF($E$19=ngr,'Engine emission factors'!$F39,IF($E$19=ngl,'Engine emission factors'!$G39,IF($E$19=ng2l,'Engine emission factors'!$H39,IF($E$19=pro,'Engine emission factors'!$I39,IF($E$19=select,'Engine emission factors'!$AA39))))))))","v":0},0,0]
[null,"Vinyl chloride",null,null,null,null,{"$f":"IF($E$19=rd,IF($E$21>=600,'Engine emission factors'!$C40,'Engine emission factors'!$B40),IF($E$19=rg,'Engine emission factors'!$E40,IF($E$19=tng,'Engine emission factors'!$D40,IF($E$19=ngr,'Engine emission factors'!$F40,IF($E$19=ngl,'Engine emission factors'!$G40,IF($E$19=ng2l,'Engine emission factors'!$H40,IF($E$19=pro,'Engine emission factors'!$I40,IF($E$19=select,'Engine emission factors'!$AA40))))))))","v":0},0,0]
[null,"Xylene",null,null,null,null,{"$f":"IF($E$19=rd,IF($E$21>=600,'Engine emission factors'!$C41,'Engine emission factors'!$B41),IF($E$19=rg,'Engine emission factors'!$E41,IF($E$19=tng,'Engine emission factors'!$D41,IF($E$19=ngr,'Engine emission factors'!$F41,IF($E$19=ngl,'Engine emission factors'!$G41,IF($E$19=ng2l,'Engine emission factors'!$H41,IF($E$19=pro,'Engine emission factors'!$I41,IF($E$19=select,'Engine emission factors'!$AA41))))))))","v":0},0,0]
[null,null,null,null,null,"HAP total",null,{"$f":"SUM(H48:H72)","v":0},{"$f":"SUM(I48:I72)","v":0}]
[null,"1 Global Warming Potential from 40 CFR Part 98, Subpart A, Table A-1"]
[null,"2 CO2e = carbon dioxide equivalents"]
[null,"3 Routine = 24 hr/day * 365 day/yr or 8760 hr/yr; Emergency = 500 hr/yr for purposes of calculating potential air emission to identify whether or not a permit is required."]
[null,"4 See information on insignificant activities at Minn. R. 7007.1300 and on the 'Permits & Requirements' tab.",null,null,null,null,"Minn. R. 7007.1300"]

{"sheet":"Potential emissions","index":9,"n_rows":47,"n_cols":10,"rows_kept":47,"cut":false,"hidden":false,"merged":[[1,1,1,8],[3,1,4,1],[2,1,2,8],[0,1,0,8]]}
[null,{"$f":"Instructions!O3","v":"p-sbap5-25  •  12/13/23"}]
[null,"Potential emissions: Engines"]
[null,{"$f":"IF('Data validation'!B28=\"yes\",\"The flag next to a potential emission total means your potential emissions exceed the permitting threshold and a permit is required.\",\"These pollutant totals represent the information you entered on the blue tabs.\")","v":"These pollutant totals represent the information you entered on the blue tabs."}]
[null,"Pollutant",{"$f":"'Engine 1'!$C$5","v":"Engine 1"},{"$f":"'Engine 2'!$C$5","v":"Engine 2"},{"$f":"'Engine 3'!$C$5","v":"Engine 3"},{"$f":"'Engine 4'!$C$5","v":"Engine 4"},{"$f":"'Engine 5'!$C$5","v":"Engine 5"},"Potential Emissions","Permitting Threshold"]
[null,null,"(ton/yr)","(ton/yr)","(ton/yr)","(ton/yr)","(ton/yr)","(ton/yr)","(ton/yr)"]
[null,"Criteria Air Pollutants"]
[null,"PM",{"$f":"'Engine 1'!$H34","v":0},{"$f":"'Engine 2'!$H34","v":0},{"$f":"'Engine 3'!$H34","v":0},{"$f":"'Engine 4'!$H34","v":0},{"$f":"'Engine 5'!$H34","v":0},{"$f":"SUM(C7:G7)","v":0},100,{"$f":"IF(H7>=I7,1,0)","v":0}]
[null,"PM10",{"$f":"'Engine 1'!$H35","v":0},{"$f":"'Engine 2'!$H35","v":0},{"$f":"'Engine 3'!$H35","v":0},{"$f":"'Engine 4'!$H35","v":0},{"$f":"'Engine 5'!$H35","v":0},{"$f":"SUM(C8:G8)","v":0},25,{"$f":"IF(H8>=I8,1,0)","v":0}]
[null,"PM2.5",{"$f":"'Engine 1'!$H36","v":0},{"$f":"'Engine 2'!$H36","v":0},{"$f":"'Engine 3'!$H36","v":0},{"$f":"'Engine 4'!$H36","v":0},{"$f":"'Engine 5'!$H36","v":0},0,100]
[null,"SOx",{"$f":"'Engine 1'!$H37","v":0},{"$f":"'Engine 2'!$H37","v":0},{"$f":"'Engine 3'!$H37","v":0},{"$f":"'Engine 4'!$H37","v":0},{"$f":"'Engine 5'!$H37","v":0},0,50,0]
[null,"NOx",{"$f":"'Engine 1'!$H38","v":0},{"$f":"'Engine 2'!$H38","v":0},{"$f":"'Engine 3'!$H38","v":0},{"$f":"'Engine 4'!$H38","v":0},{"$f":"'Engine 5'!$H38","v":0},0,100,0]
[null,"VOC",{"$f":"'Engine 1'!$H39","v":0},{"$f":"'Engine 2'!$H39","v":0},{"$f":"'Engine 3'!$H39","v":0},{"$f":"'Engine 4'!$H39","v":0},{"$f":"'Engine 5'!$H39","v":0},0,100,0]
[null,"CO",{"$f":"'Engine 1'!$H40","v":0},{"$f":"'Engine 2'!$H40","v":0},{"$f":"'Engine 3'!$H40","v":0},{"$f":"'Engine 4'!$H40","v":0},{"$f":"'Engine 5'!$H40","v":0},0,100,0]
[null,"Lead",{"$f":"'Engine 1'!$H41","v":0},{"$f":"'Engine 2'!$H41","v":0},{"$f":"'Engine 3'!$H41","v":0},{"$f":"'Engine 4'!$H41","v":0},{"$f":"'Engine 5'!$H41","v":0},0,0.5,0]
[null,"Greenhouse Gas Emissions "]
[null,"CO2",{"$f":"'Engine 1'!$H43","v":0},{"$f":"'Engine 2'!$H43","v":0},{"$f":"'Engine 3'!$H43","v":0},{"$f":"'Engine 4'!$H43","v":0},{"$f":"'Engine 5'!$H43","v":0},0]
[null,"CH4",{"$f":"'Engine 1'!$H44","v":0},{"$f":"'Engine 2'!$H44","v":0},{"$f":"'Engine 3'!$H44","v":0},{"$f":"'Engine 4'!$H44","v":0},{"$f":"'Engine 5'!$H44","v":0},0]
[null,"N2O",{"$f":"'Engine 1'!$H45","v":0},{"$f":"'Engine 2'!$H45","v":0},{"$f":"'Engine 3'!$H45","v":0},{"$f":"'Engine 4'!$H45","v":0},{"$f":"'Engine 5'!$H45","v":0},0]
[null,"GHG total CO2e",null,null,null,null,null,{"$f":"(H16*1)+(H17*25)+(H18*298)","v":0},100000,0]
[null,"Hazardous Air Pollutants"]
[null,"1,1,2,2-tetrachloroethane",{"$f":"'Engine 1'!$H48","v":0},{"$f":"'Engine 2'!$H48","v":0},{"$f":"'Engine 3'!$H48","v":0},{"$f":"'Engine 4'!$H48","v":0},{"$f":"'Engine 5'!$H48","v":0},{"$f":"SUM(C21:G21)","v":0}]
[null,"1,1,2-trichloroethane",{"$f":"'Engine 1'!$H49","v":0},{"$f":"'Engine 2'!$H49","v":0},{"$f":"'Engine 3'!$H49","v":0},{"$f":"'Engine 4'!$H49","v":0},{"$f":"'Engine 5'!$H49","v":0},{"$f":"SUM(C22:G22)","v":0}]
[null,"1,3-butadiene",{"$f":"'Engine 1'!$H50","v":0},{"$f":"'Engine 2'!$H50","v":0},{"$f":"'Engine 3'!$H50","v":0},{"$f":"'Engine 4'!$H50","v":0},{"$f":"'Engine 5'!$H50","v":0},0]
[null,"1,3-dichloropropene",{"$f":"'Engine 1'!$H51","v":0},{"$f":"'Engine 2'!$H51","v":0},{"$f":"'Engine 3'!$H51","v":0},{"$f":"'Engine 4'!$H51","v":0},{"$f":"'Engine 5'!$H51","v":0},0]
[null,"Acetaldehyde",{"$f":"'Engine 1'!$H52","v":0},{"$f":"'Engine 2'!$H52","v":0},{"$f":"'Engine 3'!$H52","v":0},{"$f":"'Engine 4'!$H52","v":0},{"$f":"'Engine 5'!$H52","v":0},0]
[null,"Acrolein",{"$f":"'Engine 1'!$H53","v":0},{"$f":"'Engine 2'!$H53","v":0},{"$f":"'Engine 3'!$H53","v":0},{"$f":"'Engine 4'!$H53","v":0},{"$f":"'Engine 5'!$H53","v":0},0]
[null,"Benzene",{"$f":"'Engine 1'!$H54","v":0},{"$f":"'Engine 2'!$H54","v":0},{"$f":"'Engine 3'!$H54","v":0},{"$f":"'Engine 4'!$H54","v":0},{"$f":"'Engine 5'!$H54","v":0},0]
[null,"Biphenyl",{"$f":"'Engine 1'!$H55","v":0},{"$f":"'Engine 2'!$H55","v":0},{"$f":"'Engine 3'!$H55","v":0},{"$f":"'Engine 4'!$H55","v":0},{"$f":"'Engine 5'!$H55","v":0},0]
[null,"Carbon tetrachloride",{"$f":"'Engine 1'!$H56","v":0},{"$f":"'Engine 2'!$H56","v":0},{"$f":"'Engine 3'!$H56","v":0},{"$f":"'Engine 4'!$H56","v":0},{"$f":"'Engine 5'!$H56","v":0},0]
[null,"Chlorobenzene",{"$f":"'Engine 1'!$H57","v":0},{"$f":"'Engine 2'!$H57","v":0},{"$f":"'Engine 3'!$H57","v":0},{"$f":"'Engine 4'!$H57","v":0},{"$f":"'Engine 5'!$H57","v":0},0]
[null,"Chloroform",{"$f":"'Engine 1'!$H58","v":0},{"$f":"'Engine 2'!$H58","v":0},{"$f":"'Engine 3'!$H58","v":0},{"$f":"'Engine 4'!$H58","v":0},{"$f":"'Engine 5'!$H58","v":0},0]
[null,"Ethylbenzene",{"$f":"'Engine 1'!$H59","v":0},{"$f":"'Engine 2'!$H59","v":0},{"$f":"'Engine 3'!$H59","v":0},{"$f":"'Engine 4'!$H59","v":0},{"$f":"'Engine 5'!$H59","v":0},0]
[null,"Ethylene dibromide",{"$f":"'Engine 1'!$H60","v":0},{"$f":"'Engine 2'!$H60","v":0},{"$f":"'Engine 3'!$H60","v":0},{"$f":"'Engine 4'!$H60","v":0},{"$f":"'Engine 5'!$H60","v":0},0]
[null,"Formaldehyde",{"$f":"'Engine 1'!$H61","v":0},{"$f":"'Engine 2'!$H61","v":0},{"$f":"'Engine 3'!$H61","v":0},{"$f":"'Engine 4'!$H61","v":0},{"$f":"'Engine 5'!$H61","v":0},0]
[null,"Hexane",{"$f":"'Engine 1'!$H62","v":0},{"$f":"'Engine 2'!$H62","v":0},{"$f":"'Engine 3'!$H62","v":0},{"$f":"'Engine 4'!$H62","v":0},{"$f":"'Engine 5'!$H62","v":0},0]
[null,"Methanol",{"$f":"'Engine 1'!$H63","v":0},{"$f":"'Engine 2'!$H63","v":0},{"$f":"'Engine 3'!$H63","v":0},{"$f":"'Engine 4'!$H63","v":0},{"$f":"'Engine 5'!$H63","v":0},0]
[null,"Methylene chloride",{"$f":"'Engine 1'!$H64","v":0},{"$f":"'Engine 2'!$H64","v":0},{"$f":"'Engine 3'!$H64","v":0},{"$f":"'Engine 4'!$H64","v":0},{"$f":"'Engine 5'!$H64","v":0},0]
[null,"Naphthalene",{"$f":"'Engine 1'!$H65","v":0},{"$f":"'Engine 2'!$H65","v":0},{"$f":"'Engine 3'!$H65","v":0},{"$f":"'Engine 4'!$H65","v":0},{"$f":"'Engine 5'!$H65","v":0},0]
[null,"PAH",{"$f":"'Engine 1'!$H66","v":0},{"$f":"'Engine 2'!$H66","v":0},{"$f":"'Engine 3'!$H66","v":0},{"$f":"'Engine 4'!$H66","v":0},{"$f":"'Engine 5'!$H66","v":0},0]
[null,"Phenol",{"$f":"'Engine 1'!$H67","v":0},{"$f":"'Engine 2'!$H67","v":0},{"$f":"'Engine 3'!$H67","v":0},{"$f":"'Engine 4'!$H67","v":0},{"$f":"'Engine 5'!$H67","v":0},0]
[null,"Styrene",{"$f":"'Engine 1'!$H68","v":0},{"$f":"'Engine 2'!$H68","v":0},{"$f":"'Engine 3'!$H68","v":0},{"$f":"'Engine 4'!$H68","v":0},{"$f":"'Engine 5'!$H68","v":0},0]
[null,"Tetrachloroethane",{"$f":"'Engine 1'!$H69","v":0},{"$f":"'Engine 2'!$H69","v":0},{"$f":"'Engine 3'!$H69","v":0},{"$f":"'Engine 4'!$H69","v":0},{"$f":"'Engine 5'!$H69","v":0},0]
[null,"Toluene",{"$f":"'Engine 1'!$H70","v":0},{"$f":"'Engine 2'!$H70","v":0},{"$f":"'Engine 3'!$H70","v":0},{"$f":"'Engine 4'!$H70","v":0},{"$f":"'Engine 5'!$H70","v":0},0]
[null,"Vinyl chloride",{"$f":"'Engine 1'!$H71","v":0},{"$f":"'Engine 2'!$H71","v":0},{"$f":"'Engine 3'!$H71","v":0},{"$f":"'Engine 4'!$H71","v":0},{"$f":"'Engine 5'!$H71","v":0},0]
[null,"Xylene",{"$f":"'Engine 1'!$H72","v":0},{"$f":"'Engine 2'!$H72","v":0},{"$f":"'Engine 3'!$H72","v":0},{"$f":"'Engine 4'!$H72","v":0},{"$f":"'Engine 5'!$H72","v":0},0]
[null,"HAP Indiv. Max",{"$f":"IF(H46=H21,B21,IF(H46=H22,B22,IF(H46=H23,B23,IF(H46=H24,B24,IF(H46=H25,B25,IF(H46=H26,B26,IF(H46=H27,B27,IF(H46=H28,B28,IF(H46=H29,B29,IF(H46=H30,B30,IF(H46=H31,B31,IF(H46=H32,B32,IF(H46=H33,B33,IF(H46=H34,B34,IF(H46=H35,B35,IF(H46=H36,B36,IF(H46=H37,B37,IF(H46=H38,B38,IF(H46=H39,B39,IF(H46=H40,B40,IF(H46=H41,B41,IF(H46=H42,B42,IF(H46=H43,B43,IF(H46=H44,B44,IF(H46=H45,B45)))))))))))))))))))))))))","v":"1,1,2,2-tetrachloroethane"},null,null,null,null,{"$f":"MAX(H21:H45)","v":0},10,{"$f":"IF(H46>=I46,1,0)","v":0}]
[null,"HAP total",null,null,null,null,null,{"$f":"SUM(H21:H45)","v":0},25,0]

{"sheet":"Actual emissions","index":10,"n_rows":47,"n_cols":10,"rows_kept":47,"cut":false,"hidden":false,"merged":[[1,1,1,8],[3,1,4,1],[0,1,0,8],[2,1,2,8]]}
[null,{"$f":"Instructions!O3","v":"p-sbap5-25  •  12/13/23"}]
[null,"Actual emissions: Engines"]
[null,{"$f":"IF('Data validation'!B31=\"yes\",\"The flag next to your actual emissions total indicates that your business exceeds the Option D limit and an individual permit is required.\",\"These pollutant totals represent the information you entered on the blue tabs.\")","v":"These pollutant totals represent the information you entered on the blue tabs."}]
[null,"Pollutant",{"$f":"'Potential emissions'!C4","v":"Engine 1"},{"$f":"'Potential emissions'!D4","v":"Engine 2"},{"$f":"'Potential emissions'!E4","v":"Engine 3"},{"$f":"'Potential emissions'!F4","v":"Engine 4"},{"$f":"'Potential emissions'!G4","v":"Engine 5"},"Actual Emissions","Opt. D Permit Limits"]
[null,null,"(ton/yr)","(ton/yr)","(ton/yr)","(ton/yr)","(ton/yr)","(ton/yr)","(ton/yr)"]
[null,"Criteria Air Pollutants"]
[null,"PM",{"$f":"'Engine 1'!$I34","v":0},{"$f":"'Engine 2'!$I34","v":0},{"$f":"'Engine 3'!$I34","v":0},{"$f":"'Engine 4'!$I34","v":0},{"$f":"'Engine 5'!$I34","v":0},{"$f":"SUM(C7:G7)","v":0},50,{"$f":"IF(H7>=I7,1,0)","v":0}]
[null,"PM10",{"$f":"'Engine 1'!$I35","v":0},{"$f":"'Engine 2'!$I35","v":0},{"$f":"'Engine 3'!$I35","v":0},{"$f":"'Engine 4'!$I35","v":0},{"$f":"'Engine 5'!$I35","v":0},{"$f":"SUM(C8:G8)","v":0},50,{"$f":"IF(H8>=I8,1,0)","v":0}]
[null,"PM2.5",{"$f":"'Engine 1'!$I36","v":0},{"$f":"'Engine 2'!$I36","v":0},{"$f":"'Engine 3'!$I36","v":0},{"$f":"'Engine 4'!$I36","v":0},{"$f":"'Engine 5'!$I36","v":0},0]
[null,"SOx",{"$f":"'Engine 1'!$I37","v":0},{"$f":"'Engine 2'!$I37","v":0},{"$f":"'Engine 3'!$I37","v":0},{"$f":"'Engine 4'!$I37","v":0},{"$f":"'Engine 5'!$I37","v":0},0,50,0]
[null,"NOx",{"$f":"'Engine 1'!$I38","v":0},{"$f":"'Engine 2'!$I38","v":0},{"$f":"'Engine 3'!$I38","v":0},{"$f":"'Engine 4'!$I38","v":0},{"$f":"'Engine 5'!$I38","v":0},0,50,0]
[null,"VOC",{"$f":"'Engine 1'!$I39","v":0},{"$f":"'Engine 2'!$I39","v":0},{"$f":"'Engine 3'!$I39","v":0},{"$f":"'Engine 4'!$I39","v":0},{"$f":"'Engine 5'!$I39","v":0},0,50,0]
[null,"CO",{"$f":"'Engine 1'!$I40","v":0},{"$f":"'Engine 2'!$I40","v":0},{"$f":"'Engine 3'!$I40","v":0},{"$f":"'Engine 4'!$I40","v":0},{"$f":"'Engine 5'!$I40","v":0},0,50,0]
[null,"Lead",{"$f":"'Engine 1'!$I41","v":0},{"$f":"'Engine 2'!$I41","v":0},{"$f":"'Engine 3'!$I41","v":0},{"$f":"'Engine 4'!$I41","v":0},{"$f":"'Engine 5'!$I41","v":0},0,0.5,0]
[null,"Greenhouse Gas Emissions "]
[null,"CO2",{"$f":"'Engine 1'!$I43","v":0},{"$f":"'Engine 2'!$I43","v":0},{"$f":"'Engine 3'!$I43","v":0},{"$f":"'Engine 4'!$I43","v":0},{"$f":"'Engine 5'!$I43","v":0},{"$f":"SUM(C16:G16)","v":0}]
[null,"CH4",{"$f":"'Engine 1'!$I44","v":0},{"$f":"'Engine 2'!$I44","v":0},{"$f":"'Engine 3'!$I44","v":0},{"$f":"'Engine 4'!$I44","v":0},{"$f":"'Engine 5'!$I44","v":0},0]
[null,"N2O",{"$f":"'Engine 1'!$I45","v":0},{"$f":"'Engine 2'!$I45","v":0},{"$f":"'Engine 3'!$I45","v":0},{"$f":"'Engine 4'!$I45","v":0},{"$f":"'Engine 5'!$I45","v":0},0]
[null,"GHG Total CO2e",null,null,null,null,null,0,50000,0]
[null,"Hazardous Air Pollutants"]
[null,"1,1,2,2-tetrachloroethane",{"$f":"'Engine 1'!$I48","v":0},{"$f":"'Engine 2'!$I48","v":0},{"$f":"'Engine 3'!$I48","v":0},{"$f":"'Engine 4'!$I48","v":0},{"$f":"'Engine 5'!$I48","v":0},{"$f":"SUM(C21:G21)","v":0}]
[null,"1,1,2-trichloroethane",{"$f":"'Engine 1'!$I49","v":0},{"$f":"'Engine 2'!$I49","v":0},{"$f":"'Engine 3'!$I49","v":0},{"$f":"'Engine 4'!$I49","v":0},{"$f":"'Engine 5'!$I49","v":0},{"$f":"SUM(C22:G22)","v":0}]
[null,"1,3-butadiene",{"$f":"'Engine 1'!$I50","v":0},{"$f":"'Engine 2'!$I50","v":0},{"$f":"'Engine 3'!$I50","v":0},{"$f":"'Engine 4'!$I50","v":0},{"$f":"'Engine 5'!$I50","v":0},0]
[null,"1,3-dichloropropene",{"$f":"'Engine 1'!$I51","v":0},{"$f":"'Engine 2'!$I51","v":0},{"$f":"'Engine 3'!$I51","v":0},{"$f":"'Engine 4'!$I51","v":0},{"$f":"'Engine 5'!$I51","v":0},0]
[null,"Acetaldehyde",{"$f":"'Engine 1'!$I52","v":0},{"$f":"'Engine 2'!$I52","v":0},{"$f":"'Engine 3'!$I52","v":0},{"$f":"'Engine 4'!$I52","v":0},{"$f":"'Engine 5'!$I52","v":0},0]
[null,"Acrolein",{"$f":"'Engine 1'!$I53","v":0},{"$f":"'Engine 2'!$I53","v":0},{"$f":"'Engine 3'!$I53","v":0},{"$f":"'Engine 4'!$I53","v":0},{"$f":"'Engine 5'!$I53","v":0},0]
[null,"Benzene",{"$f":"'Engine 1'!$I54","v":0},{"$f":"'Engine 2'!$I54","v":0},{"$f":"'Engine 3'!$I54","v":0},{"$f":"'Engine 4'!$I54","v":0},{"$f":"'Engine 5'!$I54","v":0},0]
[null,"Biphenyl",{"$f":"'Engine 1'!$I55","v":0},{"$f":"'Engine 2'!$I55","v":0},{"$f":"'Engine 3'!$I55","v":0},{"$f":"'Engine 4'!$I55","v":0},{"$f":"'Engine 5'!$I55","v":0},0]
[null,"Carbon tetrachloride",{"$f":"'Engine 1'!$I56","v":0},{"$f":"'Engine 2'!$I56","v":0},{"$f":"'Engine 3'!$I56","v":0},{"$f":"'Engine 4'!$I56","v":0},{"$f":"'Engine 5'!$I56","v":0},0]
[null,"Chlorobenzene",{"$f":"'Engine 1'!$I57","v":0},{"$f":"'Engine 2'!$I57","v":0},{"$f":"'Engine 3'!$I57","v":0},{"$f":"'Engine 4'!$I57","v":0},{"$f":"'Engine 5'!$I57","v":0},0]
[null,"Chloroform",{"$f":"'Engine 1'!$I58","v":0},{"$f":"'Engine 2'!$I58","v":0},{"$f":"'Engine 3'!$I58","v":0},{"$f":"'Engine 4'!$I58","v":0},{"$f":"'Engine 5'!$I58","v":0},0]
[null,"Ethylbenzene",{"$f":"'Engine 1'!$I59","v":0},{"$f":"'Engine 2'!$I59","v":0},{"$f":"'Engine 3'!$I59","v":0},{"$f":"'Engine 4'!$I59","v":0},{"$f":"'Engine 5'!$I59","v":0},0]
[null,"Ethylene dibromide",{"$f":"'Engine 1'!$I60","v":0},{"$f":"'Engine 2'!$I60","v":0},{"$f":"'Engine 3'!$I60","v":0},{"$f":"'Engine 4'!$I60","v":0},{"$f":"'Engine 5'!$I60","v":0},0]
[null,"Formaldehyde",{"$f":"'Engine 1'!$I61","v":0},{"$f":"'Engine 2'!$I61","v":0},{"$f":"'Engine 3'!$I61","v":0},{"$f":"'Engine 4'!$I61","v":0},{"$f":"'Engine 5'!$I61","v":0},0]
[null,"Hexane",{"$f":"'Engine 1'!$I62","v":0},{"$f":"'Engine 2'!$I62","v":0},{"$f":"'Engine 3'!$I62","v":0},{"$f":"'Engine 4'!$I62","v":0},{"$f":"'Engine 5'!$I62","v":0},0]
[null,"Methanol",{"$f":"'Engine 1'!$I63","v":0},{"$f":"'Engine 2'!$I63","v":0},{"$f":"'Engine 3'!$I63","v":0},{"$f":"'Engine 4'!$I63","v":0},{"$f":"'Engine 5'!$I63","v":0},0]
[null,"Methylene chloride",{"$f":"'Engine 1'!$I64","v":0},{"$f":"'Engine 2'!$I64","v":0},{"$f":"'Engine 3'!$I64","v":0},{"$f":"'Engine 4'!$I64","v":0},{"$f":"'Engine 5'!$I64","v":0},0]
[null,"Naphthalene",{"$f":"'Engine 1'!$I65","v":0},{"$f":"'Engine 2'!$I65","v":0},{"$f":"'Engine 3'!$I65","v":0},{"$f":"'Engine 4'!$I65","v":0},{"$f":"'Engine 5'!$I65","v":0},0]
[null,"PAH",{"$f":"'Engine 1'!$I66","v":0},{"$f":"'Engine 2'!$I66","v":0},{"$f":"'Engine 3'!$I66","v":0},{"$f":"'Engine 4'!$I66","v":0},{"$f":"'Engine 5'!$I66","v":0},0]
[null,"Phenol",{"$f":"'Engine 1'!$I67","v":0},{"$f":"'Engine 2'!$I67","v":0},{"$f":"'Engine 3'!$I67","v":0},{"$f":"'Engine 4'!$I67","v":0},{"$f":"'Engine 5'!$I67","v":0},0]
[null,"Styrene",{"$f":"'Engine 1'!$I68","v":0},{"$f":"'Engine 2'!$I68","v":0},{"$f":"'Engine 3'!$I68","v":0},{"$f":"'Engine 4'!$I68","v":0},{"$f":"'Engine 5'!$I68","v":0},0]
[null,"Tetrachloroethane",{"$f":"'Engine 1'!$I69","v":0},{"$f":"'Engine 2'!$I69","v":0},{"$f":"'Engine 3'!$I69","v":0},{"$f":"'Engine 4'!$I69","v":0},{"$f":"'Engine 5'!$I69","v":0},0]
[null,"Toluene",{"$f":"'Engine 1'!$I70","v":0},{"$f":"'Engine 2'!$I70","v":0},{"$f":"'Engine 3'!$I70","v":0},{"$f":"'Engine 4'!$I70","v":0},{"$f":"'Engine 5'!$I70","v":0},0]
[null,"Vinyl chloride",{"$f":"'Engine 1'!$I71","v":0},{"$f":"'Engine 2'!$I71","v":0},{"$f":"'Engine 3'!$I71","v":0},{"$f":"'Engine 4'!$I71","v":0},{"$f":"'Engine 5'!$I71","v":0},0]
[null,"Xylene",{"$f":"'Engine 1'!$I72","v":0},{"$f":"'Engine 2'!$I72","v":0},{"$f":"'Engine 3'!$I72","v":0},{"$f":"'Engine 4'!$I72","v":0},{"$f":"'Engine 5'!$I72","v":0},0]
[null,"HAP Indiv. Max",{"$f":"IF(H46=H21,B21,IF(H46=H22,B22,IF(H46=H23,B23,IF(H46=H24,B24,IF(H46=H25,B25,IF(H46=H26,B26,IF(H46=H27,B27,IF(H46=H28,B28,IF(H46=H29,B29,IF(H46=H30,B30,IF(H46=H31,B31,IF(H46=H32,B32,IF(H46=H33,B33,IF(H46=H34,B34,IF(H46=H35,B35,IF(H46=H36,B36,IF(H46=H37,B37,IF(H46=H38,B38,IF(H46=H39,B39,IF(H46=H40,B40,IF(H46=H41,B41,IF(H46=H42,B42,IF(H46=H43,B43,IF(H46=H44,B44,IF(H46=H45,B45)))))))))))))))))))))))))","v":"1,1,2,2-tetrachloroethane"},null,null,null,null,{"$f":"MAX(H21:H45)","v":0},5,{"$f":"IF(H46>=I46,1,0)","v":0}]
[null,"HAP total",null,null,null,null,null,{"$f":"SUM(H21:H45)","v":0},12.5,0]

{"sheet":"Permits & requirements","index":11,"n_rows":42,"n_cols":9,"rows_kept":42,"cut":false,"hidden":false,"merged":[[17,1,18,8],[14,1,15,1],[14,2,15,2],[10,5,11,6],[12,5,13,6],[14,5,15,6],[5,1,6,8],[10,1,11,1],[10,2,11,2],[12,8,13,8],[12,7,13,7],[12,1,13,1],[12,2,13,2],[10,7,11,7],[10,8,11,8],[36,2,37,8],[38,1,40,8],[41,1,41,8],[0,1,0,8],[2,1,4,8],[8,1,8,4],[29,2,29,3],[33,1,33,2],[33,3,33,4],[1,1,1,8],[9,5,9,6],[10,4,15,4],[14,7,15,7],[14,8,15,8],[8,5,8,8],[10,3,14,3]]}
[null,{"$f":"Instructions!O3","v":"p-sbap5-25  •  12/13/23"}]
[null,"Permits and requirements"]
[null,"The need for a permit is based on your entire business's potential air emissions. All activities that put pollutants into the air (including paint and solvent use, woodworking, metalworking) need to be assessed in addition to the engines included in this calculator. Once you determine if you need a permit, based on whether an NSPS applies and your total potential emissions, you can then use your actual emissions to see which permit is the best fit for your business."]
[]
[]
[null,"If you have additional air emission sources, you must assess your facility's total potential emissions from all sources to identify your permitting needs."]
[]
[]
[null,"Is a permit required?",null,null,null,"What type of permit?"]
[null,"Does your business's potential emissions exceed permit thresholds?","Does your business's actual emissions exceed Option D limits","Is there an engine subject to a federal NSPS?","Is there an engine subject to the federal NESHAP?","Which permit do you need?",null,"More Information ","Forms"]
[null,"no","n/a","Applicability of NSPS IIII or JJJJ does not1 indicate a need for a permit as provided by ","Applicability of a NESHAP does not determine if a permit is required.","Below permit thresholds",null,"n/a","n/a"]
[]
[null,"yes","no",null,null,"Registration Option C or Registration Option D2",null,"Info about Air Registration Permits","Application Forms, scroll to Registration "]
[]
[null,"yes","yes",null,null,"Other state or federal permit",null,"Info about Air Permits","Application Forms"]
[null,null,null,"Minn. R. 7007.0300"]
[null,"1 If your engine did not rely on performance testing to demonstrate NSPS compliance and any compression ignition engines are less than 30 liters per cylinder."]
[null,"2Option C registration permit is intended for facilities with indirect heating units (boilers), reciprocating internal combustion engines, and/or emissions from using Volatile Organic Compound (VOC)-containing materials. The Option D registration permit is for facilities with additional air emission activities."]
[]
[]
[]
[null,"Stack Height Determination"]
[null,"Required if:","1) Installing a non-emergency engine, including insignificant activities, or"]
[null,null,"2) There are existing non-emergency engines installed after January 1, 2000, or"]
[null,null,"3) Installing any permit-required engine, including emergency engines."]
[null,"How:","Use the EPA SCREEN3 program to enter engine and site-specific information to identify the necessary stack height for the engine at:"]
[null,null,"https://www.epa.gov/scram/air-quality-dispersion-modeling-screening-models#screen3"]
[null,null,"See input requirements and instructions on modeling more than one engine on the MPCA Form EC-03. "]
[null,null,"https://www.pca.state.mn.us/sites/default/files/aq-f1-ec03.doc"]
[null,"Resource:","MPCA air permits webpage for engines at:",null,"https://www.pca.state.mn.us/air/engines"]
[]
[]
[]
[null,"Types of insignificant activities",null,"Minn. R. 7007.1300"]
[null,"subp. 2","Not required to be listed."]
[null,"supb. 3","Required to be listed but emissions do not need to be included in total facility emission calculations, unless requested by MPCA."]
[null,"subp. 4","Required to be listed if applying for a Part 70 (Federal permit or federally enforceable permit limits) but emissions do not need to be included in total facility emission calculations, unless requested by MPCA."]
[]
[null,"If emissions units listed in 7007.1300 are subject to additional requirements under section 114(a)(3) of the act (Monitoring Requirements) or section 112 of the act (Hazardous Air Pollutants), or if part of a title I modification, or, if accounted for, make a stationary source subject to a part 70 permit, emissions from the emissions units must be calculated in the permit application."]
[]
[]
[null,"If all emission points are insignificant and total emissions do not exceed permitting thresholds, a permit is not required. Comply with any applicable regulations. "]

{"sheet":"Engine emission factors","index":12,"n_rows":59,"n_cols":9,"rows_kept":59,"cut":false,"hidden":false,"merged":[[1,0,1,7],[58,1,58,4],[0,0,0,8]]}
[{"$f":"Instructions!O3","v":"p-sbap5-25  •  12/13/23"}]
["Engine emission factors"]
[null,"RECIPROCATING ENGINES (<600HP) DIESEL (lb/MMBtu)1","RECIPROCATING ENGINES (>=600HP) DIESEL (lb/MMBtu)1","TURBINE ENGINES (electrical generation) NATURAL GAS (lb/MMBtu)1","RECIPROCATING GASOLINE (lb/MMBtu)2","RECIPROCATING Natural Gas 4-Stroke  Rich-Burn (lb/MMBtu)","RECIPROCATING Natural Gas 4-Stroke Lean-Burn (lb/MMBtu)","RECIPROCATING Natural Gas 2-Stroke Lean-Burn (lb/MMBtu)","RECIPROCATING Propane3,4,5\n(lb/MMBtu)"]
["source","AP42 Chpt 3.3 (10/96)","AP42 Chpt 3.4 (10/96)","AP42 Chpt 3.1 (4/00)","AP42 Chpt 3.3 (10/96)","AP42 Chpt 3.2-3 (7/00)","AP42 Chpt 3.2-2 (7/00)","AP42 Chpt 3.2-2 (7/00)","EPA/AIRS by SCC3,4"]
["PM",0.31,0.1,6.6E-3,0.1,{"$f":"0.0095+0.00991","v":1.941E-2},{"$f":"0.0000771+0.00991","v":9.9871000000000005E-3},{"$f":"0.0384+0.00991","v":4.8309999999999999E-2},{"$f":"I6","v":5.434782608695652E-2}]
["PM10",0.31,{"$f":"0.0496+0.0077","v":5.7299999999999997E-2},{"$f":"0.0019+0.0047","v":6.6E-3},0.1,{"$f":"0.0095+0.00991","v":1.941E-2},{"$f":"G5","v":9.9871000000000005E-3},{"$f":"H5","v":4.8309999999999999E-2},{"$f":"5/(H55/(10^6)*1000)","v":5.434782608695652E-2}]
["PM2.5",0.31,{"$f":"0.0479+0.0077","v":5.5599999999999997E-2},{"$f":"D6","v":6.6E-3},0.1,{"$f":"F6","v":1.941E-2},{"$f":"G5","v":9.9871000000000005E-3},{"$f":"H6","v":4.8309999999999999E-2},{"$f":"I6","v":5.434782608695652E-2}]
["SOx",1.01,1.01,0.94,8.4000000000000005E-2,5.8799999999999998E-4,5.8799999999999998E-4,5.8799999999999998E-4,{"$f":"(0.1)/(H55/(10^6)*1000)","v":1.0869565217391304E-3}]
["NOx",4.41,3.2,0.32,1.63,2.21,4.08,3.17,{"$f":"139/(H55/(10^6)*1000)","v":1.5108695652173914}]
["VOC",{"$f":"0.35+0+0.01+0","v":0.36},0.09,2.0999999999999999E-3,{"$f":"2.1+0.09+0.69+0.15","v":3.03},2.9600000000000001E-2,0.11799999999999999,0.12,{"$f":"83/(H55/(10^6)*1000)","v":0.90217391304347827}]
["CO",0.95,0.85,8.2000000000000003E-2,0.99,3.72,0.317,0.38600000000000001,{"$f":"129/(H55/(10^6)*1000)","v":1.4021739130434783}]
["40 CFR 98, subp. C, Table C-1 and C-2",null,null,null,null,null,null," "," "]
["CO2",{"$f":"B53","v":163.05402211679217},{"$f":"B53","v":163.05402211679217},{"$f":"B52","v":116.97737173495123},{"$f":"B54","v":154.80872678530486},{"$f":"B52","v":116.97737173495123},{"$f":"B52","v":116.97737173495123},{"$f":"G13","v":116.97737173495123},{"$f":"B55","v":136.0473729695409}]
["CH4",{"$f":"C53","v":6.6138732605513324E-3},{"$f":"C53","v":6.6138732605513324E-3},{"$f":"C52","v":2.2046244201837776E-3},{"$f":"C54","v":6.6138732605513324E-3},{"$f":"C52","v":2.2046244201837776E-3},{"$f":"C52","v":2.2046244201837776E-3},{"$f":"G14","v":2.2046244201837776E-3},{"$f":"C55","v":6.6138732605513324E-3}]
["N2O",{"$f":"D53","v":1.3227746521102665E-3},{"$f":"D53","v":1.3227746521102665E-3},{"$f":"D52","v":2.2046244201837776E-4},{"$f":"D54","v":1.3227746521102665E-3},{"$f":"D52","v":2.2046244201837776E-4},{"$f":"D52","v":2.2046244201837776E-4},2.2046244201837776E-4,{"$f":"D55","v":1.3227746521102665E-3}]
["source","AP42 Chpt 3.3 (10/96)","AP42 Chpt 3.4 (10/96)","AP42 Chpt 3.1 (4/00)","HAPs from Diesel<600HP","AP42 Chpt 3.2-3 (7/00)","AP42 Chpt 3.2-2 (7/00)","AP42 Chpt 3.2-2 (7/00)","Calculated5"]
["1,1,2,2-tetrachloroethane",null,null,null,null,2.5299999999999998E-5,4.0000000000000003E-5,6.6299999999999999E-5,{"$f":"AVERAGE(F17:H17)*$G$52/$G$55","v":1.7783783783783785E-5}]
["1,1,2-trichloroethane",null,null,null,null,1.5299999999999999E-5,3.18E-5,5.27E-5,{"$f":"AVERAGE(F18:H18)*$G$52/$G$55","v":1.3486486486486486E-5}]
["1,3-butadiene",3.9100000000000002E-5,null,4.3000000000000001E-7,3.9100000000000002E-5,6.6299999999999996E-4,2.6699999999999998E-4,8.1999999999999998E-4,2.3648648648648648E-4]
["1,3-dichloropropene",null,null,null,null,1.27E-5,2.6400000000000001E-5,4.3800000000000001E-5,1.1202702702702703E-5]
["Acetaldehyde",7.67E-4,2.5199999999999999E-5,4.0000000000000003E-5,{"$f":"B21","v":7.67E-4},2.7899999999999999E-3,8.3599999999999994E-3,7.7600000000000004E-3,2.5554054054054056E-3]
["Acrolein",9.2499999999999999E-5,7.8800000000000008E-6,6.3999999999999997E-6,{"$f":"B22","v":9.2499999999999999E-5},2.63E-3,5.1399999999999996E-3,7.7799999999999996E-3,2.1013513513513508E-3]
["Benzene",9.3300000000000002E-4,7.76E-4,1.2E-5,{"$f":"B23","v":9.3300000000000002E-4},1.58E-3,4.4000000000000002E-4,1.9400000000000001E-3,5.3513513513513513E-4]
["Biphenyl",null,null,null,null,null,2.12E-4,3.9500000000000003E-6,4.3773648648648644E-5]
["Carbon tetrachloride",null,null,null,null,1.77E-5,3.6699999999999998E-5,6.0699999999999998E-5,1.5554054054054056E-5]
["Chlorobenzene",null,null,null,null,1.29E-5,3.04E-5,4.4400000000000002E-5,1.1851351351351351E-5]
["Chloroform",null,null,null,null,1.3699999999999999E-5,2.8500000000000002E-5,4.71E-5,1.2067567567567568E-5]
["Ethylbenzene",null,null,3.1999999999999999E-5,null,2.48E-5,3.9700000000000003E-5,1.08E-4,2.3310810810810808E-5]
["Ethylene dibromide",null,null,null,null,2.1299999999999999E-5,4.4299999999999999E-5,7.3399999999999995E-5,1.8783783783783782E-5]
["Formaldehyde",1.1800000000000001E-3,7.8899999999999993E-5,7.1000000000000002E-4,{"$f":"B30","v":1.1800000000000001E-3},2.0500000000000001E-2,5.28E-2,5.5199999999999999E-2,1.7364864864864864E-2]
["Hexane",null,null,null,null,null,1.1100000000000001E-3,4.4499999999999997E-4,3.1520270270270272E-4]
["Methanol",null,null,null,null,3.0599999999999998E-3,2.5000000000000001E-3,2.48E-3,1.0864864864864865E-3]
["Methylene chloride",null,null,null,null,4.1199999999999999E-5,2.0000000000000002E-5,1.47E-4,2.8135135135135132E-5]
["Naphthalene",8.4800000000000001E-5,1.2999999999999999E-4,1.3E-6,{"$f":"B34","v":8.4800000000000001E-5},9.7100000000000002E-5,7.4400000000000006E-5,9.6299999999999996E-5,3.6189189189189185E-5]
["PAH",1.6799999999999999E-4,2.12E-4,2.2000000000000001E-6,1.6799999999999999E-4,1.4100000000000001E-4,2.69E-5,1.34E-4,4.0797297297297304E-5]
["Phenol",null,null,null,null,null,2.4000000000000001E-5,4.21E-5,1.3398648648648651E-5]
["Styrene",null,null,null,null,1.19E-5,2.3600000000000001E-5,5.4799999999999997E-5,1.2202702702702704E-5]
["Tetrachloroethane",null,null,null,null,null,2.48E-6,null,1.0054054054054054E-6]
["Toluene",4.0900000000000002E-4,2.81E-4,1.2999999999999999E-4,{"$f":"B39","v":4.0900000000000002E-4},5.5800000000000001E-4,4.08E-4,9.6299999999999999E-4,2.6067567567567565E-4]
["Vinyl chloride",null,null,null,null,7.1799999999999999E-6,1.49E-5,2.4700000000000001E-5,6.3216216216216207E-6]
["Xylene",2.8499999999999999E-4,1.93E-4,6.3999999999999997E-5,{"$f":"B41","v":2.8499999999999999E-4},1.95E-4,1.84E-4,2.6800000000000001E-4,8.7432432432432431E-5]
[1,"SOx emission factor given is multiplied by the sulfur content in the fuel (in percent) in the Engine (n) tabs."]
[2,"All particulate is assumed to be less than or equal to 1 micrometer in size. "]
[3,"Propane criteria emission factors ARB \"Instructions for the Emission Data System Review & Update Report 8/91\" referencing EPA/AIRS emission factors by source classification code. "]
[4,"SOx emission factor from AP-42 Section 1.5 Table 1.5-1 for propane. The SO2 emission factor is based on fuel sulfur content as 0.10S lb/1000 gal, where S is sulfur content of fuel in gr/100ft3. National average sulfur content"]
[null,"of propane 0.54 gr/100ft3","https://www3.epa.gov/ttnchie1/conference/ei12/area/haneke.pdf"]
[5,"Propane toxic emission factors were calculated from the natural gas toxic emission factors using the following formula: TEFP = TEFNG * HVP/HVNG"]
[null,"TEFP = Propane toxic emission factor; TEFNG = Average of natural gas toxic emission factors; HVP = Heating value for propane; HVNG = Heating value for natural gas"]
[]
[]
["Fuel","CO2 Emission Factor1\n(lbs/million BTU)","CH4 Emission Factor1\n(lbs/million BTU)","N2O Emission Factor1\n(lbs/million BTU)","Source for Emission Factors","Brake-specific fuel consumption \n(btu/hp*hr)2","Heat value3\n(Btu/scf)","Heat Value3\n(Btu/gal)"]
["NATURAL GAS",{"$f":"53.06/0.453592","v":116.97737173495123},{"$f":"0.001/0.453592","v":2.2046244201837776E-3},{"$f":"0.0001/0.453592","v":2.2046244201837776E-4},"40 CFR 98, subp. C, Table C-1 and C-2",null,1020]
["DISTILLATE OIL 2",{"$f":"73.96/0.453592","v":163.05402211679217},{"$f":"0.003/0.453592","v":6.6138732605513324E-3},{"$f":"0.0006/0.453592","v":1.3227746521102665E-3},"40 CFR 98, subp. C, Table C-1 and C-2",7000,null,{"$f":"0.138*1000000","v":138000}]
["GASOLINE",{"$f":"70.22/0.453592","v":154.80872678530486},{"$f":"C53","v":6.6138732605513324E-3},{"$f":"D53","v":1.3227746521102665E-3},"40 CFR 98, subp. C, Table C-1 and C-2",7000,null,125000]
["PROPANE",{"$f":"61.71/0.453592","v":136.0473729695409},{"$f":"C53","v":6.6138732605513324E-3},{"$f":"D53","v":1.3227746521102665E-3},"40 CFR 98, subp. C, Table C-1 and C-2",null,2516,{"$f":"0.092*1000000","v":92000}]
[1,"(1 lb = 0.453592 kg)"]
[2,"An average brake-specific fuel consumption of 7,000 Btu/hp-hr was assumed to convert from lb/MMBtu to lb/hp-hr (see AP42 Chpt 3.3)."]
[null,"7000 btu/hp*hr x GHG EF (lb/E6BTU)= lb GHG/hp*hr"]
[3,"Source: 40 CFR 98, Subp. C, Table C-1 and C-2"]

{"sheet":"Propane reference","index":13,"n_rows":2,"n_cols":1,"rows_kept":2,"cut":false,"hidden":false,"merged":[[1,0,1,15],[0,0,0,15]]}
[{"$f":"Instructions!O3","v":"p-sbap5-25  •  12/13/23"}]
["Propane emission factor reference"]

{"sheet":"Data validation","index":14,"n_rows":92,"n_cols":6,"rows_kept":92,"cut":false,"hidden":true,"merged":[[1,0,1,5],[0,0,0,3]]}
[{"$f":"Instructions!O3","v":"p-sbap5-25  •  12/13/23"}]
["Data Validation"]
[]
["Engines",null,null,"MN Counties",null,"Utility Companies"]
["Engine and Fuel Type","Choose one to calculate actual emissions",null,"Choose one",null,"Choose one"]
["Choose one","Number of hours operated per 12 months",null,"Aitkin",null,"Agralite Electric Coop"]
["Reciprocating - diesel","Quantity of fuel actually burned per 12 months",null,"Anoka",null,"Beltrami Electric Coop"]
["Reciprocating - gasoline",null,null,"Becker",null,"Benco Electric"]
["Reciprocating - propane",null,null,"Beltrami",null,"Brown County Rural Electric"]
["Turbine - natural gas","Actual emissions entry",null,"Benton",null,"Clearwater Polk electric"]
["Recip - nat gas 4-stroke rich burn","hours per year (hr/yr)",null,"Big Stone",null,"Connexus Energy "]
["Recip - nat gas 4-stroke lean burn","million Btu per year (MMBtu/yr)",null,"Blue Earth",null,"Cooperative Light and Power"]
["Recip - nat gas 2-stroke lean burn","gallons per year (gal/yr)",null,"Brown",null,"Dakota Electric Association"]
[null,null,null,"Carlton",null,"East Central Energy"]
[null,null,null,"Carver",null,"Federated Rural Electric Association"]
["Engine Use",null,null,"Cass",null,"Freeborn-Mower Cooperative Services"]
["Choose one",null,null,"Chippewa",null,"Goodhue County Cooperative Electric Association"]
["Routine",null,null,"Chisago",null,"Great River Energy"]
["Emergency",null,null,"Clay",null,"Iowa Lakes Electric Cooperative"]
[null,null,null,"Clearwater",null,"Itasca Mantrap"]
[null,null,null,"Cook",null,"Kandiyohi Power Coop"]
["Input Value",null,null,"Cottonwood",null,"Lake Country Power"]
["Choose one",null,null,"Crow Wing",null,"Lake Region Electric Coop"]
["horsepower(HP) or brake power (HP-hr)",null,null,"Dakota",null,"Lyon-Lincoln Electric Coop"]
["standard cubic feet/hr (scf/hr)",null,null,"Dodge",null,"McLeod Coop "]
["gallons/hr (gal/hr)",null,null,"Douglas",null,"Meeler Electric Coop"]
[null,null,null,"Faribault",null,"MiEnergy"]
["Fuel Conversion",null,null,"Fillmore",null,"Mille Lacs Energy Services"]
["Brake specific fuel consumption",null,null,"Freeborn",null,"Minnesota Power"]
["Heat value of fuel",null,null,"Goodhue",null,"Minnesota Valley Cooperative Light and Power"]
[null,null,null,"Grant",null,"Minnesota Valley Electric"]
[null,null,null,"Hennepin",null,"Nobles Coop Electric"]
["General selection",null,null,"Houston",null,"North Itasca "]
["Response",null,null,"Hubbard",null,"Northwestern Wisconsin Electric Company"]
["Choose Y/N",null,null,"Isanti",null,"Otter Tail Power Company"]
["Yes",null,null,"Itasca",null,"North Star Electric Coop"]
["No",null,null,"Jackson",null,"People's Energy Cooperative"]
[null,null,null,"Kanabec",null,"PKM Electric Coop"]
[null,null,null,"Kandiyohi",null,"Red River Valley Coop"]
[null,null,null,"Kittson",null,"Red Lake Electric Coop"]
[null,null,null,"Koochiching",null,"Redwood Electric Coop"]
[null,null,null,"Lac qui Parle",null,"Renville-Sibley Electric Coop"]
[null,null,null,"Lake",null,"Roseau Electric Cooperative"]
[null,null,null,"Lake of the Woods",null,"Runestone Electric"]
[null,null,null,"Le Sueur",null,"Sioux Valley Electric Energy"]
[null,null,null,"Lincoln",null,"South Central Electric"]
[null,null,null,"Lyon",null,"Steele Waseca Cooperative Electric"]
[null,null,null,"Mahnomen",null,"Stearns Electric Association"]
[null,null,null,"Marshall",null,"Todd-Wadena Electric Coop"]
[null,null,null,"Martin",null,"Traverse Electric Cooperative"]
["Updates:",null,null,"McLeod",null,"Wild Rice Electric Coop"]
["11/01/2019: formula for actual emissions ",null,null,"Meeker",null,"Wright Hennepin Coop Electric"]
[null,null,null,"Mille Lacs",null,"Xcel Energy"]
[null,null,null,"Morrison",null,"Other"]
[null,null,null,"Mower"]
[null,null,null,"Murray"]
[null,null,null,"Nicollet"]
[null,null,null,"Nobles"]
[null,null,null,"Norman"]
[null,null,null,"Olmsted"]
[null,null,null,"Otter Tail"]
[null,null,null,"Pennington"]
[null,null,null,"Pine"]
[null,null,null,"Pipestone"]
[null,null,null,"Polk"]
[null,null,null,"Pope"]
[null,null,null,"Ramsey"]
[null,null,null,"Red Lake"]
[null,null,null,"Redwood"]
[null,null,null,"Renville"]
[null,null,null,"Rice"]
[null,null,null,"Rock"]
[null,null,null,"Roseau"]
[null,null,null,"Scott"]
[null,null,null,"Sherburne"]
[null,null,null,"Sibley"]
[null,null,null,"St. Louis"]
[null,null,null,"Stearns"]
[null,null,null,"Steele"]
[null,null,null,"Stevens"]
[null,null,null,"Swift"]
[null,null,null,"Todd"]
[null,null,null,"Traverse"]
[null,null,null,"Wabasha"]
[null,null,null,"Wadena"]
[null,null,null,"Waseca"]
[null,null,null,"Washington"]
[null,null,null,"Watonwan"]
[null,null,null,"Wilkin"]
[null,null,null,"Winona"]
[null,null,null,"Wright"]
[null,null,null,"Yellow Medicine"]

{"sheet":"Data collection","index":15,"n_rows":167,"n_cols":2,"rows_kept":167,"cut":false,"hidden":true,"merged":[]}
["Business/facility name:",{"$f":"'Business information'!C9","v":0}]
["Physical address:",{"$f":"'Business information'!C10","v":0}]
["Physical address 2:",{"$f":"'Business information'!C11","v":0}]
["City:",{"$f":"'Business information'!C12","v":0}]
["County:",{"$f":"'Business information'!C13","v":"Choose one"}]
["State:",{"$f":"'Business information'!C14","v":"MN"}]
["Zip code:",{"$f":"'Business information'!C15","v":0}]
["Mailing address:",{"$f":"'Business information'!C18","v":0}]
["Mailing address 2:",{"$f":"'Business information'!C19","v":0}]
["City:",{"$f":"'Business information'!C20","v":0}]
["State:",{"$f":"'Business information'!C21","v":0}]
["Zip code:",{"$f":"'Business information'!C22","v":0}]
["Does this location have an air quality permit?",{"$f":"'Business information'!D24","v":"Choose one"}]
["If yes, what is your MPCA Agency Interest number?",{"$f":"'Business information'!D25","v":0}]
["First name:",{"$f":"'Business information'!C34","v":0}]
["Last name:",{"$f":"'Business information'!C35","v":0}]
["Email address:",{"$f":"'Business information'!C36","v":0}]
["Phone number:",{"$f":"'Business information'!C37","v":0}]
["Mailing address:",{"$f":"'Business information'!C38","v":0}]
["Mailing address 2:",{"$f":"'Business information'!C39","v":0}]
["City:",{"$f":"'Business information'!C40","v":0}]
["State:",{"$f":"'Business information'!C41","v":0}]
["Zip code:",{"$f":"'Business information'!C42","v":0}]
["Are you the:",{"$f":"'Business information'!C43","v":"Choose one"}]
["If other, specify:",{"$f":"'Business information'!C44","v":0}]
["Potential emissions, total:",{"$f":"IF(SUM('Potential emissions'!J7:J47)>0,\"Exceeds\",\"Below\")","v":"Below"}]
["Actual emissions, total:",{"$f":"IF(SUM('Actual emissions'!J7:J47)>0,\"Exceeds\",\"Below\")","v":"Below"}]
["Engine designation",{"$f":"'Engine 1'!$C$5","v":"Engine 1"}]
["Make",{"$f":"'Engine 1'!$C$6","v":0}]
["Model",{"$f":"'Engine 1'!$C$7","v":0}]
["Electrical output",{"$f":"'Engine 1'!$C$8","v":0}]
["Date of manufacture",{"$f":"'Engine 1'!$G$5","v":0}]
["Date installed",{"$f":"'Engine 1'!$G$6","v":0}]
["Displacement",{"$f":"'Engine 1'!$G$7","v":0}]
["Diesel engine tier",{"$f":"'Engine 1'!$G$8","v":"Choose one"}]
["Supply power to electric grid in emergency situations (emergency demand response)",{"$f":"'Engine 1'!$B$11","v":"Choose one"}]
["Supply power to electric grid in non-emergency situations (peak shaving)",{"$f":"'Engine 1'!$B$12","v":"Choose one"}]
["Other financial arrangement",{"$f":"'Engine 1'!$B$13","v":"Choose one"}]
["Does a federal rule apply to this engine? ",{"$f":"'Engine 1'!$B$16","v":"Choose one"}]
["Potential Hours",{"$f":"'Engine 1'!$F$32","v":0}]
["Engine and fuel type",{"$f":"'Engine 1'!$E$19","v":"Choose one"}]
["Engine use",{"$f":"'Engine 1'!$E$20","v":"Choose one"}]
["Rated",{"$f":"'Engine 1'!$D$21","v":" "}]
["Value",{"$f":"'Engine 1'!$E$21","v":0}]
["Units",{"$f":"'Engine 1'!$F$21","v":" "}]
["Actual selection",{"$f":"'Engine 1'!$B$22","v":"Choose one to calculate actual emissions"}]
["Value",{"$f":"'Engine 1'!$E$22","v":0}]
["Units",{"$f":"'Engine 1'!$F$22","v":" "}]
["BSCF or Heat Value",{"$f":"'Engine 1'!$D$23","v":" "}]
["Value",{"$f":"'Engine 1'!$E$23","v":" "}]
["Units",{"$f":"'Engine 1'!$F$23","v":" "}]
["Heat Value or none",{"$f":"'Engine 1'!$D$24","v":" "}]
["Value",{"$f":"'Engine 1'!$E$24","v":" "}]
["Units",{"$f":"'Engine 1'!$F$24","v":" "}]
["Sulfur Content",{"$f":"'Engine 1'!$E$25","v":"NA"}]
["Engine designation",{"$f":"'Engine 2'!$C$5","v":"Engine 2"}]
["Make",{"$f":"'Engine 2'!$C$6","v":0}]
["Model",{"$f":"'Engine 2'!$C$7","v":0}]
["Electrical output",{"$f":"'Engine 2'!$C$8","v":0}]
["Date of manufacture",{"$f":"'Engine 2'!$G$5","v":0}]
["Date installed",{"$f":"'Engine 2'!$G$6","v":0}]
["Displacement",{"$f":"'Engine 2'!$G$7","v":0}]
["Diesel engine tier",{"$f":"'Engine 2'!$G$8","v":"Choose one"}]
["Supply power to electric grid in emergency situations (emergency demand response)",{"$f":"'Engine 2'!$B$11","v":"Choose one"}]
["Supply power to electric grid in non-emergency situations (peak shaving)",{"$f":"'Engine 2'!$B$12","v":"Choose one"}]
["Other financial arrangement",{"$f":"'Engine 2'!$B$13","v":"Choose one"}]
["Does a federal rule apply to this engine? ",{"$f":"'Engine 2'!$B$16","v":"Choose one"}]
["Potential Hours",{"$f":"'Engine 2'!$F$32","v":0}]
["Engine and fuel type",{"$f":"'Engine 2'!$E$19","v":"Choose one"}]
["Engine use",{"$f":"'Engine 2'!$E$20","v":"Choose one"}]
["Rated",{"$f":"'Engine 2'!$D$21","v":" "}]
["Value",{"$f":"'Engine 2'!$E$21","v":0}]
["Units",{"$f":"'Engine 2'!$F$21","v":" "}]
["Actual selection",{"$f":"'Engine 2'!$B$22","v":"Choose one to calculate actual emissions"}]
["Value",{"$f":"'Engine 2'!$E$22","v":0}]
["Units",{"$f":"'Engine 2'!$F$22","v":" "}]
["BSCF or Heat Value",{"$f":"'Engine 2'!$D$23","v":" "}]
["Value",{"$f":"'Engine 2'!$E$23","v":" "}]
["Units",{"$f":"'Engine 2'!$F$23","v":" "}]
["Heat Value or none",{"$f":"'Engine 2'!$D$24","v":" "}]
["Value",{"$f":"'Engine 2'!$E$24","v":" "}]
["Units",{"$f":"'Engine 2'!$F$24","v":" "}]
["Sulfur Content",{"$f":"'Engine 2'!$E$25","v":"NA"}]
["Engine designation",{"$f":"'Engine 3'!$C$5","v":"Engine 3"}]
["Make",{"$f":"'Engine 3'!$C$6","v":0}]
["Model",{"$f":"'Engine 3'!$C$7","v":0}]
["Electrical output",{"$f":"'Engine 3'!$C$8","v":0}]
["Date of manufacture",{"$f":"'Engine 3'!$G$5","v":0}]
["Date installed",{"$f":"'Engine 3'!$G$6","v":0}]
["Displacement",{"$f":"'Engine 3'!$G$7","v":0}]
["Diesel engine tier",{"$f":"'Engine 3'!$G$8","v":"Choose one"}]
["Supply power to electric grid in emergency situations (emergency demand response)",{"$f":"'Engine 3'!$B$11","v":"Choose one"}]
["Supply power to electric grid in non-emergency situations (peak shaving)",{"$f":"'Engine 3'!$B$12","v":"Choose one"}]
["Other financial arrangement",{"$f":"'Engine 3'!$B$13","v":"Choose one"}]
["Does a federal rule apply to this engine? ",{"$f":"'Engine 3'!$B$16","v":"Choose one"}]
["Potential Hours",{"$f":"'Engine 3'!$F$32","v":0}]
["Engine and fuel type",{"$f":"'Engine 3'!$E$19","v":"Choose one"}]
["Engine use",{"$f":"'Engine 3'!$E$20","v":"Choose one"}]
["Rated",{"$f":"'Engine 3'!$D$21","v":" "}]
["Value",{"$f":"'Engine 3'!$E$21","v":0}]
["Units",{"$f":"'Engine 3'!$F$21","v":" "}]
["Actual selection",{"$f":"'Engine 3'!$B$22","v":"Choose one to calculate actual emissions"}]
["Value",{"$f":"'Engine 3'!$E$22","v":0}]
["Units",{"$f":"'Engine 3'!$F$22","v":" "}]
["BSCF or Heat Value",{"$f":"'Engine 3'!$D$23","v":" "}]
["Value",{"$f":"'Engine 3'!$E$23","v":" "}]
["Units",{"$f":"'Engine 3'!$F$23","v":" "}]
["Heat Value or none",{"$f":"'Engine 3'!$D$24","v":" "}]
["Value",{"$f":"'Engine 3'!$E$24","v":" "}]
["Units",{"$f":"'Engine 3'!$F$24","v":" "}]
["Sulfur Content",{"$f":"'Engine 3'!$E$25","v":"NA"}]
["Engine designation",{"$f":"'Engine 4'!$C$5","v":"Engine 4"}]
["Make",{"$f":"'Engine 4'!$C$6","v":0}]
["Model",{"$f":"'Engine 4'!$C$7","v":0}]
["Electrical output",{"$f":"'Engine 4'!$C$8","v":0}]
["Date of manufacture",{"$f":"'Engine 4'!$G$5","v":0}]
["Date installed",{"$f":"'Engine 4'!$G$6","v":0}]
["Displacement",{"$f":"'Engine 4'!$G$7","v":0}]
["Diesel engine tier",{"$f":"'Engine 4'!$G$8","v":"Choose one"}]
["Supply power to electric grid in emergency situations (emergency demand response)",{"$f":"'Engine 4'!$B$11","v":"Choose one"}]
["Supply power to electric grid in non-emergency situations (peak shaving)",{"$f":"'Engine 4'!$B$12","v":"Choose one"}]
["Other financial arrangement",{"$f":"'Engine 4'!$B$13","v":"Choose one"}]
["Does a federal rule apply to this engine? ",{"$f":"'Engine 4'!$B$16","v":"Choose one"}]
["Potential Hours",{"$f":"'Engine 4'!$F$32","v":0}]
["Engine and fuel type",{"$f":"'Engine 4'!$E$19","v":"Choose one"}]
["Engine use",{"$f":"'Engine 4'!$E$20","v":"Choose one"}]
["Rated",{"$f":"'Engine 4'!$D$21","v":" "}]
["Value",{"$f":"'Engine 4'!$E$21","v":0}]
["Units",{"$f":"'Engine 4'!$F$21","v":" "}]
["Actual selection",{"$f":"'Engine 4'!$B$22","v":"Choose one to calculate actual emissions"}]
["Value",{"$f":"'Engine 4'!$E$22","v":0}]
["Units",{"$f":"'Engine 4'!$F$22","v":" "}]
["BSCF or Heat Value",{"$f":"'Engine 4'!$D$23","v":" "}]
["Value",{"$f":"'Engine 4'!$E$23","v":" "}]
["Units",{"$f":"'Engine 4'!$F$23","v":" "}]
["Heat Value or none",{"$f":"'Engine 4'!$D$24","v":" "}]
["Value",{"$f":"'Engine 4'!$E$24","v":" "}]
["Units",{"$f":"'Engine 4'!$F$24","v":" "}]
["Sulfur Content",{"$f":"'Engine 4'!$E$25","v":"NA"}]
["Engine designation",{"$f":"'Engine 5'!$C$5","v":"Engine 5"}]
["Make",{"$f":"'Engine 5'!$C$6","v":0}]
["Model",{"$f":"'Engine 5'!$C$7","v":0}]
["Electrical output",{"$f":"'Engine 5'!$C$8","v":0}]
["Date of manufacture",{"$f":"'Engine 5'!$G$5","v":0}]
["Date installed",{"$f":"'Engine 5'!$G$6","v":0}]
["Displacement",{"$f":"'Engine 5'!$G$7","v":0}]
["Diesel engine tier",{"$f":"'Engine 5'!$G$8","v":"Choose one"}]
["Supply power to electric grid in emergency situations (emergency demand response)",{"$f":"'Engine 5'!$B$11","v":"Choose one"}]
["Supply power to electric grid in non-emergency situations (peak shaving)",{"$f":"'Engine 5'!$B$12","v":"Choose one"}]
["Other financial arrangement",{"$f":"'Engine 5'!$B$13","v":"Choose one"}]
["Does a federal rule apply to this engine? ",{"$f":"'Engine 5'!$B$16","v":"Choose one"}]
["Potential Hours",{"$f":"'Engine 5'!$F$32","v":0}]
["Engine and fuel type",{"$f":"'Engine 5'!$E$19","v":"Choose one"}]
["Engine use",{"$f":"'Engine 5'!$E$20","v":"Choose one"}]
["Rated",{"$f":"'Engine 5'!$D$21","v":" "}]
["Value",{"$f":"'Engine 5'!$E$21","v":0}]
["Units",{"$f":"'Engine 5'!$F$21","v":" "}]
["Actual selection",{"$f":"'Engine 5'!$B$22","v":"Choose one to calculate actual emissions"}]
["Value",{"$f":"'Engine 5'!$E$22","v":0}]
["Units",{"$f":"'Engine 5'!$F$22","v":" "}]
["BSCF or Heat Value",{"$f":"'Engine 5'!$D$23","v":" "}]
["Value",{"$f":"'Engine 5'!$E$23","v":" "}]
["Units",{"$f":"'Engine 5'!$F$23","v":" "}]
["Heat Value or none",{"$f":"'Engine 5'!$D$24","v":" "}]
["Value",{"$f":"'Engine 5'!$E$24","v":" "}]
["Units",{"$f":"'Engine 5'!$F$24","v":" "}]
["Sulfur Content",{"$f":"'Engine 5'!$E$25","v":"NA"}]